﻿Body Name,Body,Service Area Catergorisation,Service Division Catergorisation,Responsible Unit,Expenses Type,Detailed Expenses Type,Expenses Code,Date,Transaction Number,Amount,Capital / Revenue,Supplier Name,Supplier ID
North East Lincolnshire Council,http://statistics.data.gov.uk/id/local-authority/00FC),Economy And Growth,Regeneration,Clee Hlf Townscape Heritage,Cap Infrastr-Prof Fees,Cap Infrastr-Prof Fees,YC103,02/08/2021,684378,4235.17,CAPITAL,ENGIE SERVICES LTD,133267
North East Lincolnshire Council,http://statistics.data.gov.uk/id/local-authority/00FC),Economy And Growth,Regeneration,Clee Hlf Townscape Heritage,Cap Infrastr-Prof Fees,Cap Infrastr-Prof Fees,YC103,09/08/2021,685485,4235.17,CAPITAL,ENGIE SERVICES LTD,133267
North East Lincolnshire Council,http://statistics.data.gov.uk/id/local-authority/00FC),Economy And Growth,Regeneration,Shiip Scheme,Cap Infrastr-Build Enh Wrk,Cap Infrastr-Build Enh Wrk,YC102,10/08/2021,685847,1030,CAPITAL,LANDMARK CHAMBERS,102475
North East Lincolnshire Council,http://statistics.data.gov.uk/id/local-authority/00FC),Economy And Growth,Regeneration,Shiip Scheme,Cap Infrastr-Build Enh Wrk,Cap Infrastr-Build Enh Wrk,YC102,10/08/2021,685846,4135,CAPITAL,LANDMARK CHAMBERS,102475
North East Lincolnshire Council,http://statistics.data.gov.uk/id/local-authority/00FC),Economy And Growth,Regeneration,Shiip Scheme,Cap Infrastr-Build Enh Wrk,Cap Infrastr-Build Enh Wrk,YC102,02/08/2021,684706,4350,CAPITAL,GOWN ENGINEERING LTD,148800
North East Lincolnshire Council,http://statistics.data.gov.uk/id/local-authority/00FC),Economy And Growth,Regeneration,Shiip Scheme,Cap Infrastr-Prof Fees,Cap Infrastr-Prof Fees,YC103,18/08/2021,685500,2000,CAPITAL,ENGIE SERVICES LTD,133267
North East Lincolnshire Council,http://statistics.data.gov.uk/id/local-authority/00FC),Economy And Growth,Regeneration,Unlocking The Potential,Cap Infrastr-Build Enh Wrk,Cap Infrastr-Build Enh Wrk,YC102,23/08/2021,687145,4062.5,CAPITAL,ALAN WOOD PARTNERSHIP LTD,101760
North East Lincolnshire Council,http://statistics.data.gov.uk/id/local-authority/00FC),Economy And Growth,Regeneration,Unlocking The Potential,Cap Infrastr-Build Enh Wrk,Cap Infrastr-Build Enh Wrk,YC102,26/08/2021,687660,271486.28,CAPITAL,C R REYNOLDS (CONSTRUCTION) LTD,103021
North East Lincolnshire Council,http://statistics.data.gov.uk/id/local-authority/00FC),Economy And Growth,Regeneration,Unlocking The Potential,Cap Infrastr-Build Enh Wrk,Cap Infrastr-Build Enh Wrk,YC102,26/08/2021,687661,210586.76,CAPITAL,C R REYNOLDS (CONSTRUCTION) LTD,103021
North East Lincolnshire Council,http://statistics.data.gov.uk/id/local-authority/00FC),Economy And Growth,Regeneration,Unlocking The Potential,Cap Infrastr-Build Enh Wrk,Cap Infrastr-Build Enh Wrk,YC102,02/08/2021,684751,1500,CAPITAL,J MCCANN & CO LTD,100841
North East Lincolnshire Council,http://statistics.data.gov.uk/id/local-authority/00FC),Economy And Growth,Regeneration,Unlocking The Potential,Cap Infrastr-Prof Fees,Cap Infrastr-Prof Fees,YC103,13/08/2021,686468,1000,CAPITAL,CROWN ESTATE RE CARTER JONAS RENTAL AC,103817
North East Lincolnshire Council,http://statistics.data.gov.uk/id/local-authority/00FC),Economy And Growth,Regeneration,Unlocking The Potential,Cap Infrastr-Prof Fees,Cap Infrastr-Prof Fees,YC103,23/08/2021,687220,360,CAPITAL,THE CROWN ESTATE,149600
North East Lincolnshire Council,http://statistics.data.gov.uk/id/local-authority/00FC),Economy And Growth,Regeneration,Central Clee Regeneration,Cap Infrastr-Build Enh Wrk,Cap Infrastr-Build Enh Wrk,YC102,12/08/2021,685388,35194.95,CAPITAL,PBS CONSTRUCTION (NORTH EAST) LTD,127459
North East Lincolnshire Council,http://statistics.data.gov.uk/id/local-authority/00FC),Economy And Growth,Regeneration,Cdf - Open For Culture,Cap Veh Plt Eqp-Purchase,Cap Veh Plt Eqp-Purchase,YB101,17/08/2021,683359,1350,CAPITAL,SPRINGBOARD RESEARCH LTD,102452
North East Lincolnshire Council,http://statistics.data.gov.uk/id/local-authority/00FC),Economy And Growth,Regeneration,Cdf - Open For Culture,Cap Veh Plt Eqp-Purchase,Cap Veh Plt Eqp-Purchase,YB101,09/08/2021,685478,312.95,CAPITAL,GOBOPLUS LIMITED,149263
North East Lincolnshire Council,http://statistics.data.gov.uk/id/local-authority/00FC),Economy And Growth,Regeneration,Future High Street Funds,Cap Land/Build-Prof Fees,Cap Land/Build-Prof Fees,YA103,03/08/2021,685163,12000,CAPITAL,MONTAGU EVANS LLP,145979
North East Lincolnshire Council,http://statistics.data.gov.uk/id/local-authority/00FC),Economy And Growth,Regeneration,Future High Street Funds,Cap Land/Build-Prof Fees,Cap Land/Build-Prof Fees,YA103,13/08/2021,686408,8000,CAPITAL,MONTAGU EVANS LLP,145979
North East Lincolnshire Council,http://statistics.data.gov.uk/id/local-authority/00FC),Economy And Growth,Housing Highways And Transport,Local Transport Plan Schemes,Cap Infrastr-Build Enh Wrk,Cap Infrastr-Build Enh Wrk,YC102,26/08/2021,687657,3378.13,CAPITAL,SPECIALIST SURFACING LIMITED,100579
North East Lincolnshire Council,http://statistics.data.gov.uk/id/local-authority/00FC),Economy And Growth,Housing Highways And Transport,Local Transport Plan Schemes,Cap Land/Build-Build Enh Wrk,Cap Land/Build-Build Enh Wrk,YA102,03/08/2021,684721,24087.3,CAPITAL,J MCCANN & CO LTD,100841
North East Lincolnshire Council,http://statistics.data.gov.uk/id/local-authority/00FC),Economy And Growth,Housing Highways And Transport,Local Transport Plan Schemes,Cap Infrastr-Build Enh Wrk,Cap Infrastr-Build Enh Wrk,YC102,04/08/2021,685178,1375.6,CAPITAL,CGC ECOLOGY LTD,142378
North East Lincolnshire Council,http://statistics.data.gov.uk/id/local-authority/00FC),Economy And Growth,Housing Highways And Transport,Local Transport Plan Schemes,Cap Infrastr-Prof Fees,Cap Infrastr-Prof Fees,YC103,26/08/2021,680920,6862.5,CAPITAL,PELL FRISCHMANN CONSULTANTS LTD,100880
North East Lincolnshire Council,http://statistics.data.gov.uk/id/local-authority/00FC),Economy And Growth,Housing Highways And Transport,Local Transport Plan Schemes,Cap Infrastr-Prof Fees,Cap Infrastr-Prof Fees,YC103,05/08/2021,685202,750,CAPITAL,BROWNE JACOBSON LLP,111781
North East Lincolnshire Council,http://statistics.data.gov.uk/id/local-authority/00FC),Economy And Growth,Housing Highways And Transport,Local Transport Plan Schemes,Cap Infrastr-Build Enh Wrk,Cap Infrastr-Build Enh Wrk,YC102,04/08/2021,684717,385.67,CAPITAL,J MCCANN & CO LTD,100841
North East Lincolnshire Council,http://statistics.data.gov.uk/id/local-authority/00FC),Economy And Growth,Housing Highways And Transport,Local Transport Plan Schemes,Cap Infrastr-Build Enh Wrk,Cap Infrastr-Build Enh Wrk,YC102,16/08/2021,685491,5000,CAPITAL,ENGIE SERVICES LTD,133267
North East Lincolnshire Council,http://statistics.data.gov.uk/id/local-authority/00FC),Economy And Growth,Housing Highways And Transport,Local Transport Plan Schemes,Cap Infrastr-Build Enh Wrk,Cap Infrastr-Build Enh Wrk,YC102,16/08/2021,685483,5000,CAPITAL,ENGIE SERVICES LTD,133267
North East Lincolnshire Council,http://statistics.data.gov.uk/id/local-authority/00FC),Economy And Growth,Housing Highways And Transport,Local Transport Plan Schemes,Cap Infrastr-Build Enh Wrk,Cap Infrastr-Build Enh Wrk,YC102,16/08/2021,685501,4000,CAPITAL,ENGIE SERVICES LTD,133267
North East Lincolnshire Council,http://statistics.data.gov.uk/id/local-authority/00FC),Economy And Growth,Housing Highways And Transport,Local Transport Plan Schemes,Cap Infrastr-Build Enh Wrk,Cap Infrastr-Build Enh Wrk,YC102,02/08/2021,684383,43723.24,CAPITAL,ENGIE SERVICES LTD,133267
North East Lincolnshire Council,http://statistics.data.gov.uk/id/local-authority/00FC),Economy And Growth,Housing Highways And Transport,Local Transport Plan Schemes,Cap Infrastr-Build Enh Wrk,Cap Infrastr-Build Enh Wrk,YC102,13/08/2021,686414,250000,CAPITAL,KIELY BROS LTD,106644
North East Lincolnshire Council,http://statistics.data.gov.uk/id/local-authority/00FC),Economy And Growth,Housing Highways And Transport,Local Transport Plan Schemes,Cap Infrastr-Build Enh Wrk,Cap Infrastr-Build Enh Wrk,YC102,12/08/2021,686415,35621.58,CAPITAL,KIELY BROS LTD,106644
North East Lincolnshire Council,http://statistics.data.gov.uk/id/local-authority/00FC),Economy And Growth,Housing Highways And Transport,Local Transport Plan Schemes,Cap Infrastr-Build Enh Wrk,Cap Infrastr-Build Enh Wrk,YC102,06/08/2021,685417,423324.36,CAPITAL,EC SURFACING LTD,125951
North East Lincolnshire Council,http://statistics.data.gov.uk/id/local-authority/00FC),Economy And Growth,Housing Highways And Transport,Local Transport Plan Schemes,Cap Infrastr-Build Enh Wrk,Cap Infrastr-Build Enh Wrk,YC102,16/08/2021,685489,25000,CAPITAL,ENGIE SERVICES LTD,133267
North East Lincolnshire Council,http://statistics.data.gov.uk/id/local-authority/00FC),Economy And Growth,Housing Highways And Transport,Local Transport Plan Schemes,Cap Infrastr-Build Enh Wrk,Cap Infrastr-Build Enh Wrk,YC102,16/08/2021,685482,25000,CAPITAL,ENGIE SERVICES LTD,133267
North East Lincolnshire Council,http://statistics.data.gov.uk/id/local-authority/00FC),Economy And Growth,Housing Highways And Transport,Local Transport Plan Schemes,Cap Infrastr-Build Enh Wrk,Cap Infrastr-Build Enh Wrk,YC102,16/08/2021,685503,10000,CAPITAL,ENGIE SERVICES LTD,133267
North East Lincolnshire Council,http://statistics.data.gov.uk/id/local-authority/00FC),Economy And Growth,Housing Highways And Transport,Local Transport Plan Schemes,Cap Infrastr-Build Enh Wrk,Cap Infrastr-Build Enh Wrk,YC102,12/08/2021,686413,3496.87,CAPITAL,SPECIALIST SURFACING LIMITED,100579
North East Lincolnshire Council,http://statistics.data.gov.uk/id/local-authority/00FC),Economy And Growth,Housing Highways And Transport,Local Transport Plan Schemes,Cap Infrastr-Build Enh Wrk,Cap Infrastr-Build Enh Wrk,YC102,12/08/2021,686308,1760,CAPITAL,ONEWAY TM LIMITED,128602
North East Lincolnshire Council,http://statistics.data.gov.uk/id/local-authority/00FC),Economy And Growth,Housing Highways And Transport,Local Transport Plan Schemes,Cap Infrastr-Build Enh Wrk,Cap Infrastr-Build Enh Wrk,YC102,02/08/2021,684379,4409.78,CAPITAL,ENGIE SERVICES LTD,133267
North East Lincolnshire Council,http://statistics.data.gov.uk/id/local-authority/00FC),Economy And Growth,Housing Highways And Transport,Housing Assist Grants And Loan,Cap Grants To O/Side Sources,Cap Grants To O/Side Sources,YJ101,13/08/2021,686500,3280,CAPITAL,EAST MARSH CONSTRUCTION CIC,146757
North East Lincolnshire Council,http://statistics.data.gov.uk/id/local-authority/00FC),Economy And Growth,Housing Highways And Transport,Gllep Junction Improvement,Cap Infrastr-Build Enh Wrk,Cap Infrastr-Build Enh Wrk,YC102,02/08/2021,684750,2650,CAPITAL,J MCCANN & CO LTD,100841
North East Lincolnshire Council,http://statistics.data.gov.uk/id/local-authority/00FC),Economy And Growth,Housing Highways And Transport,Gllep Junction Improvement,Cap Infrastr-Build Enh Wrk,Cap Infrastr-Build Enh Wrk,YC102,02/08/2021,684752,2069.85,CAPITAL,J MCCANN & CO LTD,100841
North East Lincolnshire Council,http://statistics.data.gov.uk/id/local-authority/00FC),Economy And Growth,Housing Highways And Transport,A18 Laceby To Ludborough,Cap Infrastr-Build Enh Wrk,Cap Infrastr-Build Enh Wrk,YC102,31/08/2021,687808,18492.07,CAPITAL,ANGLIAN WATER SERVICES LIMITED,125923
North East Lincolnshire Council,http://statistics.data.gov.uk/id/local-authority/00FC),Economy And Growth,Housing Highways And Transport,Community Hsg Fund,Cap Land/Build-Build Enh Wrk,Cap Land/Build-Build Enh Wrk,YA102,11/08/2021,686196,4965,CAPITAL,ETON-LINCS LIMITED,101510
North East Lincolnshire Council,http://statistics.data.gov.uk/id/local-authority/00FC),Economy And Growth,Housing Highways And Transport,Community Hsg Fund,Cap Land/Build-Build Enh Wrk,Cap Land/Build-Build Enh Wrk,YA102,23/08/2021,686946,3350,CAPITAL,EAST MARSH CONSTRUCTION CIC,146757
North East Lincolnshire Council,http://statistics.data.gov.uk/id/local-authority/00FC),Economy And Growth,Housing Highways And Transport,Willingham / Peaks Drainage,Cap Land/Build-Prof Fees,Cap Land/Build-Prof Fees,YA103,23/08/2021,686393,27628.29,CAPITAL,WHITEHOUSE CONSTRUCTION CO LTD,148500
North East Lincolnshire Council,http://statistics.data.gov.uk/id/local-authority/00FC),Economy And Growth,Housing Highways And Transport,Accelerated Cons Funding,Cap Infrastr-Build Enh Wrk,Cap Infrastr-Build Enh Wrk,YC102,10/08/2021,685618,242679.66,CAPITAL,ANGLIAN WATER SERVICES LIMITED,125923
North East Lincolnshire Council,http://statistics.data.gov.uk/id/local-authority/00FC),Economy And Growth,Housing Highways And Transport,Accelerated Cons Funding,Cap Infrastr-Build Enh Wrk,Cap Infrastr-Build Enh Wrk,YC102,10/08/2021,686151,124697.42,CAPITAL,C R REYNOLDS (CONSTRUCTION) LTD,103021
North East Lincolnshire Council,http://statistics.data.gov.uk/id/local-authority/00FC),Economy And Growth,Housing Highways And Transport,Accelerated Cons Funding,Cap Infrastr-Build Enh Wrk,Cap Infrastr-Build Enh Wrk,YC102,10/08/2021,686152,192084.41,CAPITAL,C R REYNOLDS (CONSTRUCTION) LTD,103021
North East Lincolnshire Council,http://statistics.data.gov.uk/id/local-authority/00FC),Economy And Growth,Housing Highways And Transport,Accelerated Cons Funding,Cap Infrastr-Build Enh Wrk,Cap Infrastr-Build Enh Wrk,YC102,12/08/2021,686193,6000,CAPITAL,COLE EASDON CONSULTANTS,146319
North East Lincolnshire Council,http://statistics.data.gov.uk/id/local-authority/00FC),Economy And Growth,Housing Highways And Transport,Accelerated Cons Funding,Cap Infrastr-Build Enh Wrk,Cap Infrastr-Build Enh Wrk,YC102,10/08/2021,686163,89421.07,CAPITAL,FIRST CONNECT UTILITY SOLUTIONS LTD,146619
North East Lincolnshire Council,http://statistics.data.gov.uk/id/local-authority/00FC),Economy And Growth,Housing Highways And Transport,Accelerated Cons Funding,Cap Infrastr-Prof Fees,Cap Infrastr-Prof Fees,YC103,09/08/2021,685481,25000,CAPITAL,ENGIE SERVICES LTD,133267
North East Lincolnshire Council,http://statistics.data.gov.uk/id/local-authority/00FC),Economy And Growth,Housing Highways And Transport,Accelerated Cons Funding,Cap Land/Build-Build Enh Wrk,Cap Land/Build-Build Enh Wrk,YA102,27/08/2021,687557,395,CAPITAL,CLS CIVIL ENGINEERING LTD,146425
North East Lincolnshire Council,http://statistics.data.gov.uk/id/local-authority/00FC),Economy And Growth,Housing Highways And Transport,Accelerated Cons Funding,Cap Land/Build-Build Enh Wrk,Cap Land/Build-Build Enh Wrk,YA102,09/08/2021,685214,2758.43,CAPITAL,HUMBERSIDE MATERIALS LABORATORY LTD,122103
North East Lincolnshire Council,http://statistics.data.gov.uk/id/local-authority/00FC),Economy And Growth,Housing Highways And Transport,Accelerated Cons Funding,Cap Land/Build-Prof Fees,Cap Land/Build-Prof Fees,YA103,27/08/2021,685493,3000,CAPITAL,ENGIE SERVICES LTD,133267
North East Lincolnshire Council,http://statistics.data.gov.uk/id/local-authority/00FC),Economy And Growth,Housing Highways And Transport,Accelerated Cons Funding,Cap Land/Build-Prof Fees,Cap Land/Build-Prof Fees,YA103,27/08/2021,685498,3000,CAPITAL,ENGIE SERVICES LTD,133267
North East Lincolnshire Council,http://statistics.data.gov.uk/id/local-authority/00FC),Economy And Growth,Housing Highways And Transport,Corporation Rd Bridge Refurb,Cap Land/Build-Build Enh Wrk,Cap Land/Build-Build Enh Wrk,YA102,05/08/2021,685278,250,CAPITAL,BANTAM STILLS & MOTION,149359
North East Lincolnshire Council,http://statistics.data.gov.uk/id/local-authority/00FC),Economy And Growth,Housing Highways And Transport,Corporation Rd Bridge Refurb,Cap Land/Build-Build Enh Wrk,Cap Land/Build-Build Enh Wrk,YA102,16/08/2021,683758,2350,CAPITAL,LANDSCOPE ENGINEERING LTD,149401
North East Lincolnshire Council,http://statistics.data.gov.uk/id/local-authority/00FC),Economy And Growth,Housing Highways And Transport,Corporation Rd Bridge Refurb,Cap Infrastr-Build Enh Wrk,Cap Infrastr-Build Enh Wrk,YC102,16/08/2021,685480,1200,CAPITAL,ENGIE SERVICES LTD,133267
North East Lincolnshire Council,http://statistics.data.gov.uk/id/local-authority/00FC),Economy And Growth,Housing Highways And Transport,Corporation Rd Bridge Refurb,Cap Infrastr-Build Enh Wrk,Cap Infrastr-Build Enh Wrk,YC102,16/08/2021,686399,5400,CAPITAL,ENGIE SERVICES LTD,133267
North East Lincolnshire Council,http://statistics.data.gov.uk/id/local-authority/00FC),Economy And Growth,Housing Highways And Transport,Corporation Rd Bridge Refurb,Cap Infrastr-Build Enh Wrk,Cap Infrastr-Build Enh Wrk,YC102,16/08/2021,685486,15000,CAPITAL,ENGIE SERVICES LTD,133267
North East Lincolnshire Council,http://statistics.data.gov.uk/id/local-authority/00FC),Economy And Growth,Housing Highways And Transport,Corporation Rd Bridge Refurb,Cap Infrastr-Build Enh Wrk,Cap Infrastr-Build Enh Wrk,YC102,17/08/2021,686649,5400,CAPITAL,ENGIE SERVICES LTD,133267
North East Lincolnshire Council,http://statistics.data.gov.uk/id/local-authority/00FC),Economy And Growth,Housing Highways And Transport,Corporation Rd Bridge Refurb,Cap Infrastr-Build Enh Wrk,Cap Infrastr-Build Enh Wrk,YC102,17/08/2021,686651,5400,CAPITAL,ENGIE SERVICES LTD,133267
North East Lincolnshire Council,http://statistics.data.gov.uk/id/local-authority/00FC),Economy And Growth,Housing Highways And Transport,Corporation Rd Bridge Refurb,Cap Infrastr-Build Enh Wrk,Cap Infrastr-Build Enh Wrk,YC102,02/08/2021,684692,9500,CAPITAL,ENGIE SERVICES LTD,133267
North East Lincolnshire Council,http://statistics.data.gov.uk/id/local-authority/00FC),Economy And Growth,Housing Highways And Transport,Corporation Rd Bridge Refurb,Cap Infrastr-Build Enh Wrk,Cap Infrastr-Build Enh Wrk,YC102,12/08/2021,685492,9500,CAPITAL,ENGIE SERVICES LTD,133267
North East Lincolnshire Council,http://statistics.data.gov.uk/id/local-authority/00FC),Economy And Growth,Housing Highways And Transport,Corporation Rd Bridge Refurb,Cap Infrastr-Build Enh Wrk,Cap Infrastr-Build Enh Wrk,YC102,12/08/2021,686396,12408.93,CAPITAL,ENGIE SERVICES LTD,133267
North East Lincolnshire Council,http://statistics.data.gov.uk/id/local-authority/00FC),Economy And Growth,Housing Highways And Transport,Corporation Rd Bridge Refurb,Cap Infrastr-Build Enh Wrk,Cap Infrastr-Build Enh Wrk,YC102,17/08/2021,686653,5400,CAPITAL,ENGIE SERVICES LTD,133267
North East Lincolnshire Council,http://statistics.data.gov.uk/id/local-authority/00FC),Economy And Growth,Housing Highways And Transport,Corporation Rd Bridge Refurb,Cap Infrastr-Build Enh Wrk,Cap Infrastr-Build Enh Wrk,YC102,19/08/2021,687144,2350,CAPITAL,ALAN WOOD PARTNERSHIP LTD,101760
North East Lincolnshire Council,http://statistics.data.gov.uk/id/local-authority/00FC),Economy And Growth,Housing Highways And Transport,Corporation Rd Bridge Refurb,Cap Infrastr-Build Enh Wrk,Cap Infrastr-Build Enh Wrk,YC102,16/08/2021,686522,6650,CAPITAL,GCS CONSULTING ENGINEERS LTD,146212
North East Lincolnshire Council,http://statistics.data.gov.uk/id/local-authority/00FC),Economy And Growth,Housing Highways And Transport,Grimsby-Immingham Ext Cycleway,Cap Infrastr-Build Enh Wrk,Cap Infrastr-Build Enh Wrk,YC102,02/08/2021,684382,2914.29,CAPITAL,ENGIE SERVICES LTD,133267
North East Lincolnshire Council,http://statistics.data.gov.uk/id/local-authority/00FC),Economy And Growth,Housing Highways And Transport,Grimsby-Immingham Ext Cycleway,Cap Infrastr-Build Enh Wrk,Cap Infrastr-Build Enh Wrk,YC102,02/08/2021,684381,4778.95,CAPITAL,ENGIE SERVICES LTD,133267
North East Lincolnshire Council,http://statistics.data.gov.uk/id/local-authority/00FC),Economy And Growth,Housing Highways And Transport,Grimsby-Immingham Ext Cycleway,Cap Infrastr-Build Enh Wrk,Cap Infrastr-Build Enh Wrk,YC102,04/08/2021,684716,1151.1,CAPITAL,J MCCANN & CO LTD,100841
North East Lincolnshire Council,http://statistics.data.gov.uk/id/local-authority/00FC),Economy And Growth,Housing Highways And Transport,Grimsby-Immingham Ext Cycleway,Cap Infrastr-Build Enh Wrk,Cap Infrastr-Build Enh Wrk,YC102,04/08/2021,684714,1501.1,CAPITAL,J MCCANN & CO LTD,100841
North East Lincolnshire Council,http://statistics.data.gov.uk/id/local-authority/00FC),Economy And Growth,Housing Highways And Transport,Green Homes Lad Phase 2,Cap Land/Build-Build Enh Wrk,Cap Land/Build-Build Enh Wrk,YA102,12/08/2021,686194,-1431.1,CAPITAL,BEVAN BRITTAN,101819
North East Lincolnshire Council,http://statistics.data.gov.uk/id/local-authority/00FC),Economy And Growth,Housing Highways And Transport,Green Homes Lad Phase 2,Cap Land/Build-Build Enh Wrk,Cap Land/Build-Build Enh Wrk,YA102,16/08/2021,686394,1302.1,CAPITAL,BEVAN BRITTAN,101819
North East Lincolnshire Council,http://statistics.data.gov.uk/id/local-authority/00FC),Resources,Law Governance And Assets,Backlog Maintenance,Cap Land/Build-Build Enh Wrk,Cap Land/Build-Build Enh Wrk,YA102,25/08/2021,687299,846.08,CAPITAL,MOBILE MINI UK LTD,105081
North East Lincolnshire Council,http://statistics.data.gov.uk/id/local-authority/00FC),Resources,Law Governance And Assets,Backlog Maintenance,Cap Land/Build-Build Enh Wrk,Cap Land/Build-Build Enh Wrk,YA102,11/08/2021,684282,875,CAPITAL,ENGIE SERVICES LTD,133267
North East Lincolnshire Council,http://statistics.data.gov.uk/id/local-authority/00FC),Resources,Law Governance And Assets,Backlog Maintenance,Cap Land/Build-Build Enh Wrk,Cap Land/Build-Build Enh Wrk,YA102,09/08/2021,685488,2000,CAPITAL,ENGIE SERVICES LTD,133267
North East Lincolnshire Council,http://statistics.data.gov.uk/id/local-authority/00FC),Resources,Law Governance And Assets,Backlog Maintenance,Cap Land/Build-Build Enh Wrk,Cap Land/Build-Build Enh Wrk,YA102,13/08/2021,686412,1065,CAPITAL,ETON-LINCS LIMITED,101510
North East Lincolnshire Council,http://statistics.data.gov.uk/id/local-authority/00FC),Resources,Law Governance And Assets,Playing Pitch Reprovision,Cap Land/Build-Prof Fees,Cap Land/Build-Prof Fees,YA103,11/08/2021,685487,10000,CAPITAL,ENGIE SERVICES LTD,133267
North East Lincolnshire Council,http://statistics.data.gov.uk/id/local-authority/00FC),Resources,Law Governance And Assets,Playing Pitch Reprovision,Cap Land/Build-Build Enh Wrk,Cap Land/Build-Build Enh Wrk,YA102,03/08/2021,678739,37036.7,CAPITAL,CIVIL ENGINEERING SPECIALIST,104444
North East Lincolnshire Council,http://statistics.data.gov.uk/id/local-authority/00FC),Resources,Law Governance And Assets,Playing Pitch Reprovision,Cap Land/Build-Build Enh Wrk,Cap Land/Build-Build Enh Wrk,YA102,11/08/2021,686167,800,CAPITAL,THE GELDER GROUP,103601
North East Lincolnshire Council,http://statistics.data.gov.uk/id/local-authority/00FC),Resources,Law Governance And Assets,Poplar Road Bus Unit Expansion,Cap Land/Build-Prof Fees,Cap Land/Build-Prof Fees,YA103,13/08/2021,685502,2000,CAPITAL,ENGIE SERVICES LTD,133267
North East Lincolnshire Council,http://statistics.data.gov.uk/id/local-authority/00FC),Resources,Law Governance And Assets,Poplar Road Bus Unit Expansion,Cap Land/Build-Prof Fees,Cap Land/Build-Prof Fees,YA103,13/08/2021,685504,1000,CAPITAL,ENGIE SERVICES LTD,133267
North East Lincolnshire Council,http://statistics.data.gov.uk/id/local-authority/00FC),Resources,Law Governance And Assets,Poplar Road Bus Unit Expansion,Cap Land/Build-Prof Fees,Cap Land/Build-Prof Fees,YA103,13/08/2021,685504,2000,CAPITAL,ENGIE SERVICES LTD,133267
North East Lincolnshire Council,http://statistics.data.gov.uk/id/local-authority/00FC),Resources,Policy Strategy And Resources,Ict Refresh,Cap Land/Build-Build Enh Wrk,Cap Land/Build-Build Enh Wrk,YA102,12/08/2021,677178,10773,CAPITAL,DELL COMPUTER CORPORATION LTD,100892
North East Lincolnshire Council,http://statistics.data.gov.uk/id/local-authority/00FC),Resources,Policy Strategy And Resources,Ict Refresh,Cap Land/Build-Build Enh Wrk,Cap Land/Build-Build Enh Wrk,YA102,06/08/2021,685393,50730.3,CAPITAL,XMA LIMITED,100699
North East Lincolnshire Council,http://statistics.data.gov.uk/id/local-authority/00FC),Resources,Policy Strategy And Resources,Ict Refresh,Cap Land/Build-Build Enh Wrk,Cap Land/Build-Build Enh Wrk,YA102,06/08/2021,685393,20689.8,CAPITAL,XMA LIMITED,100699
North East Lincolnshire Council,http://statistics.data.gov.uk/id/local-authority/00FC),Resources,Policy Strategy And Resources,Ict Refresh,Cap Land/Build-Build Enh Wrk,Cap Land/Build-Build Enh Wrk,YA102,24/08/2021,687238,2200,CAPITAL,TOTAL COMPUTER NETWORKS LTD,141310
North East Lincolnshire Council,http://statistics.data.gov.uk/id/local-authority/00FC),Resources,Policy Strategy And Resources,Ict Refresh,Cap Land/Build-Build Enh Wrk,Cap Land/Build-Build Enh Wrk,YA102,24/08/2021,687238,3450,CAPITAL,TOTAL COMPUTER NETWORKS LTD,141310
North East Lincolnshire Council,http://statistics.data.gov.uk/id/local-authority/00FC),Resources,Policy Strategy And Resources,Ict Refresh,Cap Land/Build-Build Enh Wrk,Cap Land/Build-Build Enh Wrk,YA102,17/08/2021,686642,1620,CAPITAL,XMA LIMITED,100699
North East Lincolnshire Council,http://statistics.data.gov.uk/id/local-authority/00FC),Resources,Policy Strategy And Resources,Ict Refresh,Cap Land/Build-Build Enh Wrk,Cap Land/Build-Build Enh Wrk,YA102,17/08/2021,686643,349.2,CAPITAL,XMA LIMITED,100699
North East Lincolnshire Council,http://statistics.data.gov.uk/id/local-authority/00FC),Resources,Policy Strategy And Resources,Ict Refresh,Cap Land/Build-Build Enh Wrk,Cap Land/Build-Build Enh Wrk,YA102,05/08/2021,685234,5908,CAPITAL,XMA LIMITED,100699
North East Lincolnshire Council,http://statistics.data.gov.uk/id/local-authority/00FC),Resources,Policy Strategy And Resources,Ict Refresh,Cap Intangible Assets,Cap Intangible Assets,YH101,09/08/2021,667281,611.11,CAPITAL,CISILION LTD,148323
North East Lincolnshire Council,http://statistics.data.gov.uk/id/local-authority/00FC),Resources,Policy Strategy And Resources,Ict Refresh,Cap Intangible Assets,Cap Intangible Assets,YH101,09/08/2021,667281,16466.35,CAPITAL,CISILION LTD,148323
North East Lincolnshire Council,http://statistics.data.gov.uk/id/local-authority/00FC),Resources,Policy Strategy And Resources,Ict Refresh,Cap Intangible Assets,Cap Intangible Assets,YH101,09/08/2021,667281,12666.35,CAPITAL,CISILION LTD,148323
North East Lincolnshire Council,http://statistics.data.gov.uk/id/local-authority/00FC),Resources,Policy Strategy And Resources,Ict Refresh,Cap Intangible Assets,Cap Intangible Assets,YH101,09/08/2021,667281,2777.78,CAPITAL,CISILION LTD,148323
North East Lincolnshire Council,http://statistics.data.gov.uk/id/local-authority/00FC),Resources,Policy Strategy And Resources,Ict Refresh,Cap Intangible Assets,Cap Intangible Assets,YH101,06/08/2021,684715,10000,CAPITAL,CISILION LTD,148323
North East Lincolnshire Council,http://statistics.data.gov.uk/id/local-authority/00FC),Resources,Policy Strategy And Resources,System Investment,Cap Veh Plt Eqp-Purchase,Cap Veh Plt Eqp-Purchase,YB101,13/08/2021,686509,1062,CAPITAL,MIDLAND SOFTWARE LTD,102633
North East Lincolnshire Council,http://statistics.data.gov.uk/id/local-authority/00FC),Resources,Policy Strategy And Resources,System Investment,Cap Veh Plt Eqp-Purchase,Cap Veh Plt Eqp-Purchase,YB101,13/08/2021,686509,1062,CAPITAL,MIDLAND SOFTWARE LTD,102633
North East Lincolnshire Council,http://statistics.data.gov.uk/id/local-authority/00FC),Resources,Policy Strategy And Resources,System Investment,Cap Veh Plt Eqp-Purchase,Cap Veh Plt Eqp-Purchase,YB101,13/08/2021,686509,1062,CAPITAL,MIDLAND SOFTWARE LTD,102633
North East Lincolnshire Council,http://statistics.data.gov.uk/id/local-authority/00FC),Resources,Policy Strategy And Resources,System Investment,Cap Veh Plt Eqp-Purchase,Cap Veh Plt Eqp-Purchase,YB101,13/08/2021,686510,522,CAPITAL,MIDLAND SOFTWARE LTD,102633
North East Lincolnshire Council,http://statistics.data.gov.uk/id/local-authority/00FC),Environment,Environment,Fleet Replacement Programme,Cap Veh Plt Eqp-Purchase,Cap Veh Plt Eqp-Purchase,YB101,24/08/2021,686564,14980,CAPITAL,TRAFALGAR CLEANING EQUIPMENT,112848
North East Lincolnshire Council,http://statistics.data.gov.uk/id/local-authority/00FC),Environment,Environment,Fleet Replacement Programme,Cap Veh Plt Eqp-Purchase,Cap Veh Plt Eqp-Purchase,YB101,24/08/2021,686564,1109.9,CAPITAL,TRAFALGAR CLEANING EQUIPMENT,112848
North East Lincolnshire Council,http://statistics.data.gov.uk/id/local-authority/00FC),Environment,Environment,Fleet Replacement Programme,Cap Veh Plt Eqp-Purchase,Cap Veh Plt Eqp-Purchase,YB101,24/08/2021,686564,999.8,CAPITAL,TRAFALGAR CLEANING EQUIPMENT,112848
North East Lincolnshire Council,http://statistics.data.gov.uk/id/local-authority/00FC),Environment,Environment,Fleet Replacement Programme,Cap Veh Plt Eqp-Purchase,Cap Veh Plt Eqp-Purchase,YB101,31/08/2021,687845,14995,CAPITAL,J D CLEVE LTD,149633
North East Lincolnshire Council,http://statistics.data.gov.uk/id/local-authority/00FC),Environment,Environment,Fleet Replacement Programme,Cap Veh Plt Eqp-Purchase,Cap Veh Plt Eqp-Purchase,YB101,09/08/2021,684372,324,CAPITAL,THE COMPOST BAG COMPANY,148524
North East Lincolnshire Council,http://statistics.data.gov.uk/id/local-authority/00FC),Environment,Environment,Fleet Replacement Programme,Cap Veh Plt Eqp-Purchase,Cap Veh Plt Eqp-Purchase,YB101,06/08/2021,685206,780,CAPITAL,THE COMPOST BAG COMPANY,148524
North East Lincolnshire Council,http://statistics.data.gov.uk/id/local-authority/00FC),Environment,Environment,Fleet Replacement Programme,Cap Veh Plt Eqp-Purchase,Cap Veh Plt Eqp-Purchase,YB101,16/08/2021,686407,272.6,CAPITAL,TOTAL SIGNS AND GRAPHICS LTD,104775
North East Lincolnshire Council,http://statistics.data.gov.uk/id/local-authority/00FC),Environment,Environment,Smart Energy For Business,Cap Land/Build-Build Enh Wrk,Cap Land/Build-Build Enh Wrk,YA102,31/08/2021,687837,12357,CAPITAL,ARTHUR SMITH (LINCS) LTD,123077
North East Lincolnshire Council,http://statistics.data.gov.uk/id/local-authority/00FC),Environment,Environment,Smart Energy For Business,Cap Land/Build-Build Enh Wrk,Cap Land/Build-Build Enh Wrk,YA102,12/08/2021,686226,4219.2,CAPITAL,CRYSTAL NEWS LIMITED,149591
North East Lincolnshire Council,http://statistics.data.gov.uk/id/local-authority/00FC),Environment,Environment,Smart Energy For Business,Cap Land/Build-Build Enh Wrk,Cap Land/Build-Build Enh Wrk,YA102,26/08/2021,687572,10117.61,CAPITAL,GANSTEAD PARK GOLF CLUB LTD,148447
North East Lincolnshire Council,http://statistics.data.gov.uk/id/local-authority/00FC),Environment,Environment,Smart Energy For Business,Cap Land/Build-Build Enh Wrk,Cap Land/Build-Build Enh Wrk,YA102,26/08/2021,687656,10100,CAPITAL,GIFTSONLINE4U,148888
North East Lincolnshire Council,http://statistics.data.gov.uk/id/local-authority/00FC),Environment,Environment,Smart Energy For Business,Cap Land/Build-Build Enh Wrk,Cap Land/Build-Build Enh Wrk,YA102,26/08/2021,687597,2647.51,CAPITAL,HUMBERSIDE INSTRUMENTS LTD,113874
North East Lincolnshire Council,http://statistics.data.gov.uk/id/local-authority/00FC),Environment,Environment,Smart Energy For Business,Cap Land/Build-Build Enh Wrk,Cap Land/Build-Build Enh Wrk,YA102,31/08/2021,687834,6232.09,CAPITAL,NEWBRIDGE TACK AND FEEDS,149291
North East Lincolnshire Council,http://statistics.data.gov.uk/id/local-authority/00FC),Environment,Environment,Smart Energy For Business,Cap Land/Build-Build Enh Wrk,Cap Land/Build-Build Enh Wrk,YA102,26/08/2021,687596,10650,CAPITAL,SIMPLY META LTD,149338
North East Lincolnshire Council,http://statistics.data.gov.uk/id/local-authority/00FC),Environment,Environment,Smart Energy For Business,Cap Land/Build-Build Enh Wrk,Cap Land/Build-Build Enh Wrk,YA102,26/08/2021,687599,20000,CAPITAL,BUSHWALL LIMITED,149306
North East Lincolnshire Council,http://statistics.data.gov.uk/id/local-authority/00FC),Environment,Environment,Smart Energy For Business,Cap Land/Build-Build Enh Wrk,Cap Land/Build-Build Enh Wrk,YA102,26/08/2021,687598,22346.61,CAPITAL,GRANTHAM TENNIS CLUB LIMITED,148999
North East Lincolnshire Council,http://statistics.data.gov.uk/id/local-authority/00FC),Environment,Environment,Smart Energy For Business,Cap Land/Build-Build Enh Wrk,Cap Land/Build-Build Enh Wrk,YA102,24/08/2021,687188,5298.05,CAPITAL,XPRESS DELIVERY LTD,147198
North East Lincolnshire Council,http://statistics.data.gov.uk/id/local-authority/00FC),Environment,Environment,Smart Energy For Business,Cap Land/Build-Build Enh Wrk,Cap Land/Build-Build Enh Wrk,YA102,31/08/2021,687809,24975,CAPITAL,HitekELECTRONIC MATERIALS,144148
North East Lincolnshire Council,http://statistics.data.gov.uk/id/local-authority/00FC),Environment,Environment,Smart Energy For Business,Cap Land/Build-Build Enh Wrk,Cap Land/Build-Build Enh Wrk,YA102,12/08/2021,686145,21229.16,CAPITAL,YARDBIRDS ROCK CLUB LTD,116191
North East Lincolnshire Council,http://statistics.data.gov.uk/id/local-authority/00FC),Environment,Environment,Smart Energy For Business,Cap Land/Build-Build Enh Wrk,Cap Land/Build-Build Enh Wrk,YA102,04/08/2021,685186,11215,CAPITAL,MONSTER GROUP UK LIMITED,149198
North East Lincolnshire Council,http://statistics.data.gov.uk/id/local-authority/00FC),Environment,Environment,Smart Energy For Business,Cap Land/Build-Build Enh Wrk,Cap Land/Build-Build Enh Wrk,YA102,10/08/2021,685651,10700,CAPITAL,BUTLERBUS TECHNIK LTD,149197
North East Lincolnshire Council,http://statistics.data.gov.uk/id/local-authority/00FC),Environment,Environment,Smart Energy For Business,Cap Land/Build-Build Enh Wrk,Cap Land/Build-Build Enh Wrk,YA102,11/08/2021,686195,20451.2,CAPITAL,SCIS UK LTD,149486
North East Lincolnshire Council,http://statistics.data.gov.uk/id/local-authority/00FC),Environment,Environment,Smart Energy For Business,Cap Land/Build-Build Enh Wrk,Cap Land/Build-Build Enh Wrk,YA102,19/08/2021,686919,7990,CAPITAL,LED PANEL STORE LTD,145911
North East Lincolnshire Council,http://statistics.data.gov.uk/id/local-authority/00FC),Environment,Environment,Smart Energy For Business,Cap Land/Build-Build Enh Wrk,Cap Land/Build-Build Enh Wrk,YA102,31/08/2021,687833,4629,CAPITAL,THE GYM HORNCASTLE,149456
North East Lincolnshire Council,http://statistics.data.gov.uk/id/local-authority/00FC),Environment,Environment,Smart Energy For Business,Cap Land/Build-Build Enh Wrk,Cap Land/Build-Build Enh Wrk,YA102,03/08/2021,684700,21900,CAPITAL,T I TRADING LIMITED,148841
North East Lincolnshire Council,http://statistics.data.gov.uk/id/local-authority/00FC),Environment,Environment,Smart Energy For Business,Cap Land/Build-Build Enh Wrk,Cap Land/Build-Build Enh Wrk,YA102,31/08/2021,687842,500,CAPITAL,GLOW INFLATABLES LIMITED,149458
North East Lincolnshire Council,http://statistics.data.gov.uk/id/local-authority/00FC),Environment,Environment,Smart Energy For Business,Cap Land/Build-Build Enh Wrk,Cap Land/Build-Build Enh Wrk,YA102,05/08/2021,685166,497.5,CAPITAL,JENNIFER PRECIOUS,149423
North East Lincolnshire Council,http://statistics.data.gov.uk/id/local-authority/00FC),Environment,Environment,Smart Energy For Business,Cap Land/Build-Build Enh Wrk,Cap Land/Build-Build Enh Wrk,YA102,17/08/2021,686547,500,CAPITAL,NEMOS CAFE LTD,149089
North East Lincolnshire Council,http://statistics.data.gov.uk/id/local-authority/00FC),Environment,Environment,Depot Rationalisation,Cap Land/Build-Purchase,Cap Land/Build-Purchase,YA101,10/08/2021,685586,7854,CAPITAL,PORTAL PLAN QUEST LTD,144928
North East Lincolnshire Council,http://statistics.data.gov.uk/id/local-authority/00FC),Environment,Environment,Depot Rationalisation,Cap Land/Build-Purchase,Cap Land/Build-Purchase,YA101,02/08/2021,684681,7500,CAPITAL,ENGIE SERVICES LTD,133267
North East Lincolnshire Council,http://statistics.data.gov.uk/id/local-authority/00FC),Environment,Environment,Depot Rationalisation,Cap Land/Build-Purchase,Cap Land/Build-Purchase,YA101,13/08/2021,685400,3766.67,CAPITAL,WHITE ROSE BUILDINGS LTD,149511
North East Lincolnshire Council,http://statistics.data.gov.uk/id/local-authority/00FC),Environment,Environment,Depot Rationalisation,Cap Land/Build-Purchase,Cap Land/Build-Purchase,YA101,13/08/2021,685400,1875,CAPITAL,WHITE ROSE BUILDINGS LTD,149511
North East Lincolnshire Council,http://statistics.data.gov.uk/id/local-authority/00FC),Environment,Environment,Scartho Cem Lodge/Waiting Rm,Cap Land/Build-Build Enh Wrk,Cap Land/Build-Build Enh Wrk,YA102,04/08/2021,685089,7692.32,CAPITAL,ENGIE SERVICES LTD,133267
North East Lincolnshire Council,http://statistics.data.gov.uk/id/local-authority/00FC),Environment,Environment,Resort Management,Cap Land/Build-Build Enh Wrk,Cap Land/Build-Build Enh Wrk,YA102,23/08/2021,686558,556.88,CAPITAL,MOBILE MINI UK LTD,105081
North East Lincolnshire Council,http://statistics.data.gov.uk/id/local-authority/00FC),Environment,Environment,Resort Management,Cap Land/Build-Build Enh Wrk,Cap Land/Build-Build Enh Wrk,YA102,25/08/2021,687255,556.88,CAPITAL,MOBILE MINI UK LTD,105081
North East Lincolnshire Council,http://statistics.data.gov.uk/id/local-authority/00FC),Environment,Environment,Resort Management,Cap Land/Build-Build Enh Wrk,Cap Land/Build-Build Enh Wrk,YA102,13/08/2021,686473,1500,CAPITAL,LINCS ELECTRICAL SERVICES LTD,102044
North East Lincolnshire Council,http://statistics.data.gov.uk/id/local-authority/00FC),Environment,Environment,Resort Management,Cap Land/Build-Build Enh Wrk,Cap Land/Build-Build Enh Wrk,YA102,13/08/2021,686473,350,CAPITAL,LINCS ELECTRICAL SERVICES LTD,102044
North East Lincolnshire Council,http://statistics.data.gov.uk/id/local-authority/00FC),Environment,Environment,Public Sector Decarbonisation,Cap Land/Build-Build Enh Wrk,Cap Land/Build-Build Enh Wrk,YA102,24/08/2021,687308,35850.46,CAPITAL,TOPCON BUILDING LTD,144162
North East Lincolnshire Council,http://statistics.data.gov.uk/id/local-authority/00FC),Environment,Environment,Public Sector Decarbonisation,Cap Land/Build-Build Enh Wrk,Cap Land/Build-Build Enh Wrk,YA102,24/08/2021,687309,44121.42,CAPITAL,TOPCON BUILDING LTD,144162
North East Lincolnshire Council,http://statistics.data.gov.uk/id/local-authority/00FC),Environment,Environment,Public Sector Decarbonisation,Cap Land/Build-Build Enh Wrk,Cap Land/Build-Build Enh Wrk,YA102,23/08/2021,687138,66830.6,CAPITAL,TOPCON BUILDING LTD,144162
North East Lincolnshire Council,http://statistics.data.gov.uk/id/local-authority/00FC),Environment,Environment,Public Sector Decarbonisation,Cap Land/Build-Build Enh Wrk,Cap Land/Build-Build Enh Wrk,YA102,26/08/2021,687658,59913.64,CAPITAL,TOPCON BUILDING LTD,144162
North East Lincolnshire Council,http://statistics.data.gov.uk/id/local-authority/00FC),Environment,Environment,Public Sector Decarbonisation,Cap Land/Build-Build Enh Wrk,Cap Land/Build-Build Enh Wrk,YA102,06/08/2021,685419,78003.49,CAPITAL,TUCKER AND TUNSTALLS LTD,107393
North East Lincolnshire Council,http://statistics.data.gov.uk/id/local-authority/00FC),Environment,Environment,Public Sector Decarbonisation,Cap Land/Build-Prof Fees,Cap Land/Build-Prof Fees,YA103,02/08/2021,684835,11942.64,CAPITAL,ENGIE SERVICES LTD,133267
North East Lincolnshire Council,http://statistics.data.gov.uk/id/local-authority/00FC),Adult Services,Adult Services,Hps-Disabled Fac. Grants,Cap Grants To O/Side Sources,Cap Grants To O/Side Sources,YJ101,06/08/2021,685409,5440,CAPITAL,OBAM LIFT SERVICES LTD,112666
North East Lincolnshire Council,http://statistics.data.gov.uk/id/local-authority/00FC),Adult Services,Adult Services,Hps-Disabled Fac. Grants,Cap Grants To O/Side Sources,Cap Grants To O/Side Sources,YJ101,11/08/2021,685540,9641.86,CAPITAL,JC POMFRET CONSTRUCTION LTD,136453
North East Lincolnshire Council,http://statistics.data.gov.uk/id/local-authority/00FC),Adult Services,Adult Services,Hps-Disabled Fac. Grants,Cap Grants To O/Side Sources,Cap Grants To O/Side Sources,YJ101,18/08/2021,686531,14228.9,CAPITAL,ABLE 4 ENTERPRISE LTD,120159
North East Lincolnshire Council,http://statistics.data.gov.uk/id/local-authority/00FC),Adult Services,Adult Services,Hps-Disabled Fac. Grants,Cap Grants To O/Side Sources,Cap Grants To O/Side Sources,YJ101,10/08/2021,686162,2722.21,CAPITAL,DOLPHIN MOBILITY EAST MIDLANDS LTD,101317
North East Lincolnshire Council,http://statistics.data.gov.uk/id/local-authority/00FC),Adult Services,Adult Services,Hps-Disabled Fac. Grants,Cap Grants To O/Side Sources,Cap Grants To O/Side Sources,YJ101,18/08/2021,686529,10578.47,CAPITAL,VIC HANSEN BUILDING & JOINERY LTD,103981
North East Lincolnshire Council,http://statistics.data.gov.uk/id/local-authority/00FC),Adult Services,Adult Services,Hps-Disabled Fac. Grants,Cap Grants To O/Side Sources,Cap Grants To O/Side Sources,YJ101,18/08/2021,686533,2900.36,CAPITAL,DOLPHIN MOBILITY EAST MIDLANDS LTD,101317
North East Lincolnshire Council,http://statistics.data.gov.uk/id/local-authority/00FC),Adult Services,Adult Services,Hps-Disabled Fac. Grants,Cap Grants To O/Side Sources,Cap Grants To O/Side Sources,YJ101,23/08/2021,687204,13600,CAPITAL,TSPRO LTD,146603
North East Lincolnshire Council,http://statistics.data.gov.uk/id/local-authority/00FC),Adult Services,Adult Services,Hps-Disabled Fac. Grants,Cap Grants To O/Side Sources,Cap Grants To O/Side Sources,YJ101,05/08/2021,684594,2149.5,CAPITAL,ENGIE SERVICES LTD,133267
North East Lincolnshire Council,http://statistics.data.gov.uk/id/local-authority/00FC),Adult Services,Adult Services,Hps-Disabled Fac. Grants,Cap Grants To O/Side Sources,Cap Grants To O/Side Sources,YJ101,17/08/2021,686640,4725,CAPITAL,DOLPHIN MOBILITY EAST MIDLANDS LTD,101317
North East Lincolnshire Council,http://statistics.data.gov.uk/id/local-authority/00FC),Adult Services,Adult Services,Hps-Disabled Fac. Grants,Cap Grants To O/Side Sources,Cap Grants To O/Side Sources,YJ101,05/08/2021,684593,7461,CAPITAL,ENGIE SERVICES LTD,133267
North East Lincolnshire Council,http://statistics.data.gov.uk/id/local-authority/00FC),Adult Services,Adult Services,Hps-Disabled Fac. Grants,Cap Grants To O/Side Sources,Cap Grants To O/Side Sources,YJ101,16/08/2021,686416,14236.61,CAPITAL,ABLE 4 ENTERPRISE LTD,120159
North East Lincolnshire Council,http://statistics.data.gov.uk/id/local-authority/00FC),Adult Services,Adult Services,Hps-Disabled Fac. Grants,Cap Grants To O/Side Sources,Cap Grants To O/Side Sources,YJ101,02/08/2021,684590,13536.56,CAPITAL,ASKERTON HOMES LTD,145694
North East Lincolnshire Council,http://statistics.data.gov.uk/id/local-authority/00FC),Adult Services,Adult Services,Hps-Disabled Fac. Grants,Cap Grants To O/Side Sources,Cap Grants To O/Side Sources,YJ101,16/08/2021,686410,2745,CAPITAL,OBAM LIFT SERVICES LTD,112666
North East Lincolnshire Council,http://statistics.data.gov.uk/id/local-authority/00FC),Adult Services,Adult Services,Hps-Disabled Fac. Grants,Cap Grants To O/Side Sources,Cap Grants To O/Side Sources,YJ101,24/08/2021,687213,11353.39,CAPITAL,E S RUDKIN LTD,100632
North East Lincolnshire Council,http://statistics.data.gov.uk/id/local-authority/00FC),Adult Services,Adult Services,Hps-Disabled Fac. Grants,Cap Grants To O/Side Sources,Cap Grants To O/Side Sources,YJ101,16/08/2021,686302,1611,CAPITAL,OBAM LIFT SERVICES LTD,112666
North East Lincolnshire Council,http://statistics.data.gov.uk/id/local-authority/00FC),Adult Services,Adult Services,Hps-Disabled Fac. Grants,Cap Grants To O/Side Sources,Cap Grants To O/Side Sources,YJ101,02/08/2021,684799,1093.38,CAPITAL,R G CARTER LINCOLN LTD,146557
North East Lincolnshire Council,http://statistics.data.gov.uk/id/local-authority/00FC),Adult Services,Adult Services,Hps-Disabled Fac. Grants,Cap Grants To O/Side Sources,Cap Grants To O/Side Sources,YJ101,19/08/2021,687139,3220,CAPITAL,OBAM LIFT SERVICES LTD,112666
North East Lincolnshire Council,http://statistics.data.gov.uk/id/local-authority/00FC),Adult Services,Adult Services,Hps-Disabled Fac. Grants,Cap Land/Build-Build Enh Wrk,Cap Land/Build-Build Enh Wrk,YA102,26/08/2021,687659,15420.2,CAPITAL,TOPCON BUILDING LTD,144162
North East Lincolnshire Council,http://statistics.data.gov.uk/id/local-authority/00FC),Adult Services,Adult Services,Hps-Disabled Fac. Grants,Cap Land/Build-Prof Fees,Cap Land/Build-Prof Fees,YA103,10/08/2021,685575,4448.75,CAPITAL,N LINCS & GOOLE HOSPITALS NHS FOUNDATION TRUS,111074
North East Lincolnshire Council,http://statistics.data.gov.uk/id/local-authority/00FC),Childrens Services,Education And Inclusion,Access And Education Services,Miscellaneous Expenses,Other Expenses General,LL119,02/08/2021,684426,2225,REVENUE,LEARNING4LIFE-GY-CIC,144120
North East Lincolnshire Council,http://statistics.data.gov.uk/id/local-authority/00FC),Childrens Services,Education And Inclusion,Access And Education Services,Contract Hire-Operating Leases,Vehicles - Contract Hire,JC101,13/08/2021,686480,1076.1,REVENUE,LINKS TAXIS,100546
North East Lincolnshire Council,http://statistics.data.gov.uk/id/local-authority/00FC),Childrens Services,Education And Inclusion,Access And Education Services,Contract Hire-Operating Leases,Vehicles - Contract Hire,JC101,03/08/2021,685106,506,REVENUE,LINKS TAXIS,100546
North East Lincolnshire Council,http://statistics.data.gov.uk/id/local-authority/00FC),Childrens Services,Education And Inclusion,Access And Education Services,Contract Hire-Operating Leases,Vehicles - Contract Hire,JC101,10/08/2021,686178,1526,REVENUE,LINKS TAXIS,100546
North East Lincolnshire Council,http://statistics.data.gov.uk/id/local-authority/00FC),Childrens Services,Education And Inclusion,Access And Education Services,Contract Hire-Operating Leases,Vehicles - Contract Hire,JC101,05/08/2021,685295,435,REVENUE,SMT (LINCS) ENTERPRISES LTD,141297
North East Lincolnshire Council,http://statistics.data.gov.uk/id/local-authority/00FC),Childrens Services,Education And Inclusion,Access And Education Services,Contract Hire-Operating Leases,Vehicles - Contract Hire,JC101,13/08/2021,686477,250,REVENUE,LINKS TAXIS,100546
North East Lincolnshire Council,http://statistics.data.gov.uk/id/local-authority/00FC),Childrens Services,Education And Inclusion,Access And Education Services,Contract Hire-Operating Leases,Vehicles - Contract Hire,JC101,02/08/2021,684813,320,REVENUE,SMT (LINCS) ENTERPRISES LTD,141297
North East Lincolnshire Council,http://statistics.data.gov.uk/id/local-authority/00FC),Childrens Services,Education And Inclusion,Access And Education Services,Contract Hire-Operating Leases,Vehicles - Contract Hire,JC101,02/08/2021,684811,557,REVENUE,SMT (LINCS) ENTERPRISES LTD,141297
North East Lincolnshire Council,http://statistics.data.gov.uk/id/local-authority/00FC),Childrens Services,Education And Inclusion,Access And Education Services,Contract Hire-Operating Leases,Vehicles - Contract Hire,JC101,03/08/2021,684812,661,REVENUE,SMT (LINCS) ENTERPRISES LTD,141297
North East Lincolnshire Council,http://statistics.data.gov.uk/id/local-authority/00FC),Childrens Services,Education And Inclusion,Access And Education Services,Contract Hire-Operating Leases,Vehicles - Contract Hire,JC101,05/08/2021,685211,500,REVENUE,SMT (LINCS) ENTERPRISES LTD,141297
North East Lincolnshire Council,http://statistics.data.gov.uk/id/local-authority/00FC),Childrens Services,Education And Inclusion,Access And Education Services,Contract Hire-Operating Leases,Vehicles - Contract Hire,JC101,03/08/2021,684871,1231.4,REVENUE,LINKS TAXIS,100546
North East Lincolnshire Council,http://statistics.data.gov.uk/id/local-authority/00FC),Childrens Services,Education And Inclusion,Access And Education Services,Contract Hire-Operating Leases,Vehicles - Contract Hire,JC101,10/08/2021,686173,829.6,REVENUE,LINKS TAXIS,100546
North East Lincolnshire Council,http://statistics.data.gov.uk/id/local-authority/00FC),Childrens Services,Education And Inclusion,Access And Education Services,Contract Hire-Operating Leases,Vehicles - Contract Hire,JC101,04/08/2021,685109,828.1,REVENUE,LINKS TAXIS,100546
North East Lincolnshire Council,http://statistics.data.gov.uk/id/local-authority/00FC),Childrens Services,Education And Inclusion,Access And Education Services,Private Contractors,Concessionary Fares,PH104,02/08/2021,684676,2845.5,REVENUE,STAGECOACH SERVICES,101404
North East Lincolnshire Council,http://statistics.data.gov.uk/id/local-authority/00FC),Childrens Services,Education And Inclusion,Access And Education Services,Private Contractors,Concessionary Fares,PH104,03/08/2021,684677,1410,REVENUE,STAGECOACH SERVICES,101404
North East Lincolnshire Council,http://statistics.data.gov.uk/id/local-authority/00FC),Childrens Services,Education And Inclusion,Access And Education Services,Contract Hire-Operating Leases,Vehicles - Contract Hire,JC101,05/08/2021,685119,1040.05,REVENUE,LINKS TAXIS,100546
North East Lincolnshire Council,http://statistics.data.gov.uk/id/local-authority/00FC),Childrens Services,Education And Inclusion,Access And Education Services,Contract Hire-Operating Leases,Vehicles - Contract Hire,JC101,26/08/2021,687601,1054,REVENUE,LINKS TAXIS,100546
North East Lincolnshire Council,http://statistics.data.gov.uk/id/local-authority/00FC),Childrens Services,Education And Inclusion,Access And Education Services,Contract Hire-Operating Leases,Vehicles - Contract Hire,JC101,03/08/2021,685112,928,REVENUE,LINKS TAXIS,100546
North East Lincolnshire Council,http://statistics.data.gov.uk/id/local-authority/00FC),Childrens Services,Education And Inclusion,Access And Education Services,Contract Hire-Operating Leases,Vehicles - Contract Hire,JC101,03/08/2021,685144,1840,REVENUE,AMVALE MEDICAL TRANSPORT LTD,130777
North East Lincolnshire Council,http://statistics.data.gov.uk/id/local-authority/00FC),Childrens Services,Education And Inclusion,Access And Education Services,Contract Hire-Operating Leases,Vehicles - Contract Hire,JC101,05/08/2021,685095,870,REVENUE,LINKS TAXIS,100546
North East Lincolnshire Council,http://statistics.data.gov.uk/id/local-authority/00FC),Childrens Services,Education And Inclusion,Access And Education Services,Contract Hire-Operating Leases,Vehicles - Contract Hire,JC101,12/08/2021,686292,420,REVENUE,COXONS CARS LIMITED,100578
North East Lincolnshire Council,http://statistics.data.gov.uk/id/local-authority/00FC),Childrens Services,Education And Inclusion,Access And Education Services,Contract Hire-Operating Leases,Vehicles - Contract Hire,JC101,05/08/2021,685288,384,REVENUE,SMT (LINCS) ENTERPRISES LTD,141297
North East Lincolnshire Council,http://statistics.data.gov.uk/id/local-authority/00FC),Childrens Services,Education And Inclusion,Access And Education Services,Contract Hire-Operating Leases,Vehicles - Contract Hire,JC101,05/08/2021,685292,585,REVENUE,SMT (LINCS) ENTERPRISES LTD,141297
North East Lincolnshire Council,http://statistics.data.gov.uk/id/local-authority/00FC),Childrens Services,Education And Inclusion,Access And Education Services,Contract Hire-Operating Leases,Vehicles - Contract Hire,JC101,05/08/2021,685284,577.5,REVENUE,SMT (LINCS) ENTERPRISES LTD,141297
North East Lincolnshire Council,http://statistics.data.gov.uk/id/local-authority/00FC),Childrens Services,Education And Inclusion,Access And Education Services,Contract Hire-Operating Leases,Vehicles - Contract Hire,JC101,05/08/2021,685285,945,REVENUE,SMT (LINCS) ENTERPRISES LTD,141297
North East Lincolnshire Council,http://statistics.data.gov.uk/id/local-authority/00FC),Childrens Services,Education And Inclusion,Access And Education Services,Contract Hire-Operating Leases,Vehicles - Contract Hire,JC101,16/08/2021,685294,865.6,REVENUE,SMT (LINCS) ENTERPRISES LTD,141297
North East Lincolnshire Council,http://statistics.data.gov.uk/id/local-authority/00FC),Childrens Services,Education And Inclusion,Access And Education Services,Contract Hire-Operating Leases,Vehicles - Contract Hire,JC101,16/08/2021,686242,651,REVENUE,DRS TAXI SERVICE,141083
North East Lincolnshire Council,http://statistics.data.gov.uk/id/local-authority/00FC),Childrens Services,Education And Inclusion,Access And Education Services,Contract Hire-Operating Leases,Vehicles - Contract Hire,JC101,05/08/2021,685293,600,REVENUE,SMT (LINCS) ENTERPRISES LTD,141297
North East Lincolnshire Council,http://statistics.data.gov.uk/id/local-authority/00FC),Childrens Services,Education And Inclusion,Access And Education Services,Contract Hire-Operating Leases,Vehicles - Contract Hire,JC101,02/08/2021,684811,279,REVENUE,SMT (LINCS) ENTERPRISES LTD,141297
North East Lincolnshire Council,http://statistics.data.gov.uk/id/local-authority/00FC),Childrens Services,Education And Inclusion,Access And Education Services,Contract Hire-Operating Leases,Vehicles - Contract Hire,JC101,03/08/2021,684812,331,REVENUE,SMT (LINCS) ENTERPRISES LTD,141297
North East Lincolnshire Council,http://statistics.data.gov.uk/id/local-authority/00FC),Childrens Services,Education And Inclusion,Access And Education Services,Contract Hire-Operating Leases,Vehicles - Contract Hire,JC101,05/08/2021,685211,328,REVENUE,SMT (LINCS) ENTERPRISES LTD,141297
North East Lincolnshire Council,http://statistics.data.gov.uk/id/local-authority/00FC),Childrens Services,Education And Inclusion,Access And Education Services,Contract Hire-Operating Leases,Vehicles - Contract Hire,JC101,05/08/2021,685279,435,REVENUE,SMT (LINCS) ENTERPRISES LTD,141297
North East Lincolnshire Council,http://statistics.data.gov.uk/id/local-authority/00FC),Childrens Services,Education And Inclusion,Access And Education Services,Contract Hire-Operating Leases,Vehicles - Contract Hire,JC101,05/08/2021,685296,435,REVENUE,SMT (LINCS) ENTERPRISES LTD,141297
North East Lincolnshire Council,http://statistics.data.gov.uk/id/local-authority/00FC),Childrens Services,Education And Inclusion,Access And Education Services,Contract Hire-Operating Leases,Vehicles - Contract Hire,JC101,05/08/2021,685289,698.4,REVENUE,SMT (LINCS) ENTERPRISES LTD,141297
North East Lincolnshire Council,http://statistics.data.gov.uk/id/local-authority/00FC),Childrens Services,Education And Inclusion,Access And Education Services,Contract Hire-Operating Leases,Vehicles - Contract Hire,JC101,03/08/2021,685139,1904,REVENUE,AMVALE MEDICAL TRANSPORT LTD,130777
North East Lincolnshire Council,http://statistics.data.gov.uk/id/local-authority/00FC),Childrens Services,Education And Inclusion,Access And Education Services,Contract Hire-Operating Leases,Vehicles - Contract Hire,JC101,03/08/2021,684870,347.9,REVENUE,LINKS TAXIS,100546
North East Lincolnshire Council,http://statistics.data.gov.uk/id/local-authority/00FC),Childrens Services,Education And Inclusion,Access And Education Services,Contract Hire-Operating Leases,Vehicles - Contract Hire,JC101,03/08/2021,685136,2310,REVENUE,AMVALE MEDICAL TRANSPORT LTD,130777
North East Lincolnshire Council,http://statistics.data.gov.uk/id/local-authority/00FC),Childrens Services,Education And Inclusion,Access And Education Services,Contract Hire-Operating Leases,Vehicles - Contract Hire,JC101,03/08/2021,685137,2064,REVENUE,AMVALE MEDICAL TRANSPORT LTD,130777
North East Lincolnshire Council,http://statistics.data.gov.uk/id/local-authority/00FC),Childrens Services,Education And Inclusion,Access And Education Services,Contract Hire-Operating Leases,Vehicles - Contract Hire,JC101,04/08/2021,685145,4200,REVENUE,AMVALE MEDICAL TRANSPORT LTD,130777
North East Lincolnshire Council,http://statistics.data.gov.uk/id/local-authority/00FC),Childrens Services,Education And Inclusion,Access And Education Services,Contract Hire-Operating Leases,Vehicles - Contract Hire,JC101,04/08/2021,685140,2064,REVENUE,AMVALE MEDICAL TRANSPORT LTD,130777
North East Lincolnshire Council,http://statistics.data.gov.uk/id/local-authority/00FC),Childrens Services,Education And Inclusion,Access And Education Services,Contract Hire-Operating Leases,Vehicles - Contract Hire,JC101,03/08/2021,685142,3440,REVENUE,AMVALE MEDICAL TRANSPORT LTD,130777
North East Lincolnshire Council,http://statistics.data.gov.uk/id/local-authority/00FC),Childrens Services,Education And Inclusion,Access And Education Services,Contract Hire-Operating Leases,Vehicles - Contract Hire,JC101,03/08/2021,685143,1904,REVENUE,AMVALE MEDICAL TRANSPORT LTD,130777
North East Lincolnshire Council,http://statistics.data.gov.uk/id/local-authority/00FC),Childrens Services,Education And Inclusion,Access And Education Services,Contract Hire-Operating Leases,Vehicles - Contract Hire,JC101,03/08/2021,685141,3472,REVENUE,AMVALE MEDICAL TRANSPORT LTD,130777
North East Lincolnshire Council,http://statistics.data.gov.uk/id/local-authority/00FC),Childrens Services,Education And Inclusion,Access And Education Services,Contract Hire-Operating Leases,Vehicles - Contract Hire,JC101,03/08/2021,684820,643.5,REVENUE,AA RADIO CARS LTD,101222
North East Lincolnshire Council,http://statistics.data.gov.uk/id/local-authority/00FC),Childrens Services,Education And Inclusion,Access And Education Services,Contract Hire-Operating Leases,Vehicles - Contract Hire,JC101,03/08/2021,684819,658,REVENUE,AA RADIO CARS LTD,101222
North East Lincolnshire Council,http://statistics.data.gov.uk/id/local-authority/00FC),Childrens Services,Education And Inclusion,Access And Education Services,Contract Hire-Operating Leases,Vehicles - Contract Hire,JC101,03/08/2021,684818,587.5,REVENUE,AA RADIO CARS LTD,101222
North East Lincolnshire Council,http://statistics.data.gov.uk/id/local-authority/00FC),Childrens Services,Education And Inclusion,Access And Education Services,Contract Hire-Operating Leases,Vehicles - Contract Hire,JC101,12/08/2021,686314,720,REVENUE,FON A CAR LTD,140517
North East Lincolnshire Council,http://statistics.data.gov.uk/id/local-authority/00FC),Childrens Services,Education And Inclusion,Access And Education Services,Contract Hire-Operating Leases,Vehicles - Contract Hire,JC101,06/08/2021,685396,768,REVENUE,SMT (LINCS) ENTERPRISES LTD,141297
North East Lincolnshire Council,http://statistics.data.gov.uk/id/local-authority/00FC),Childrens Services,Education And Inclusion,Access And Education Services,Contract Hire-Operating Leases,Vehicles - Contract Hire,JC101,19/08/2021,686958,768,REVENUE,SMT (LINCS) ENTERPRISES LTD,141297
North East Lincolnshire Council,http://statistics.data.gov.uk/id/local-authority/00FC),Childrens Services,Education And Inclusion,Access And Education Services,Contract Hire-Operating Leases,Vehicles - Contract Hire,JC101,04/08/2021,684693,380,REVENUE,SMT (LINCS) ENTERPRISES LTD,141297
North East Lincolnshire Council,http://statistics.data.gov.uk/id/local-authority/00FC),Childrens Services,Education And Inclusion,Access And Education Services,Contract Hire-Operating Leases,Vehicles - Contract Hire,JC101,04/08/2021,684696,360,REVENUE,SMT (LINCS) ENTERPRISES LTD,141297
North East Lincolnshire Council,http://statistics.data.gov.uk/id/local-authority/00FC),Childrens Services,Education And Inclusion,Access And Education Services,Contract Hire-Operating Leases,Vehicles - Contract Hire,JC101,16/08/2021,685290,1326,REVENUE,SMT (LINCS) ENTERPRISES LTD,141297
North East Lincolnshire Council,http://statistics.data.gov.uk/id/local-authority/00FC),Childrens Services,Education And Inclusion,Access And Education Services,Contract Hire-Operating Leases,Vehicles - Contract Hire,JC101,05/08/2021,685283,275,REVENUE,SMT (LINCS) ENTERPRISES LTD,141297
North East Lincolnshire Council,http://statistics.data.gov.uk/id/local-authority/00FC),Childrens Services,Education And Inclusion,Access And Education Services,Contract Hire-Operating Leases,Vehicles - Contract Hire,JC101,02/08/2021,684828,1146.6,REVENUE,MINICABS CLEETHORPES (LINCS) LTD,102124
North East Lincolnshire Council,http://statistics.data.gov.uk/id/local-authority/00FC),Childrens Services,Education And Inclusion,Access And Education Services,Contract Hire-Operating Leases,Vehicles - Contract Hire,JC101,02/08/2021,684826,1040,REVENUE,MINICABS CLEETHORPES (LINCS) LTD,102124
North East Lincolnshire Council,http://statistics.data.gov.uk/id/local-authority/00FC),Childrens Services,Education And Inclusion,Access And Education Services,Contract Hire-Operating Leases,Vehicles - Contract Hire,JC101,03/08/2021,684824,940.8,REVENUE,MINICABS CLEETHORPES (LINCS) LTD,102124
North East Lincolnshire Council,http://statistics.data.gov.uk/id/local-authority/00FC),Childrens Services,Education And Inclusion,Access And Education Services,Contract Hire-Operating Leases,Vehicles - Contract Hire,JC101,03/08/2021,684827,1280,REVENUE,MINICABS CLEETHORPES (LINCS) LTD,102124
North East Lincolnshire Council,http://statistics.data.gov.uk/id/local-authority/00FC),Childrens Services,Education And Inclusion,Access And Education Services,Contract Hire-Operating Leases,Vehicles - Contract Hire,JC101,03/08/2021,684825,948,REVENUE,MINICABS CLEETHORPES (LINCS) LTD,102124
North East Lincolnshire Council,http://statistics.data.gov.uk/id/local-authority/00FC),Childrens Services,Education And Inclusion,Access And Education Services,Contract Hire-Operating Leases,Vehicles - Contract Hire,JC101,03/08/2021,684829,1495,REVENUE,MINICABS CLEETHORPES (LINCS) LTD,102124
North East Lincolnshire Council,http://statistics.data.gov.uk/id/local-authority/00FC),Childrens Services,Education And Inclusion,Access And Education Services,Contract Hire-Operating Leases,Vehicles - Contract Hire,JC101,03/08/2021,684823,1780.5,REVENUE,MINICABS CLEETHORPES (LINCS) LTD,102124
North East Lincolnshire Council,http://statistics.data.gov.uk/id/local-authority/00FC),Childrens Services,Education And Inclusion,Access And Education Services,Contract Hire-Operating Leases,Vehicles - Contract Hire,JC101,13/08/2021,686478,1924.5,REVENUE,LINKS TAXIS,100546
North East Lincolnshire Council,http://statistics.data.gov.uk/id/local-authority/00FC),Childrens Services,Education And Inclusion,Access And Education Services,Contract Hire-Operating Leases,Vehicles - Contract Hire,JC101,03/08/2021,685115,1185,REVENUE,LINKS TAXIS,100546
North East Lincolnshire Council,http://statistics.data.gov.uk/id/local-authority/00FC),Childrens Services,Education And Inclusion,Access And Education Services,Contract Hire-Operating Leases,Vehicles - Contract Hire,JC101,03/08/2021,684865,561.47,REVENUE,LINKS TAXIS,100546
North East Lincolnshire Council,http://statistics.data.gov.uk/id/local-authority/00FC),Childrens Services,Education And Inclusion,Access And Education Services,Contract Hire-Operating Leases,Vehicles - Contract Hire,JC101,10/08/2021,686172,752,REVENUE,LINKS TAXIS,100546
North East Lincolnshire Council,http://statistics.data.gov.uk/id/local-authority/00FC),Childrens Services,Education And Inclusion,Access And Education Services,Contract Hire-Operating Leases,Vehicles - Contract Hire,JC101,03/08/2021,685104,1219.5,REVENUE,LINKS TAXIS,100546
North East Lincolnshire Council,http://statistics.data.gov.uk/id/local-authority/00FC),Childrens Services,Education And Inclusion,Access And Education Services,Contract Hire-Operating Leases,Vehicles - Contract Hire,JC101,03/08/2021,685107,1088,REVENUE,LINKS TAXIS,100546
North East Lincolnshire Council,http://statistics.data.gov.uk/id/local-authority/00FC),Childrens Services,Education And Inclusion,Access And Education Services,Contract Hire-Operating Leases,Vehicles - Contract Hire,JC101,03/08/2021,685120,512,REVENUE,LINKS TAXIS,100546
North East Lincolnshire Council,http://statistics.data.gov.uk/id/local-authority/00FC),Childrens Services,Education And Inclusion,Access And Education Services,Contract Hire-Operating Leases,Vehicles - Contract Hire,JC101,10/08/2021,686171,679.5,REVENUE,LINKS TAXIS,100546
North East Lincolnshire Council,http://statistics.data.gov.uk/id/local-authority/00FC),Childrens Services,Education And Inclusion,Access And Education Services,Contract Hire-Operating Leases,Vehicles - Contract Hire,JC101,03/08/2021,685114,637,REVENUE,LINKS TAXIS,100546
North East Lincolnshire Council,http://statistics.data.gov.uk/id/local-authority/00FC),Childrens Services,Education And Inclusion,Access And Education Services,Contract Hire-Operating Leases,Vehicles - Contract Hire,JC101,05/08/2021,685317,669.37,REVENUE,LINKS TAXIS,100546
North East Lincolnshire Council,http://statistics.data.gov.uk/id/local-authority/00FC),Childrens Services,Education And Inclusion,Access And Education Services,Contract Hire-Operating Leases,Vehicles - Contract Hire,JC101,03/08/2021,684867,662.55,REVENUE,LINKS TAXIS,100546
North East Lincolnshire Council,http://statistics.data.gov.uk/id/local-authority/00FC),Childrens Services,Education And Inclusion,Access And Education Services,Contract Hire-Operating Leases,Vehicles - Contract Hire,JC101,10/08/2021,686180,792,REVENUE,LINKS TAXIS,100546
North East Lincolnshire Council,http://statistics.data.gov.uk/id/local-authority/00FC),Childrens Services,Education And Inclusion,Access And Education Services,Contract Hire-Operating Leases,Vehicles - Contract Hire,JC101,13/08/2021,686479,944.2,REVENUE,LINKS TAXIS,100546
North East Lincolnshire Council,http://statistics.data.gov.uk/id/local-authority/00FC),Childrens Services,Education And Inclusion,Access And Education Services,Contract Hire-Operating Leases,Vehicles - Contract Hire,JC101,03/08/2021,685123,999.8,REVENUE,LINKS TAXIS,100546
North East Lincolnshire Council,http://statistics.data.gov.uk/id/local-authority/00FC),Childrens Services,Education And Inclusion,Access And Education Services,Contract Hire-Operating Leases,Vehicles - Contract Hire,JC101,03/08/2021,685103,992,REVENUE,LINKS TAXIS,100546
North East Lincolnshire Council,http://statistics.data.gov.uk/id/local-authority/00FC),Childrens Services,Education And Inclusion,Access And Education Services,Contract Hire-Operating Leases,Vehicles - Contract Hire,JC101,05/08/2021,685316,638,REVENUE,LINKS TAXIS,100546
North East Lincolnshire Council,http://statistics.data.gov.uk/id/local-authority/00FC),Childrens Services,Education And Inclusion,Access And Education Services,Contract Hire-Operating Leases,Vehicles - Contract Hire,JC101,13/08/2021,686477,631.9,REVENUE,LINKS TAXIS,100546
North East Lincolnshire Council,http://statistics.data.gov.uk/id/local-authority/00FC),Childrens Services,Education And Inclusion,Access And Education Services,Contract Hire-Operating Leases,Vehicles - Contract Hire,JC101,05/08/2021,685108,629,REVENUE,LINKS TAXIS,100546
North East Lincolnshire Council,http://statistics.data.gov.uk/id/local-authority/00FC),Childrens Services,Education And Inclusion,Access And Education Services,Contract Hire-Operating Leases,Vehicles - Contract Hire,JC101,10/08/2021,686175,1446.5,REVENUE,LINKS TAXIS,100546
North East Lincolnshire Council,http://statistics.data.gov.uk/id/local-authority/00FC),Childrens Services,Education And Inclusion,Access And Education Services,Contract Hire-Operating Leases,Vehicles - Contract Hire,JC101,10/08/2021,686176,897,REVENUE,LINKS TAXIS,100546
North East Lincolnshire Council,http://statistics.data.gov.uk/id/local-authority/00FC),Childrens Services,Education And Inclusion,Access And Education Services,Contract Hire-Operating Leases,Vehicles - Contract Hire,JC101,02/08/2021,684800,1680,REVENUE,HANSONS AIRPORT EXPRESS,111879
North East Lincolnshire Council,http://statistics.data.gov.uk/id/local-authority/00FC),Childrens Services,Education And Inclusion,Access And Education Services,Contract Hire-Operating Leases,Vehicles - Contract Hire,JC101,03/08/2021,684675,1903,REVENUE,THE BUS RUN,101522
North East Lincolnshire Council,http://statistics.data.gov.uk/id/local-authority/00FC),Childrens Services,Education And Inclusion,Access And Education Services,Contract Hire-Operating Leases,Vehicles - Contract Hire,JC101,02/08/2021,684679,1770.2,REVENUE,REDACTED PERSONAL INFORMATION,REDACTED PERSONAL INFORMATION
North East Lincolnshire Council,http://statistics.data.gov.uk/id/local-authority/00FC),Childrens Services,Education And Inclusion,Access And Education Services,Contract Hire-Operating Leases,Vehicles - Contract Hire,JC101,05/08/2021,685282,1650,REVENUE,SMT (LINCS) ENTERPRISES LTD,141297
North East Lincolnshire Council,http://statistics.data.gov.uk/id/local-authority/00FC),Childrens Services,Education And Inclusion,Access And Education Services,Contract Hire-Operating Leases,Vehicles - Contract Hire,JC101,05/08/2021,685286,2400,REVENUE,SMT (LINCS) ENTERPRISES LTD,141297
North East Lincolnshire Council,http://statistics.data.gov.uk/id/local-authority/00FC),Childrens Services,Education And Inclusion,Access And Education Services,Contract Hire-Operating Leases,Vehicles - Contract Hire,JC101,03/08/2021,684822,1050,REVENUE,MINICABS CLEETHORPES (LINCS) LTD,102124
North East Lincolnshire Council,http://statistics.data.gov.uk/id/local-authority/00FC),Childrens Services,Education And Inclusion,Access And Education Services,Contract Hire-Operating Leases,Vehicles - Contract Hire,JC101,10/08/2021,686177,1694,REVENUE,LINKS TAXIS,100546
North East Lincolnshire Council,http://statistics.data.gov.uk/id/local-authority/00FC),Childrens Services,Education And Inclusion,Access And Education Services,Contract Hire-Operating Leases,Vehicles - Contract Hire,JC101,04/08/2021,685110,2586.24,REVENUE,LINKS TAXIS,100546
North East Lincolnshire Council,http://statistics.data.gov.uk/id/local-authority/00FC),Childrens Services,Education And Inclusion,Access And Education Services,Contract Hire-Operating Leases,Vehicles - Contract Hire,JC101,05/08/2021,685122,1320,REVENUE,LINKS TAXIS,100546
North East Lincolnshire Council,http://statistics.data.gov.uk/id/local-authority/00FC),Childrens Services,Education And Inclusion,Access And Education Services,Contract Hire-Operating Leases,Vehicles - Contract Hire,JC101,10/08/2021,686174,2312.7,REVENUE,LINKS TAXIS,100546
North East Lincolnshire Council,http://statistics.data.gov.uk/id/local-authority/00FC),Childrens Services,Education And Inclusion,Access And Education Services,Contract Hire-Operating Leases,Vehicles - Contract Hire,JC101,05/08/2021,685314,1875,REVENUE,LINKS TAXIS,100546
North East Lincolnshire Council,http://statistics.data.gov.uk/id/local-authority/00FC),Childrens Services,Education And Inclusion,Access And Education Services,Contract Hire-Operating Leases,Vehicles - Contract Hire,JC101,03/08/2021,684864,1562.4,REVENUE,LINKS TAXIS,100546
North East Lincolnshire Council,http://statistics.data.gov.uk/id/local-authority/00FC),Childrens Services,Education And Inclusion,Access And Education Services,Contract Hire-Operating Leases,Vehicles - Contract Hire,JC101,03/08/2021,685121,637,REVENUE,LINKS TAXIS,100546
North East Lincolnshire Council,http://statistics.data.gov.uk/id/local-authority/00FC),Childrens Services,Education And Inclusion,Access And Education Services,Contract Hire-Operating Leases,Vehicles - Contract Hire,JC101,03/08/2021,685117,3031.6,REVENUE,LINKS TAXIS,100546
North East Lincolnshire Council,http://statistics.data.gov.uk/id/local-authority/00FC),Childrens Services,Education And Inclusion,Access And Education Services,Contract Hire-Operating Leases,Vehicles - Contract Hire,JC101,16/08/2021,686323,400,REVENUE,COXONS CARS LIMITED,100578
North East Lincolnshire Council,http://statistics.data.gov.uk/id/local-authority/00FC),Childrens Services,Education And Inclusion,Access And Education Services,Contract Hire-Operating Leases,Vehicles - Contract Hire,JC101,12/08/2021,686295,512,REVENUE,COXONS CARS LIMITED,100578
North East Lincolnshire Council,http://statistics.data.gov.uk/id/local-authority/00FC),Childrens Services,Education And Inclusion,Access And Education Services,Contract Hire-Operating Leases,Vehicles - Contract Hire,JC101,12/08/2021,686291,437,REVENUE,COXONS CARS LIMITED,100578
North East Lincolnshire Council,http://statistics.data.gov.uk/id/local-authority/00FC),Childrens Services,Education And Inclusion,Access And Education Services,Contract Hire-Operating Leases,Vehicles - Contract Hire,JC101,13/08/2021,686481,928.5,REVENUE,COXONS CARS LIMITED,100578
North East Lincolnshire Council,http://statistics.data.gov.uk/id/local-authority/00FC),Childrens Services,Education And Inclusion,Access And Education Services,Contract Hire-Operating Leases,Vehicles - Contract Hire,JC101,16/08/2021,686294,252,REVENUE,COXONS CARS LIMITED,100578
North East Lincolnshire Council,http://statistics.data.gov.uk/id/local-authority/00FC),Childrens Services,Education And Inclusion,Access And Education Services,Contract Hire-Operating Leases,Vehicles - Contract Hire,JC101,11/08/2021,685704,2720,REVENUE,DJ TAXIS SCUNTHORPE LIMITED,144612
North East Lincolnshire Council,http://statistics.data.gov.uk/id/local-authority/00FC),Childrens Services,Education And Inclusion,Access And Education Services,Contract Hire-Operating Leases,Vehicles - Contract Hire,JC101,05/08/2021,685131,1494.5,REVENUE,LINKS TAXIS,100546
North East Lincolnshire Council,http://statistics.data.gov.uk/id/local-authority/00FC),Childrens Services,Education And Inclusion,Access And Education Services,Contract Hire-Operating Leases,Vehicles - Contract Hire,JC101,23/08/2021,686964,820,REVENUE,AMVALE LIMITED,101030
North East Lincolnshire Council,http://statistics.data.gov.uk/id/local-authority/00FC),Childrens Services,Education And Inclusion,Access And Education Services,Contract Hire-Operating Leases,Vehicles - Contract Hire,JC101,12/08/2021,686313,950,REVENUE,FON A CAR LTD,140517
North East Lincolnshire Council,http://statistics.data.gov.uk/id/local-authority/00FC),Childrens Services,Education And Inclusion,Access And Education Services,Contract Hire-Operating Leases,Vehicles - Contract Hire,JC101,05/08/2021,685212,1562.5,REVENUE,LINKS TAXIS,100546
North East Lincolnshire Council,http://statistics.data.gov.uk/id/local-authority/00FC),Childrens Services,Education And Inclusion,Access And Education Services,Contract Hire-Operating Leases,Vehicles - Contract Hire,JC101,03/08/2021,685093,541.62,REVENUE,LINKS TAXIS,100546
North East Lincolnshire Council,http://statistics.data.gov.uk/id/local-authority/00FC),Childrens Services,Education And Inclusion,Access And Education Services,Contract Hire-Operating Leases,Vehicles - Contract Hire,JC101,05/08/2021,685291,1105,REVENUE,SMT (LINCS) ENTERPRISES LTD,141297
North East Lincolnshire Council,http://statistics.data.gov.uk/id/local-authority/00FC),Childrens Services,Education And Inclusion,Access And Education Services,Contract Hire-Operating Leases,Vehicles - Contract Hire,JC101,05/08/2021,685116,800,REVENUE,LINKS TAXIS,100546
North East Lincolnshire Council,http://statistics.data.gov.uk/id/local-authority/00FC),Childrens Services,Education And Inclusion,Access And Education Services,Contract Hire-Operating Leases,Vehicles - Contract Hire,JC101,03/08/2021,685102,360,REVENUE,LINKS TAXIS,100546
North East Lincolnshire Council,http://statistics.data.gov.uk/id/local-authority/00FC),Childrens Services,Education And Inclusion,Access And Education Services,Contract Hire-Operating Leases,Vehicles - Contract Hire,JC101,06/08/2021,685138,2064,REVENUE,AMVALE MEDICAL TRANSPORT LTD,130777
North East Lincolnshire Council,http://statistics.data.gov.uk/id/local-authority/00FC),Childrens Services,Education And Inclusion,Access And Education Services,Contract Hire-Operating Leases,Vehicles - Contract Hire,JC101,03/08/2021,685098,1563.5,REVENUE,LINKS TAXIS,100546
North East Lincolnshire Council,http://statistics.data.gov.uk/id/local-authority/00FC),Childrens Services,Education And Inclusion,Access And Education Services,Contract Hire-Operating Leases,Vehicles - Contract Hire,JC101,02/08/2021,684683,1413,REVENUE,SMT (LINCS) ENTERPRISES LTD,141297
North East Lincolnshire Council,http://statistics.data.gov.uk/id/local-authority/00FC),Childrens Services,Education And Inclusion,Access And Education Services,Contract Hire-Operating Leases,Vehicles - Contract Hire,JC101,05/08/2021,685287,1177.5,REVENUE,SMT (LINCS) ENTERPRISES LTD,141297
North East Lincolnshire Council,http://statistics.data.gov.uk/id/local-authority/00FC),Childrens Services,Education And Inclusion,Access And Education Services,Contract Hire-Operating Leases,Vehicles - Contract Hire,JC101,05/08/2021,685280,3872,REVENUE,SMT (LINCS) ENTERPRISES LTD,141297
North East Lincolnshire Council,http://statistics.data.gov.uk/id/local-authority/00FC),Childrens Services,Education And Inclusion,Access And Education Services,Contract Hire-Operating Leases,Vehicles - Contract Hire,JC101,19/08/2021,686937,1426,REVENUE,NORTH LINCOLNSHIRE COUNCIL,101186
North East Lincolnshire Council,http://statistics.data.gov.uk/id/local-authority/00FC),Childrens Services,Education And Inclusion,Access And Education Services,Private Contractors,Concessionary Fares,PH104,03/08/2021,684677,2400,REVENUE,STAGECOACH SERVICES,101404
North East Lincolnshire Council,http://statistics.data.gov.uk/id/local-authority/00FC),Childrens Services,Education And Inclusion,Access And Education Services,Direct Employee Expenses,Agency Supply Teachers,EA104,05/08/2021,685217,480,REVENUE,ZOE EVERATT,106842
North East Lincolnshire Council,http://statistics.data.gov.uk/id/local-authority/00FC),Childrens Services,Education And Inclusion,Access And Education Services,Direct Employee Expenses,Agency Supply Teachers,EA104,23/08/2021,687259,960,REVENUE,ZOE EVERATT,106842
North East Lincolnshire Council,http://statistics.data.gov.uk/id/local-authority/00FC),Childrens Services,Education And Inclusion,Access And Education Services,Rents,Rent,GC101,03/08/2021,685164,1250,REVENUE,JOHN WHITGIFT ACADEMY,106898
North East Lincolnshire Council,http://statistics.data.gov.uk/id/local-authority/00FC),Childrens Services,Education And Inclusion,Access And Education Services,Rents,Rent,GC101,26/08/2021,687652,1250,REVENUE,JOHN WHITGIFT ACADEMY,106898
North East Lincolnshire Council,http://statistics.data.gov.uk/id/local-authority/00FC),Childrens Services,Education And Inclusion,Access And Education Services,Miscellaneous Expenses,Other Expenses General,LL119,24/08/2021,687226,317.46,REVENUE,PETER BARNABY,149416
North East Lincolnshire Council,http://statistics.data.gov.uk/id/local-authority/00FC),Childrens Services,Education And Inclusion,Access And Education Services,Miscellaneous Expenses,Other Expenses General,LL119,23/08/2021,687260,646.5,REVENUE,NORMANS (BURTON ON TRENT) LTD,101490
North East Lincolnshire Council,http://statistics.data.gov.uk/id/local-authority/00FC),Childrens Services,Education And Inclusion,Access And Education Services,Other Agencies,Other,PJ121,23/08/2021,687227,4800,REVENUE,SUE BAKER,103216
North East Lincolnshire Council,http://statistics.data.gov.uk/id/local-authority/00FC),Childrens Services,Education And Inclusion,Access And Education Services,Other Agencies,Tuition,PJ112,10/08/2021,949756,250,REVENUE,REDACTED PERSONAL INFORMATION,REDACTED PERSONAL INFORMATION
North East Lincolnshire Council,http://statistics.data.gov.uk/id/local-authority/00FC),Childrens Services,Education And Inclusion,Access And Education Services,Other Agencies,Tuition,PJ112,03/08/2021,684821,1200.83,REVENUE,AA RADIO CARS LTD,101222
North East Lincolnshire Council,http://statistics.data.gov.uk/id/local-authority/00FC),Childrens Services,Education And Inclusion,Access And Education Services,Other Agencies,Tuition,PJ112,03/08/2021,684838,513.34,REVENUE,PHILIPPA SKATE,149030
North East Lincolnshire Council,http://statistics.data.gov.uk/id/local-authority/00FC),Childrens Services,Education And Inclusion,Access And Education Services,Other Agencies,Tuition,PJ112,05/08/2021,685307,340,REVENUE,EDUCLA,147507
North East Lincolnshire Council,http://statistics.data.gov.uk/id/local-authority/00FC),Childrens Services,Education And Inclusion,Access And Education Services,Other Agencies,Tuition,PJ112,05/08/2021,685306,340,REVENUE,EDUCLA,147507
North East Lincolnshire Council,http://statistics.data.gov.uk/id/local-authority/00FC),Childrens Services,Education And Inclusion,Access And Education Services,Other Agencies,Tuition,PJ112,05/08/2021,685305,340,REVENUE,EDUCLA,147507
North East Lincolnshire Council,http://statistics.data.gov.uk/id/local-authority/00FC),Childrens Services,Education And Inclusion,Access And Education Services,Other Agencies,Tuition,PJ112,05/08/2021,685304,340,REVENUE,EDUCLA,147507
North East Lincolnshire Council,http://statistics.data.gov.uk/id/local-authority/00FC),Childrens Services,Education And Inclusion,Access And Education Services,Other Agencies,Tuition,PJ112,05/08/2021,685301,1000,REVENUE,PROSPERO RECRUITMENT LTD,145278
North East Lincolnshire Council,http://statistics.data.gov.uk/id/local-authority/00FC),Childrens Services,Education And Inclusion,Access And Education Services,Other Agencies,Tuition,PJ112,09/08/2021,685300,6421.25,REVENUE,LEARNING4LIFE-GY-CIC,144120
North East Lincolnshire Council,http://statistics.data.gov.uk/id/local-authority/00FC),Childrens Services,Education And Inclusion,Access And Education Services,Contract Hire-Operating Leases,Vehicles - Contract Hire,JC101,02/08/2021,684797,3980,REVENUE,STAGECOACH SERVICES,101404
North East Lincolnshire Council,http://statistics.data.gov.uk/id/local-authority/00FC),Childrens Services,Education And Inclusion,Access And Education Services,Contributions To Provisions,Contributions - Other,LK103,03/08/2021,685147,14370,REVENUE,POSITIVE ACTIVITIES,126463
North East Lincolnshire Council,http://statistics.data.gov.uk/id/local-authority/00FC),Childrens Services,Education And Inclusion,Earning & Learning,Equip / Furniture / Materials,Equipment - Purchase,LA101,25/08/2021,687278,415.95,REVENUE,ARGOS BUSINESS SOLUTIONS LTD,101032
North East Lincolnshire Council,http://statistics.data.gov.uk/id/local-authority/00FC),Childrens Services,Education And Inclusion,Sen/Inclusion,Direct Employee Expenses,Agency Staff,EA105,13/08/2021,686441,653.05,REVENUE,ON LINE PEOPLE LTD,144850
North East Lincolnshire Council,http://statistics.data.gov.uk/id/local-authority/00FC),Childrens Services,Education And Inclusion,Sen/Inclusion,Direct Employee Expenses,Agency Staff,EA105,13/08/2021,686448,653.05,REVENUE,ON LINE PEOPLE LTD,144850
North East Lincolnshire Council,http://statistics.data.gov.uk/id/local-authority/00FC),Childrens Services,Education And Inclusion,Sen/Inclusion,Direct Employee Expenses,Agency Staff,EA105,13/08/2021,686434,653.05,REVENUE,ON LINE PEOPLE LTD,144850
North East Lincolnshire Council,http://statistics.data.gov.uk/id/local-authority/00FC),Childrens Services,Education And Inclusion,Sen/Inclusion,Miscellaneous Expenses,Contingency Reserve,LL123,24/08/2021,687149,8700,REVENUE,THE CAMBRIDGE PARK ACADEMY,107472
North East Lincolnshire Council,http://statistics.data.gov.uk/id/local-authority/00FC),Childrens Services,Education And Inclusion,Sen/Inclusion,Miscellaneous Expenses,Other Expenses General,LL119,02/08/2021,684427,1218.75,REVENUE,LEARNING4LIFE-GY-CIC,144120
North East Lincolnshire Council,http://statistics.data.gov.uk/id/local-authority/00FC),Childrens Services,Education And Inclusion,Sen/Inclusion,Voluntary Associations,Third Pp - Third Sector,PF101,16/08/2021,686573,19625,REVENUE,BARNARDO SERVICES LTD,101050
North East Lincolnshire Council,http://statistics.data.gov.uk/id/local-authority/00FC),Childrens Services,Education And Inclusion,Sen/Inclusion,Private Contractors,Third Party Prov - Private,PH101,03/08/2021,947552,682.44,REVENUE,REDACTED PERSONAL INFORMATION,REDACTED PERSONAL INFORMATION
North East Lincolnshire Council,http://statistics.data.gov.uk/id/local-authority/00FC),Childrens Services,Education And Inclusion,Sen/Inclusion,Private Contractors,Third Party Prov - Private,PH101,19/08/2021,952675,635.88,REVENUE,REDACTED PERSONAL INFORMATION,REDACTED PERSONAL INFORMATION
North East Lincolnshire Council,http://statistics.data.gov.uk/id/local-authority/00FC),Childrens Services,Education And Inclusion,Sen/Inclusion,Private Contractors,Third Party Prov - Private,PH101,26/08/2021,687628,2295,REVENUE,LINKAGE COMMUNITY TRUST,100343
North East Lincolnshire Council,http://statistics.data.gov.uk/id/local-authority/00FC),Childrens Services,Education And Inclusion,Sen/Inclusion,Private Contractors,Third Party Prov - Private,PH101,26/08/2021,687624,2296.67,REVENUE,LINKAGE COMMUNITY TRUST,100343
North East Lincolnshire Council,http://statistics.data.gov.uk/id/local-authority/00FC),Childrens Services,Education And Inclusion,Sen/Inclusion,Private Contractors,Third Party Prov - Private,PH101,26/08/2021,687625,4995,REVENUE,LINKAGE COMMUNITY TRUST,100343
North East Lincolnshire Council,http://statistics.data.gov.uk/id/local-authority/00FC),Childrens Services,Education And Inclusion,Sen/Inclusion,Private Contractors,Third Party Prov - Private,PH101,26/08/2021,687626,2295,REVENUE,LINKAGE COMMUNITY TRUST,100343
North East Lincolnshire Council,http://statistics.data.gov.uk/id/local-authority/00FC),Childrens Services,Education And Inclusion,Sen/Inclusion,Private Contractors,Third Party Prov - Private,PH101,17/08/2021,681784,5418,REVENUE,FRANKLIN COLLEGE,101073
North East Lincolnshire Council,http://statistics.data.gov.uk/id/local-authority/00FC),Childrens Services,Education And Inclusion,Sen/Inclusion,Private Contractors,Third Party Prov - Private,PH101,19/08/2021,687025,7689.8,REVENUE,CPO MEDIA,102186
North East Lincolnshire Council,http://statistics.data.gov.uk/id/local-authority/00FC),Childrens Services,Education And Inclusion,Sen/Inclusion,Private Contractors,Third Party Prov - Private,PH101,13/08/2021,686433,1822.32,REVENUE,LEARNING4LIFE-GY-CIC,144120
North East Lincolnshire Council,http://statistics.data.gov.uk/id/local-authority/00FC),Childrens Services,Education And Inclusion,Sen/Inclusion,Private Contractors,Third Party Prov - Private,PH101,13/08/2021,686440,14016.56,REVENUE,LEARNING4LIFE-GY-CIC,144120
North East Lincolnshire Council,http://statistics.data.gov.uk/id/local-authority/00FC),Childrens Services,Education And Inclusion,Sen/Inclusion,Private Contractors,Third Party Prov - Private,PH101,13/08/2021,686447,1814.2,REVENUE,LEARNING4LIFE-GY-CIC,144120
North East Lincolnshire Council,http://statistics.data.gov.uk/id/local-authority/00FC),Childrens Services,Education And Inclusion,Sen/Inclusion,Miscellaneous Expenses,Contingency Reserve,LL123,24/08/2021,687157,1417,REVENUE,PHOENIX PARK ACADEMY,126685
North East Lincolnshire Council,http://statistics.data.gov.uk/id/local-authority/00FC),Childrens Services,Education And Inclusion,Sen/Inclusion,Miscellaneous Expenses,Contingency Reserve,LL123,24/08/2021,687159,17000,REVENUE,PHOENIX PARK ACADEMY,126685
North East Lincolnshire Council,http://statistics.data.gov.uk/id/local-authority/00FC),Childrens Services,Education And Inclusion,Sen/Inclusion,Miscellaneous Expenses,Contingency Reserve,LL123,24/08/2021,687158,48167,REVENUE,PHOENIX PARK ACADEMY,126685
North East Lincolnshire Council,http://statistics.data.gov.uk/id/local-authority/00FC),Childrens Services,Education And Inclusion,Sen/Inclusion,Miscellaneous Expenses,Contingency Reserve,LL123,24/08/2021,687160,28333,REVENUE,SEVENHILLS ACADEMY,128660
North East Lincolnshire Council,http://statistics.data.gov.uk/id/local-authority/00FC),Childrens Services,Education And Inclusion,Sen/Inclusion,Miscellaneous Expenses,Contingency Reserve,LL123,24/08/2021,687161,28333,REVENUE,SEVENHILLS ACADEMY,128660
North East Lincolnshire Council,http://statistics.data.gov.uk/id/local-authority/00FC),Childrens Services,Education And Inclusion,Sen/Inclusion,Communications And Computing,Computer H/Ware - Purchases,LF105,31/08/2021,687748,1379.32,REVENUE,XMA LIMITED,100699
North East Lincolnshire Council,http://statistics.data.gov.uk/id/local-authority/00FC),Childrens Services,Education And Inclusion,Sen/Inclusion,Contributions To Provisions,Contributions - Other,LK103,24/08/2021,687150,1700,REVENUE,THE CAMBRIDGE PARK ACADEMY,107472
North East Lincolnshire Council,http://statistics.data.gov.uk/id/local-authority/00FC),Childrens Services,Education And Inclusion,Sen/Inclusion,Contributions To Provisions,Contributions - Other,LK103,19/08/2021,686917,1989,REVENUE,BEACON ACADEMY,138130
North East Lincolnshire Council,http://statistics.data.gov.uk/id/local-authority/00FC),Childrens Services,Education And Inclusion,Sen/Inclusion,Contributions To Provisions,Contributions - Other,LK103,19/08/2021,686908,2349,REVENUE,BURSAR PRIMARY ACADEMY,114977
North East Lincolnshire Council,http://statistics.data.gov.uk/id/local-authority/00FC),Childrens Services,Education And Inclusion,Sen/Inclusion,Contributions To Provisions,Contributions - Other,LK103,19/08/2021,686898,8976,REVENUE,CLEETHORPES ACADEMY,102713
North East Lincolnshire Council,http://statistics.data.gov.uk/id/local-authority/00FC),Childrens Services,Education And Inclusion,Sen/Inclusion,Contributions To Provisions,Contributions - Other,LK103,19/08/2021,686914,6044,REVENUE,ELLISTON PRIMARY ACADEMY,129629
North East Lincolnshire Council,http://statistics.data.gov.uk/id/local-authority/00FC),Childrens Services,Education And Inclusion,Sen/Inclusion,Contributions To Provisions,Contributions - Other,LK103,19/08/2021,686896,1643,REVENUE,HAVELOCK ACADEMY,101968
North East Lincolnshire Council,http://statistics.data.gov.uk/id/local-authority/00FC),Childrens Services,Education And Inclusion,Sen/Inclusion,Contributions To Provisions,Contributions - Other,LK103,19/08/2021,686897,13496,REVENUE,HEALING SCIENCE ACADEMY LTD,102702
North East Lincolnshire Council,http://statistics.data.gov.uk/id/local-authority/00FC),Childrens Services,Education And Inclusion,Sen/Inclusion,Contributions To Provisions,Contributions - Other,LK103,19/08/2021,686901,1643,REVENUE,JOHN WHITGIFT ACADEMY,106898
North East Lincolnshire Council,http://statistics.data.gov.uk/id/local-authority/00FC),Childrens Services,Education And Inclusion,Sen/Inclusion,Contributions To Provisions,Contributions - Other,LK103,19/08/2021,686902,1482,REVENUE,LISLE MARSDEN C OF E PRIMARY ACADEMY,107922
North East Lincolnshire Council,http://statistics.data.gov.uk/id/local-authority/00FC),Childrens Services,Education And Inclusion,Sen/Inclusion,Contributions To Provisions,Contributions - Other,LK103,19/08/2021,686907,3163,REVENUE,MACAULAY PRIMARY ACADEMY,112680
North East Lincolnshire Council,http://statistics.data.gov.uk/id/local-authority/00FC),Childrens Services,Education And Inclusion,Sen/Inclusion,Contributions To Provisions,Contributions - Other,LK103,19/08/2021,686895,1643,REVENUE,OASIS ACADEMY IMMINGHAM,101947
North East Lincolnshire Council,http://statistics.data.gov.uk/id/local-authority/00FC),Childrens Services,Education And Inclusion,Sen/Inclusion,Contributions To Provisions,Contributions - Other,LK103,19/08/2021,686912,822,REVENUE,OASIS ACADEMY SCHOOL (NUNSTHORPE SCHOOL),122861
North East Lincolnshire Council,http://statistics.data.gov.uk/id/local-authority/00FC),Childrens Services,Education And Inclusion,Sen/Inclusion,Contributions To Provisions,Contributions - Other,LK103,19/08/2021,686894,1718,REVENUE,OASIS ACADEMY WINTRINGHAM,101939
North East Lincolnshire Council,http://statistics.data.gov.uk/id/local-authority/00FC),Childrens Services,Education And Inclusion,Sen/Inclusion,Contributions To Provisions,Contributions - Other,LK103,19/08/2021,686900,3571,REVENUE,ORMISTON MARITIME ACADEMY,106066
North East Lincolnshire Council,http://statistics.data.gov.uk/id/local-authority/00FC),Childrens Services,Education And Inclusion,Sen/Inclusion,Contributions To Provisions,Contributions - Other,LK103,19/08/2021,686911,2015,REVENUE,REYNOLDS ACADEMY,122175
North East Lincolnshire Council,http://statistics.data.gov.uk/id/local-authority/00FC),Childrens Services,Education And Inclusion,Sen/Inclusion,Contributions To Provisions,Contributions - Other,LK103,19/08/2021,686903,2186,REVENUE,SCARTHO JUNIOR ACADEMY,108738
North East Lincolnshire Council,http://statistics.data.gov.uk/id/local-authority/00FC),Childrens Services,Education And Inclusion,Sen/Inclusion,Contributions To Provisions,Contributions - Other,LK103,19/08/2021,686899,9240,REVENUE,SIGNHILLS ACADEMY LTD,106065
North East Lincolnshire Council,http://statistics.data.gov.uk/id/local-authority/00FC),Childrens Services,Education And Inclusion,Sen/Inclusion,Contributions To Provisions,Contributions - Other,LK103,19/08/2021,686905,9614,REVENUE,ORMISTON SOUTH PARADE ACADEMY,111750
North East Lincolnshire Council,http://statistics.data.gov.uk/id/local-authority/00FC),Childrens Services,Education And Inclusion,Sen/Inclusion,Contributions To Provisions,Contributions - Other,LK103,19/08/2021,686909,6075,REVENUE,ST MARYS CATHOLIC PRIMARY VOLUNTARY ACADEMY,115108
North East Lincolnshire Council,http://statistics.data.gov.uk/id/local-authority/00FC),Childrens Services,Education And Inclusion,Sen/Inclusion,Contributions To Provisions,Contributions - Other,LK103,19/08/2021,686906,6386,REVENUE,STRAND PRIMARY ACADEMY,111862
North East Lincolnshire Council,http://statistics.data.gov.uk/id/local-authority/00FC),Childrens Services,Education And Inclusion,Sen/Inclusion,Contributions To Provisions,Contributions - Other,LK103,19/08/2021,686910,2774,REVENUE,THRUNSCOE PRIMARY AND NURSERY ACADEMY,118749
North East Lincolnshire Council,http://statistics.data.gov.uk/id/local-authority/00FC),Childrens Services,Education And Inclusion,Sen/Inclusion,Contributions To Provisions,Contributions - Other,LK103,19/08/2021,686904,3571,REVENUE,WALTHAM LEAS PRIMARY ACADEMY,109335
North East Lincolnshire Council,http://statistics.data.gov.uk/id/local-authority/00FC),Childrens Services,Education And Inclusion,Sen/Inclusion,Contributions To Provisions,Contributions - Other,LK103,19/08/2021,686913,5367,REVENUE,WELHOLME ACADEMY,127227
North East Lincolnshire Council,http://statistics.data.gov.uk/id/local-authority/00FC),Childrens Services,Education And Inclusion,Sen/Inclusion,Contributions To Provisions,Contributions - Other,LK103,19/08/2021,686916,1643,REVENUE,WILLIAM BARCROFT JUNIOR ACADEMY,136302
North East Lincolnshire Council,http://statistics.data.gov.uk/id/local-authority/00FC),Childrens Services,Education And Inclusion,Sen/Inclusion,Contributions To Provisions,Contributions - Other,LK103,19/08/2021,686915,5504,REVENUE,WOODLANDS ACADEMY,132649
North East Lincolnshire Council,http://statistics.data.gov.uk/id/local-authority/00FC),Childrens Services,Education And Inclusion,Sen/Inclusion,Contributions To Provisions,Contributions - Other,LK103,19/08/2021,687012,250,REVENUE,WELLSPRING ACADEMY TRUST,143489
North East Lincolnshire Council,http://statistics.data.gov.uk/id/local-authority/00FC),Childrens Services,Education And Inclusion,Sen/Inclusion,Contributions To Provisions,Contributions - Other,LK103,19/08/2021,687011,2175,REVENUE,WELLSPRING ACADEMY TRUST,143489
North East Lincolnshire Council,http://statistics.data.gov.uk/id/local-authority/00FC),Childrens Services,Education And Inclusion,Sen/Inclusion,Contributions To Provisions,Contributions - Third Sector,LK102,19/08/2021,686949,3011.25,REVENUE,TARGETED PROVISION LTD,146662
North East Lincolnshire Council,http://statistics.data.gov.uk/id/local-authority/00FC),Childrens Services,Education And Inclusion,Sen/Inclusion,Contributions To Provisions,Contributions - Third Sector,LK102,23/08/2021,686951,1050,REVENUE,TARGETED PROVISION LTD,146662
North East Lincolnshire Council,http://statistics.data.gov.uk/id/local-authority/00FC),Childrens Services,Education And Inclusion,Sen/Inclusion,Contributions To Provisions,Contributions - Third Sector,LK102,19/08/2021,686952,330,REVENUE,TARGETED PROVISION LTD,146662
North East Lincolnshire Council,http://statistics.data.gov.uk/id/local-authority/00FC),Childrens Services,Education And Inclusion,Sen/Inclusion,Contributions To Provisions,Contributions - Third Sector,LK102,23/08/2021,686953,330,REVENUE,TARGETED PROVISION LTD,146662
North East Lincolnshire Council,http://statistics.data.gov.uk/id/local-authority/00FC),Childrens Services,Education And Inclusion,Sen/Inclusion,Contributions To Provisions,Contributions - Third Sector,LK102,23/08/2021,686956,962.5,REVENUE,TARGETED PROVISION LTD,146662
North East Lincolnshire Council,http://statistics.data.gov.uk/id/local-authority/00FC),Childrens Services,Education And Inclusion,Sen/Inclusion,Contributions To Provisions,Contributions - Third Sector,LK102,19/08/2021,686950,1650,REVENUE,TARGETED PROVISION LTD,146662
North East Lincolnshire Council,http://statistics.data.gov.uk/id/local-authority/00FC),Childrens Services,Education And Inclusion,Sen/Inclusion,Contributions To Provisions,Contributions - Third Sector,LK102,19/08/2021,687020,3508.05,REVENUE,LINCOLNSHIRE COUNTY COUNCIL,100389
North East Lincolnshire Council,http://statistics.data.gov.uk/id/local-authority/00FC),Childrens Services,Education And Inclusion,Sen/Inclusion,Contributions To Provisions,Contributions - Third Sector,LK102,19/08/2021,687010,464.54,REVENUE,TEACHING PERSONNEL LTD,101305
North East Lincolnshire Council,http://statistics.data.gov.uk/id/local-authority/00FC),Childrens Services,Education And Inclusion,Sen/Inclusion,Contributions To Provisions,Contributions - Third Sector,LK102,19/08/2021,686948,2484,REVENUE,PRIORY GROUP,147103
North East Lincolnshire Council,http://statistics.data.gov.uk/id/local-authority/00FC),Childrens Services,Education And Inclusion,Sen/Inclusion,Contributions To Provisions,Contributions - Third Sector,LK102,26/08/2021,687764,1059.4,REVENUE,R Y FIDLER,142906
North East Lincolnshire Council,http://statistics.data.gov.uk/id/local-authority/00FC),Childrens Services,Education And Inclusion,Sen/Inclusion,Contributions To Provisions,Contributions - Third Sector,LK102,26/08/2021,687763,464.54,REVENUE,TEACHING PERSONNEL LTD,101305
North East Lincolnshire Council,http://statistics.data.gov.uk/id/local-authority/00FC),Childrens Services,Education And Inclusion,Sen/Inclusion,Miscellaneous Expenses,Contingency Reserve,LL123,24/08/2021,687151,155534,REVENUE,THE CAMBRIDGE PARK ACADEMY,107472
North East Lincolnshire Council,http://statistics.data.gov.uk/id/local-authority/00FC),Childrens Services,Education And Inclusion,Sen/Inclusion,Miscellaneous Expenses,Contingency Reserve,LL123,24/08/2021,687148,9817,REVENUE,THE CAMBRIDGE PARK ACADEMY,107472
North East Lincolnshire Council,http://statistics.data.gov.uk/id/local-authority/00FC),Childrens Services,Education And Inclusion,Sen/Inclusion,Miscellaneous Expenses,Contingency Reserve,LL123,24/08/2021,687152,9817,REVENUE,HUMBERSTON PARK SPECIAL SCHOOL,107911
North East Lincolnshire Council,http://statistics.data.gov.uk/id/local-authority/00FC),Childrens Services,Education And Inclusion,Sen/Inclusion,Miscellaneous Expenses,Contingency Reserve,LL123,24/08/2021,687153,122718,REVENUE,HUMBERSTON PARK SPECIAL SCHOOL,107911
North East Lincolnshire Council,http://statistics.data.gov.uk/id/local-authority/00FC),Childrens Services,Education And Inclusion,Sen/Inclusion,Miscellaneous Expenses,Other Expenses General,LL119,24/08/2021,687155,6000,REVENUE,EASTFIELD PRIMARY ACADEMY,121907
North East Lincolnshire Council,http://statistics.data.gov.uk/id/local-authority/00FC),Childrens Services,Education And Inclusion,Sen/Inclusion,Miscellaneous Expenses,Other Expenses General,LL119,24/08/2021,687156,1958,REVENUE,EASTFIELD PRIMARY ACADEMY,121907
North East Lincolnshire Council,http://statistics.data.gov.uk/id/local-authority/00FC),Childrens Services,Education And Inclusion,Sen/Inclusion,Miscellaneous Expenses,Other Expenses General,LL119,24/08/2021,687154,9000,REVENUE,EASTFIELD PRIMARY ACADEMY,121907
North East Lincolnshire Council,http://statistics.data.gov.uk/id/local-authority/00FC),Childrens Services,Education And Inclusion,Sen/Inclusion,Private Contractors,Third Party Prov - Private,PH101,13/08/2021,686460,2328.3,REVENUE,LEARNING4LIFE-GY-CIC,144120
North East Lincolnshire Council,http://statistics.data.gov.uk/id/local-authority/00FC),Childrens Services,Education And Inclusion,Sen/Inclusion,Other Local Authorities,Third Pp - Other Local Auth,PC101,13/08/2021,686437,4991,REVENUE,REDACTED PERSONAL INFORMATION,REDACTED PERSONAL INFORMATION
North East Lincolnshire Council,http://statistics.data.gov.uk/id/local-authority/00FC),Childrens Services,Education And Inclusion,Sen/Inclusion,Other Local Authorities,Third Pp - Other Local Auth,PC101,12/08/2021,686285,3333,REVENUE,REDACTED PERSONAL INFORMATION,REDACTED PERSONAL INFORMATION
North East Lincolnshire Council,http://statistics.data.gov.uk/id/local-authority/00FC),Childrens Services,Education And Inclusion,Sen/Inclusion,Other Local Authorities,Third Pp - Other Local Auth,PC101,13/08/2021,686458,3415.5,REVENUE,REDACTED PERSONAL INFORMATION,REDACTED PERSONAL INFORMATION
North East Lincolnshire Council,http://statistics.data.gov.uk/id/local-authority/00FC),Childrens Services,Education And Inclusion,Sen/Inclusion,Other Local Authorities,Third Pp - Other Local Auth,PC101,13/08/2021,686444,37983.44,REVENUE,REDACTED PERSONAL INFORMATION,REDACTED PERSONAL INFORMATION
North East Lincolnshire Council,http://statistics.data.gov.uk/id/local-authority/00FC),Childrens Services,Education And Inclusion,Sen/Inclusion,Other Local Authorities,Third Pp - Other Local Auth,PC101,13/08/2021,686456,9710.17,REVENUE,REDACTED PERSONAL INFORMATION,REDACTED PERSONAL INFORMATION
North East Lincolnshire Council,http://statistics.data.gov.uk/id/local-authority/00FC),Childrens Services,Education And Inclusion,Sen/Inclusion,Other Local Authorities,Third Pp - Other Local Auth,PC101,13/08/2021,686450,9710.17,REVENUE,REDACTED PERSONAL INFORMATION,REDACTED PERSONAL INFORMATION
North East Lincolnshire Council,http://statistics.data.gov.uk/id/local-authority/00FC),Childrens Services,Education And Inclusion,Sen/Inclusion,Other Local Authorities,Third Pp - Other Local Auth,PC101,13/08/2021,686446,7501.23,REVENUE,REDACTED PERSONAL INFORMATION,REDACTED PERSONAL INFORMATION
North East Lincolnshire Council,http://statistics.data.gov.uk/id/local-authority/00FC),Childrens Services,Education And Inclusion,Sen/Inclusion,Other Local Authorities,Third Pp - Other Local Auth,PC101,13/08/2021,686430,3968,REVENUE,REDACTED PERSONAL INFORMATION,REDACTED PERSONAL INFORMATION
North East Lincolnshire Council,http://statistics.data.gov.uk/id/local-authority/00FC),Childrens Services,Education And Inclusion,Sen/Inclusion,Other Local Authorities,Third Pp - Other Local Auth,PC101,19/08/2021,687013,2193.75,REVENUE,REDACTED PERSONAL INFORMATION,REDACTED PERSONAL INFORMATION
North East Lincolnshire Council,http://statistics.data.gov.uk/id/local-authority/00FC),Childrens Services,Education And Inclusion,Sen/Inclusion,Other Local Authorities,Third Pp - Other Local Auth,PC101,19/08/2021,687014,2925,REVENUE,REDACTED PERSONAL INFORMATION,REDACTED PERSONAL INFORMATION
North East Lincolnshire Council,http://statistics.data.gov.uk/id/local-authority/00FC),Childrens Services,Education And Inclusion,Sen/Inclusion,Other Local Authorities,Third Pp - Other Local Auth,PC101,19/08/2021,687016,1462.5,REVENUE,REDACTED PERSONAL INFORMATION,REDACTED PERSONAL INFORMATION
North East Lincolnshire Council,http://statistics.data.gov.uk/id/local-authority/00FC),Childrens Services,Education And Inclusion,Sen/Inclusion,Other Local Authorities,Third Pp - Other Local Auth,PC101,19/08/2021,687017,2767.5,REVENUE,REDACTED PERSONAL INFORMATION,REDACTED PERSONAL INFORMATION
North East Lincolnshire Council,http://statistics.data.gov.uk/id/local-authority/00FC),Childrens Services,Education And Inclusion,Sen/Inclusion,Other Local Authorities,Third Pp - Other Local Auth,PC101,19/08/2021,687018,3555,REVENUE,REDACTED PERSONAL INFORMATION,REDACTED PERSONAL INFORMATION
North East Lincolnshire Council,http://statistics.data.gov.uk/id/local-authority/00FC),Childrens Services,Education And Inclusion,Sen/Inclusion,Other Local Authorities,Third Pp - Other Local Auth,PC101,19/08/2021,687019,28374,REVENUE,REDACTED PERSONAL INFORMATION,REDACTED PERSONAL INFORMATION
North East Lincolnshire Council,http://statistics.data.gov.uk/id/local-authority/00FC),Childrens Services,Education And Inclusion,Sen/Inclusion,Other Local Authorities,Third Pp - Other Local Auth,PC101,16/08/2021,686571,21128.33,REVENUE,REDACTED PERSONAL INFORMATION,REDACTED PERSONAL INFORMATION
North East Lincolnshire Council,http://statistics.data.gov.uk/id/local-authority/00FC),Childrens Services,Education And Inclusion,Sen/Inclusion,Other Local Authorities,Third Pp - Other Local Auth,PC101,19/08/2021,687024,19190.92,REVENUE,REDACTED PERSONAL INFORMATION,REDACTED PERSONAL INFORMATION
North East Lincolnshire Council,http://statistics.data.gov.uk/id/local-authority/00FC),Childrens Services,Education And Inclusion,Sen/Inclusion,Other Local Authorities,Third Pp - Other Local Auth,PC101,13/08/2021,686453,8107,REVENUE,REDACTED PERSONAL INFORMATION,REDACTED PERSONAL INFORMATION
North East Lincolnshire Council,http://statistics.data.gov.uk/id/local-authority/00FC),Childrens Services,Education And Inclusion,Sen/Inclusion,Other Local Authorities,Third Pp - Other Local Auth,PC101,13/08/2021,686459,13898,REVENUE,REDACTED PERSONAL INFORMATION,REDACTED PERSONAL INFORMATION
North East Lincolnshire Council,http://statistics.data.gov.uk/id/local-authority/00FC),Childrens Services,Education And Inclusion,Sen/Inclusion,Other Local Authorities,Third Pp - Other Local Auth,PC101,13/08/2021,686447,600,REVENUE,REDACTED PERSONAL INFORMATION,REDACTED PERSONAL INFORMATION
North East Lincolnshire Council,http://statistics.data.gov.uk/id/local-authority/00FC),Childrens Services,Education And Inclusion,Sen/Inclusion,Other Local Authorities,Third Pp - Other Local Auth,PC101,13/08/2021,686454,3187.5,REVENUE,REDACTED PERSONAL INFORMATION,REDACTED PERSONAL INFORMATION
North East Lincolnshire Council,http://statistics.data.gov.uk/id/local-authority/00FC),Childrens Services,Education And Inclusion,Sen/Inclusion,Other Local Authorities,Third Pp - Other Local Auth,PC101,19/08/2021,686954,600,REVENUE,REDACTED PERSONAL INFORMATION,REDACTED PERSONAL INFORMATION
North East Lincolnshire Council,http://statistics.data.gov.uk/id/local-authority/00FC),Childrens Services,Education And Inclusion,Sen/Inclusion,Other Local Authorities,Third Pp - Other Local Auth,PC101,19/08/2021,687009,450,REVENUE,REDACTED PERSONAL INFORMATION,REDACTED PERSONAL INFORMATION
North East Lincolnshire Council,http://statistics.data.gov.uk/id/local-authority/00FC),Childrens Services,Education And Inclusion,School Improvement,Direct Employee Expenses,Agency Staff,EA105,06/08/2021,685389,1250,REVENUE,MARK PERRY,138952
North East Lincolnshire Council,http://statistics.data.gov.uk/id/local-authority/00FC),Childrens Services,Education And Inclusion,School Improvement,Contributions To Provisions,Contributions - Other,LK103,03/08/2021,684854,1247.4,REVENUE,WELHOLME ACADEMY,127227
North East Lincolnshire Council,http://statistics.data.gov.uk/id/local-authority/00FC),Childrens Services,Education And Inclusion,School Improvement,Contributions To Provisions,Contributions - Other,LK103,17/08/2021,686610,750,REVENUE,CLEETHORPES CHILDCARE,101591
North East Lincolnshire Council,http://statistics.data.gov.uk/id/local-authority/00FC),Childrens Services,Education And Inclusion,School Improvement,Contributions To Provisions,Contributions - Other,LK103,17/08/2021,686612,750,REVENUE,FIRST STEPS WITH SURE START,126658
North East Lincolnshire Council,http://statistics.data.gov.uk/id/local-authority/00FC),Childrens Services,Education And Inclusion,School Improvement,Contributions To Provisions,Contributions - Other,LK103,17/08/2021,686614,750,REVENUE,IMMINGHAM DAY CARE,122312
North East Lincolnshire Council,http://statistics.data.gov.uk/id/local-authority/00FC),Childrens Services,Education And Inclusion,School Improvement,Contributions To Provisions,Contributions - Other,LK103,17/08/2021,686616,750,REVENUE,LITTLE TWINKLES CHILDCARE LTD,122217
North East Lincolnshire Council,http://statistics.data.gov.uk/id/local-authority/00FC),Childrens Services,Education And Inclusion,School Improvement,Contributions To Provisions,Contributions - Other,LK103,17/08/2021,686601,1500,REVENUE,THRUNSCOE PRIMARY AND NURSERY ACADEMY,118749
North East Lincolnshire Council,http://statistics.data.gov.uk/id/local-authority/00FC),Childrens Services,Education And Inclusion,School Improvement,Contributions To Provisions,Contributions - Other,LK103,17/08/2021,686602,1500,REVENUE,WIZ KIDZ,102424
North East Lincolnshire Council,http://statistics.data.gov.uk/id/local-authority/00FC),Childrens Services,Education And Inclusion,School Improvement,Contributions To Provisions,Contributions - Other,LK103,17/08/2021,686617,750,REVENUE,HUMBERSTON PRE SCHOOL,114491
North East Lincolnshire Council,http://statistics.data.gov.uk/id/local-authority/00FC),Childrens Services,Education And Inclusion,School Improvement,Contributions To Provisions,Contributions - Other,LK103,24/08/2021,687196,300,REVENUE,FIRST STEPS GRIMSBY LIMITED,101411
North East Lincolnshire Council,http://statistics.data.gov.uk/id/local-authority/00FC),Childrens Services,Education And Inclusion,School Improvement,Contributions To Provisions,Contributions - Other,LK103,16/08/2021,686298,950.5,REVENUE,ETAC LIMITED,101710
North East Lincolnshire Council,http://statistics.data.gov.uk/id/local-authority/00FC),Childrens Services,Education And Inclusion,Reynolds Day Care,Equip / Furniture / Materials,Equipment - Purchase,LA101,31/08/2021,687868,821.55,REVENUE,BANAMAN,100513
North East Lincolnshire Council,http://statistics.data.gov.uk/id/local-authority/00FC),Childrens Services,Safer And Partnerships,Young And Safe,Equip / Furniture / Materials,Equipment - Maintenance,LA104,26/08/2021,687779,8571,REVENUE,ENGIE SERVICES LTD,133267
North East Lincolnshire Council,http://statistics.data.gov.uk/id/local-authority/00FC),Childrens Services,Safer And Partnerships,Young And Safe,Equip / Furniture / Materials,Equipment - Purchase,LA101,13/08/2021,686497,9195,REVENUE,PCC HUMBERSIDE,120398
North East Lincolnshire Council,http://statistics.data.gov.uk/id/local-authority/00FC),Childrens Services,Safer And Partnerships,Young And Safe,Government Departments,Third Party Prov - Govt Depts,PE101,13/08/2021,686514,22049,REVENUE,PCC HUMBERSIDE,120398
North East Lincolnshire Council,http://statistics.data.gov.uk/id/local-authority/00FC),Childrens Services,Safer And Partnerships,Child Safeguarding Review Serv,Private Contractors,Translation & Interpreter Serv,PH113,17/08/2021,686848,409.86,REVENUE,HE WORDS,122711
North East Lincolnshire Council,http://statistics.data.gov.uk/id/local-authority/00FC),Childrens Services,Safer And Partnerships,Child Safeguarding Review Serv,Private Contractors,Translation & Interpreter Serv,PH113,17/08/2021,686848,409.87,REVENUE,HE WORDS,122711
North East Lincolnshire Council,http://statistics.data.gov.uk/id/local-authority/00FC),Childrens Services,Childrens Trust,Palliative / Complex Care,Private Contractors,Third Party Prov - Private,PH101,04/08/2021,685177,2975.66,REVENUE,AK PAYROLL SERVICES LTD,145106
North East Lincolnshire Council,http://statistics.data.gov.uk/id/local-authority/00FC),Childrens Services,Childrens Trust,Palliative / Complex Care,Private Contractors,Third Party Prov - Private,PH101,03/08/2021,685183,896.62,REVENUE,AK PAYROLL SERVICES LTD,145107
North East Lincolnshire Council,http://statistics.data.gov.uk/id/local-authority/00FC),Childrens Services,Childrens Trust,Palliative / Complex Care,Private Contractors,Third Party Prov - Private,PH101,03/08/2021,685176,3302.7,REVENUE,AK PAYROLL SERVICES LTD,145114
North East Lincolnshire Council,http://statistics.data.gov.uk/id/local-authority/00FC),Childrens Services,Childrens Trust,Palliative / Complex Care,Private Contractors,Third Party Prov - Private,PH101,05/08/2021,685175,966.7,REVENUE,AK PAYROLL SERVICES LTD,145113
North East Lincolnshire Council,http://statistics.data.gov.uk/id/local-authority/00FC),Childrens Services,Childrens Trust,Palliative / Complex Care,Private Contractors,Third Party Prov - Private,PH101,03/08/2021,685174,1901.1,REVENUE,AK PAYROLL SERVICES LTD,145112
North East Lincolnshire Council,http://statistics.data.gov.uk/id/local-authority/00FC),Childrens Services,Childrens Trust,Palliative / Complex Care,Private Contractors,Third Party Prov - Private,PH101,03/08/2021,685173,990.06,REVENUE,AK PAYROLL SERVICES LTD,145109
North East Lincolnshire Council,http://statistics.data.gov.uk/id/local-authority/00FC),Childrens Services,Childrens Trust,Childrens Mental & Emot Health,Health Authorities,Third Pp - Health Auth,PD101,09/08/2021,685654,600,REVENUE,FORTIS THERAPY & TRAINING,120445
North East Lincolnshire Council,http://statistics.data.gov.uk/id/local-authority/00FC),Childrens Services,Childrens Trust,Childrens Mental & Emot Health,Health Authorities,Third Pp - Health Auth,PD101,09/08/2021,685655,405,REVENUE,THE PURPLE HOUSE CLINIC,140915
North East Lincolnshire Council,http://statistics.data.gov.uk/id/local-authority/00FC),Childrens Services,Childrens Trust,Childrens Mental & Emot Health,Private Contractors,Contract Payments,PH105,10/08/2021,685817,248705.75,REVENUE,LINCOLNSHIRE PARTNERSHIP NHS FOUNDATION TRUST,105021
North East Lincolnshire Council,http://statistics.data.gov.uk/id/local-authority/00FC),Childrens Services,Childrens Trust,Childrens Mental & Emot Health,Other Agencies,Top Up,PJ123,10/08/2021,685541,13799.91,REVENUE,LINCOLNSHIRE PARTNERSHIP NHS FOUNDATION TRUST,105021
North East Lincolnshire Council,http://statistics.data.gov.uk/id/local-authority/00FC),Childrens Services,Childrens Trust,Childrens Mental & Emot Health,Voluntary Associations,Third Pp - Third Sector,PF101,19/08/2021,686935,950,REVENUE,STONEWALL EQUALITY LTD,146154
North East Lincolnshire Council,http://statistics.data.gov.uk/id/local-authority/00FC),Childrens Services,Childrens Trust,Childrens Mental & Emot Health,Private Contractors,Contract Payments,PH105,19/08/2021,686936,6249.71,REVENUE,KOOTH DIGITAL HEALTH LIMITED,135941
North East Lincolnshire Council,http://statistics.data.gov.uk/id/local-authority/00FC),Childrens Services,Safeguard & Early Help,Childrens Health,Private Contractors,Third Party Prov - Private,PH101,10/08/2021,685431,25866.93,REVENUE,NHS NORTH EAST LINCOLNSHIRE CCG,121549
North East Lincolnshire Council,http://statistics.data.gov.uk/id/local-authority/00FC),Childrens Services,Safeguard & Early Help,Childrens Health,Indirect Employee Expenses,Staff Training,EB122,03/08/2021,684767,250,REVENUE,FOREFRONT TRAINING LTD,105501
North East Lincolnshire Council,http://statistics.data.gov.uk/id/local-authority/00FC),Childrens Services,Safeguard & Early Help,Childrens Health,Indirect Employee Expenses,Staff Training,EB122,05/08/2021,685221,250,REVENUE,FOREFRONT TRAINING LTD,105501
North East Lincolnshire Council,http://statistics.data.gov.uk/id/local-authority/00FC),Childrens Services,Safeguard & Early Help,Childrens Health,Clothes Uniforms And Laundry,Uniforms,LC102,20/08/2021,687169,271.84,REVENUE,MI HUB LTD T/A ALEXANDRA,109705
North East Lincolnshire Council,http://statistics.data.gov.uk/id/local-authority/00FC),Childrens Services,Safeguard & Early Help,Childrens Health,Print Stationery / Gen Off Exp,Printing And Stationery,LD103,02/08/2021,684733,268,REVENUE,LYRECO UK LIMITED,101120
North East Lincolnshire Council,http://statistics.data.gov.uk/id/local-authority/00FC),Childrens Services,Safeguard & Early Help,Childrens Health,Communications And Computing,Computer H/Ware - Purchases,LF105,17/08/2021,686644,1512,REVENUE,XMA LIMITED,100699
North East Lincolnshire Council,http://statistics.data.gov.uk/id/local-authority/00FC),Childrens Services,Safeguard & Early Help,Childrens Health,Private Contractors,Translation & Interpreter Serv,PH113,17/08/2021,686882,260,REVENUE,HE WORDS,122711
North East Lincolnshire Council,http://statistics.data.gov.uk/id/local-authority/00FC),Childrens Services,Safeguard & Early Help,Head Of Child Resource & Reg,Other Agencies,Additional Cost,PJ114,03/08/2021,947030,900.99,REVENUE,REDACTED PERSONAL INFORMATION,REDACTED PERSONAL INFORMATION
North East Lincolnshire Council,http://statistics.data.gov.uk/id/local-authority/00FC),Childrens Services,Safeguard & Early Help,Head Of Child Resource & Reg,Other Agencies,Additional Cost,PJ114,17/08/2021,951290,301,REVENUE,REDACTED PERSONAL INFORMATION,REDACTED PERSONAL INFORMATION
North East Lincolnshire Council,http://statistics.data.gov.uk/id/local-authority/00FC),Childrens Services,Safeguard & Early Help,Head Of Child Resource & Reg,Other Agencies,Additional Cost,PJ114,24/08/2021,953453,350,REVENUE,REDACTED PERSONAL INFORMATION,REDACTED PERSONAL INFORMATION
North East Lincolnshire Council,http://statistics.data.gov.uk/id/local-authority/00FC),Childrens Services,Safeguard & Early Help,Head Of Child Resource & Reg,Other Agencies,Additional Cost,PJ114,10/08/2021,949457,317.76,REVENUE,REDACTED PERSONAL INFORMATION,REDACTED PERSONAL INFORMATION
North East Lincolnshire Council,http://statistics.data.gov.uk/id/local-authority/00FC),Childrens Services,Safeguard & Early Help,Head Of Child Resource & Reg,Other Agencies,Child Care Payments,PJ104,03/08/2021,946909,364,REVENUE,REDACTED PERSONAL INFORMATION,REDACTED PERSONAL INFORMATION
North East Lincolnshire Council,http://statistics.data.gov.uk/id/local-authority/00FC),Childrens Services,Safeguard & Early Help,Head Of Child Resource & Reg,Other Agencies,Child Care Payments,PJ104,03/08/2021,946985,364,REVENUE,REDACTED PERSONAL INFORMATION,REDACTED PERSONAL INFORMATION
North East Lincolnshire Council,http://statistics.data.gov.uk/id/local-authority/00FC),Childrens Services,Safeguard & Early Help,Head Of Child Resource & Reg,Other Agencies,Child Care Payments,PJ104,03/08/2021,946771,364,REVENUE,REDACTED PERSONAL INFORMATION,REDACTED PERSONAL INFORMATION
North East Lincolnshire Council,http://statistics.data.gov.uk/id/local-authority/00FC),Childrens Services,Safeguard & Early Help,Head Of Child Resource & Reg,Other Agencies,Child Care Payments,PJ104,03/08/2021,946797,364,REVENUE,REDACTED PERSONAL INFORMATION,REDACTED PERSONAL INFORMATION
North East Lincolnshire Council,http://statistics.data.gov.uk/id/local-authority/00FC),Childrens Services,Safeguard & Early Help,Head Of Child Resource & Reg,Other Agencies,Child Care Payments,PJ104,10/08/2021,949188,364,REVENUE,REDACTED PERSONAL INFORMATION,REDACTED PERSONAL INFORMATION
North East Lincolnshire Council,http://statistics.data.gov.uk/id/local-authority/00FC),Childrens Services,Safeguard & Early Help,Head Of Child Resource & Reg,Other Agencies,Child Care Payments,PJ104,10/08/2021,949214,364,REVENUE,REDACTED PERSONAL INFORMATION,REDACTED PERSONAL INFORMATION
North East Lincolnshire Council,http://statistics.data.gov.uk/id/local-authority/00FC),Childrens Services,Safeguard & Early Help,Head Of Child Resource & Reg,Other Agencies,Child Care Payments,PJ104,10/08/2021,949325,364,REVENUE,REDACTED PERSONAL INFORMATION,REDACTED PERSONAL INFORMATION
North East Lincolnshire Council,http://statistics.data.gov.uk/id/local-authority/00FC),Childrens Services,Safeguard & Early Help,Head Of Child Resource & Reg,Other Agencies,Child Care Payments,PJ104,10/08/2021,949401,364,REVENUE,REDACTED PERSONAL INFORMATION,REDACTED PERSONAL INFORMATION
North East Lincolnshire Council,http://statistics.data.gov.uk/id/local-authority/00FC),Childrens Services,Safeguard & Early Help,Head Of Child Resource & Reg,Other Agencies,Child Care Payments,PJ104,17/08/2021,950732,364,REVENUE,REDACTED PERSONAL INFORMATION,REDACTED PERSONAL INFORMATION
North East Lincolnshire Council,http://statistics.data.gov.uk/id/local-authority/00FC),Childrens Services,Safeguard & Early Help,Head Of Child Resource & Reg,Other Agencies,Child Care Payments,PJ104,17/08/2021,950758,364,REVENUE,REDACTED PERSONAL INFORMATION,REDACTED PERSONAL INFORMATION
North East Lincolnshire Council,http://statistics.data.gov.uk/id/local-authority/00FC),Childrens Services,Safeguard & Early Help,Head Of Child Resource & Reg,Other Agencies,Child Care Payments,PJ104,17/08/2021,950869,364,REVENUE,REDACTED PERSONAL INFORMATION,REDACTED PERSONAL INFORMATION
North East Lincolnshire Council,http://statistics.data.gov.uk/id/local-authority/00FC),Childrens Services,Safeguard & Early Help,Head Of Child Resource & Reg,Other Agencies,Child Care Payments,PJ104,17/08/2021,950945,364,REVENUE,REDACTED PERSONAL INFORMATION,REDACTED PERSONAL INFORMATION
North East Lincolnshire Council,http://statistics.data.gov.uk/id/local-authority/00FC),Childrens Services,Safeguard & Early Help,Head Of Child Resource & Reg,Other Agencies,Child Care Payments,PJ104,24/08/2021,953335,364,REVENUE,REDACTED PERSONAL INFORMATION,REDACTED PERSONAL INFORMATION
North East Lincolnshire Council,http://statistics.data.gov.uk/id/local-authority/00FC),Childrens Services,Safeguard & Early Help,Head Of Child Resource & Reg,Other Agencies,Child Care Payments,PJ104,24/08/2021,953147,364,REVENUE,REDACTED PERSONAL INFORMATION,REDACTED PERSONAL INFORMATION
North East Lincolnshire Council,http://statistics.data.gov.uk/id/local-authority/00FC),Childrens Services,Safeguard & Early Help,Head Of Child Resource & Reg,Other Agencies,Child Care Payments,PJ104,24/08/2021,953260,364,REVENUE,REDACTED PERSONAL INFORMATION,REDACTED PERSONAL INFORMATION
North East Lincolnshire Council,http://statistics.data.gov.uk/id/local-authority/00FC),Childrens Services,Safeguard & Early Help,Head Of Child Resource & Reg,Other Agencies,Child Care Payments,PJ104,24/08/2021,953121,364,REVENUE,REDACTED PERSONAL INFORMATION,REDACTED PERSONAL INFORMATION
North East Lincolnshire Council,http://statistics.data.gov.uk/id/local-authority/00FC),Childrens Services,Safeguard & Early Help,Head Of Child Resource & Reg,Other Agencies,Child Care Payments,PJ104,31/08/2021,955486,364,REVENUE,REDACTED PERSONAL INFORMATION,REDACTED PERSONAL INFORMATION
North East Lincolnshire Council,http://statistics.data.gov.uk/id/local-authority/00FC),Childrens Services,Safeguard & Early Help,Head Of Child Resource & Reg,Other Agencies,Child Care Payments,PJ104,31/08/2021,955411,364,REVENUE,REDACTED PERSONAL INFORMATION,REDACTED PERSONAL INFORMATION
North East Lincolnshire Council,http://statistics.data.gov.uk/id/local-authority/00FC),Childrens Services,Safeguard & Early Help,Head Of Child Resource & Reg,Other Agencies,Child Care Payments,PJ104,31/08/2021,955658,312,REVENUE,REDACTED PERSONAL INFORMATION,REDACTED PERSONAL INFORMATION
North East Lincolnshire Council,http://statistics.data.gov.uk/id/local-authority/00FC),Childrens Services,Safeguard & Early Help,Head Of Child Resource & Reg,Other Agencies,Child Care Payments,PJ104,31/08/2021,955301,364,REVENUE,REDACTED PERSONAL INFORMATION,REDACTED PERSONAL INFORMATION
North East Lincolnshire Council,http://statistics.data.gov.uk/id/local-authority/00FC),Childrens Services,Safeguard & Early Help,Head Of Child Resource & Reg,Other Agencies,Child Care Payments,PJ104,03/08/2021,947203,304,REVENUE,REDACTED PERSONAL INFORMATION,REDACTED PERSONAL INFORMATION
North East Lincolnshire Council,http://statistics.data.gov.uk/id/local-authority/00FC),Childrens Services,Safeguard & Early Help,Head Of Child Resource & Reg,Other Agencies,Child Care Payments,PJ104,03/08/2021,947100,290,REVENUE,REDACTED PERSONAL INFORMATION,REDACTED PERSONAL INFORMATION
North East Lincolnshire Council,http://statistics.data.gov.uk/id/local-authority/00FC),Childrens Services,Safeguard & Early Help,Head Of Child Resource & Reg,Other Agencies,Child Care Payments,PJ104,03/08/2021,947104,477,REVENUE,REDACTED PERSONAL INFORMATION,REDACTED PERSONAL INFORMATION
North East Lincolnshire Council,http://statistics.data.gov.uk/id/local-authority/00FC),Childrens Services,Safeguard & Early Help,Head Of Child Resource & Reg,Other Agencies,Child Care Payments,PJ104,10/08/2021,949523,477,REVENUE,REDACTED PERSONAL INFORMATION,REDACTED PERSONAL INFORMATION
North East Lincolnshire Council,http://statistics.data.gov.uk/id/local-authority/00FC),Childrens Services,Safeguard & Early Help,Head Of Child Resource & Reg,Other Agencies,Child Care Payments,PJ104,10/08/2021,949622,304,REVENUE,REDACTED PERSONAL INFORMATION,REDACTED PERSONAL INFORMATION
North East Lincolnshire Council,http://statistics.data.gov.uk/id/local-authority/00FC),Childrens Services,Safeguard & Early Help,Head Of Child Resource & Reg,Other Agencies,Child Care Payments,PJ104,17/08/2021,951063,477,REVENUE,REDACTED PERSONAL INFORMATION,REDACTED PERSONAL INFORMATION
North East Lincolnshire Council,http://statistics.data.gov.uk/id/local-authority/00FC),Childrens Services,Safeguard & Early Help,Head Of Child Resource & Reg,Other Agencies,Child Care Payments,PJ104,17/08/2021,951163,304,REVENUE,REDACTED PERSONAL INFORMATION,REDACTED PERSONAL INFORMATION
North East Lincolnshire Council,http://statistics.data.gov.uk/id/local-authority/00FC),Childrens Services,Safeguard & Early Help,Head Of Child Resource & Reg,Other Agencies,Child Care Payments,PJ104,24/08/2021,953551,304,REVENUE,REDACTED PERSONAL INFORMATION,REDACTED PERSONAL INFORMATION
North East Lincolnshire Council,http://statistics.data.gov.uk/id/local-authority/00FC),Childrens Services,Safeguard & Early Help,Head Of Child Resource & Reg,Other Agencies,Child Care Payments,PJ104,24/08/2021,953453,477,REVENUE,REDACTED PERSONAL INFORMATION,REDACTED PERSONAL INFORMATION
North East Lincolnshire Council,http://statistics.data.gov.uk/id/local-authority/00FC),Childrens Services,Safeguard & Early Help,Head Of Child Resource & Reg,Other Agencies,Child Care Payments,PJ104,31/08/2021,955602,477,REVENUE,REDACTED PERSONAL INFORMATION,REDACTED PERSONAL INFORMATION
North East Lincolnshire Council,http://statistics.data.gov.uk/id/local-authority/00FC),Childrens Services,Safeguard & Early Help,Head Of Child Resource & Reg,Other Agencies,Child Care Payments,PJ104,31/08/2021,955702,304,REVENUE,REDACTED PERSONAL INFORMATION,REDACTED PERSONAL INFORMATION
North East Lincolnshire Council,http://statistics.data.gov.uk/id/local-authority/00FC),Childrens Services,Safeguard & Early Help,Head Of Child Resource & Reg,Other Agencies,Child Care Payments,PJ104,03/08/2021,946909,304,REVENUE,REDACTED PERSONAL INFORMATION,REDACTED PERSONAL INFORMATION
North East Lincolnshire Council,http://statistics.data.gov.uk/id/local-authority/00FC),Childrens Services,Safeguard & Early Help,Head Of Child Resource & Reg,Other Agencies,Child Care Payments,PJ104,03/08/2021,946985,290,REVENUE,REDACTED PERSONAL INFORMATION,REDACTED PERSONAL INFORMATION
North East Lincolnshire Council,http://statistics.data.gov.uk/id/local-authority/00FC),Childrens Services,Safeguard & Early Help,Head Of Child Resource & Reg,Other Agencies,Child Care Payments,PJ104,03/08/2021,946771,290,REVENUE,REDACTED PERSONAL INFORMATION,REDACTED PERSONAL INFORMATION
North East Lincolnshire Council,http://statistics.data.gov.uk/id/local-authority/00FC),Childrens Services,Safeguard & Early Help,Head Of Child Resource & Reg,Other Agencies,Child Care Payments,PJ104,03/08/2021,946786,290,REVENUE,REDACTED PERSONAL INFORMATION,REDACTED PERSONAL INFORMATION
North East Lincolnshire Council,http://statistics.data.gov.uk/id/local-authority/00FC),Childrens Services,Safeguard & Early Help,Head Of Child Resource & Reg,Other Agencies,Child Care Payments,PJ104,03/08/2021,946797,346,REVENUE,REDACTED PERSONAL INFORMATION,REDACTED PERSONAL INFORMATION
North East Lincolnshire Council,http://statistics.data.gov.uk/id/local-authority/00FC),Childrens Services,Safeguard & Early Help,Head Of Child Resource & Reg,Other Agencies,Child Care Payments,PJ104,10/08/2021,949188,290,REVENUE,REDACTED PERSONAL INFORMATION,REDACTED PERSONAL INFORMATION
North East Lincolnshire Council,http://statistics.data.gov.uk/id/local-authority/00FC),Childrens Services,Safeguard & Early Help,Head Of Child Resource & Reg,Other Agencies,Child Care Payments,PJ104,10/08/2021,949203,290,REVENUE,REDACTED PERSONAL INFORMATION,REDACTED PERSONAL INFORMATION
North East Lincolnshire Council,http://statistics.data.gov.uk/id/local-authority/00FC),Childrens Services,Safeguard & Early Help,Head Of Child Resource & Reg,Other Agencies,Child Care Payments,PJ104,10/08/2021,949214,346,REVENUE,REDACTED PERSONAL INFORMATION,REDACTED PERSONAL INFORMATION
North East Lincolnshire Council,http://statistics.data.gov.uk/id/local-authority/00FC),Childrens Services,Safeguard & Early Help,Head Of Child Resource & Reg,Other Agencies,Child Care Payments,PJ104,10/08/2021,949325,304,REVENUE,REDACTED PERSONAL INFORMATION,REDACTED PERSONAL INFORMATION
North East Lincolnshire Council,http://statistics.data.gov.uk/id/local-authority/00FC),Childrens Services,Safeguard & Early Help,Head Of Child Resource & Reg,Other Agencies,Child Care Payments,PJ104,10/08/2021,949401,290,REVENUE,REDACTED PERSONAL INFORMATION,REDACTED PERSONAL INFORMATION
North East Lincolnshire Council,http://statistics.data.gov.uk/id/local-authority/00FC),Childrens Services,Safeguard & Early Help,Head Of Child Resource & Reg,Other Agencies,Child Care Payments,PJ104,17/08/2021,950732,290,REVENUE,REDACTED PERSONAL INFORMATION,REDACTED PERSONAL INFORMATION
North East Lincolnshire Council,http://statistics.data.gov.uk/id/local-authority/00FC),Childrens Services,Safeguard & Early Help,Head Of Child Resource & Reg,Other Agencies,Child Care Payments,PJ104,17/08/2021,950747,290,REVENUE,REDACTED PERSONAL INFORMATION,REDACTED PERSONAL INFORMATION
North East Lincolnshire Council,http://statistics.data.gov.uk/id/local-authority/00FC),Childrens Services,Safeguard & Early Help,Head Of Child Resource & Reg,Other Agencies,Child Care Payments,PJ104,17/08/2021,950758,346,REVENUE,REDACTED PERSONAL INFORMATION,REDACTED PERSONAL INFORMATION
North East Lincolnshire Council,http://statistics.data.gov.uk/id/local-authority/00FC),Childrens Services,Safeguard & Early Help,Head Of Child Resource & Reg,Other Agencies,Child Care Payments,PJ104,17/08/2021,950869,304,REVENUE,REDACTED PERSONAL INFORMATION,REDACTED PERSONAL INFORMATION
North East Lincolnshire Council,http://statistics.data.gov.uk/id/local-authority/00FC),Childrens Services,Safeguard & Early Help,Head Of Child Resource & Reg,Other Agencies,Child Care Payments,PJ104,17/08/2021,950877,276,REVENUE,REDACTED PERSONAL INFORMATION,REDACTED PERSONAL INFORMATION
North East Lincolnshire Council,http://statistics.data.gov.uk/id/local-authority/00FC),Childrens Services,Safeguard & Early Help,Head Of Child Resource & Reg,Other Agencies,Child Care Payments,PJ104,17/08/2021,950945,290,REVENUE,REDACTED PERSONAL INFORMATION,REDACTED PERSONAL INFORMATION
North East Lincolnshire Council,http://statistics.data.gov.uk/id/local-authority/00FC),Childrens Services,Safeguard & Early Help,Head Of Child Resource & Reg,Other Agencies,Child Care Payments,PJ104,24/08/2021,953335,290,REVENUE,REDACTED PERSONAL INFORMATION,REDACTED PERSONAL INFORMATION
North East Lincolnshire Council,http://statistics.data.gov.uk/id/local-authority/00FC),Childrens Services,Safeguard & Early Help,Head Of Child Resource & Reg,Other Agencies,Child Care Payments,PJ104,24/08/2021,953136,290,REVENUE,REDACTED PERSONAL INFORMATION,REDACTED PERSONAL INFORMATION
North East Lincolnshire Council,http://statistics.data.gov.uk/id/local-authority/00FC),Childrens Services,Safeguard & Early Help,Head Of Child Resource & Reg,Other Agencies,Child Care Payments,PJ104,24/08/2021,953147,346,REVENUE,REDACTED PERSONAL INFORMATION,REDACTED PERSONAL INFORMATION
North East Lincolnshire Council,http://statistics.data.gov.uk/id/local-authority/00FC),Childrens Services,Safeguard & Early Help,Head Of Child Resource & Reg,Other Agencies,Child Care Payments,PJ104,24/08/2021,953260,304,REVENUE,REDACTED PERSONAL INFORMATION,REDACTED PERSONAL INFORMATION
North East Lincolnshire Council,http://statistics.data.gov.uk/id/local-authority/00FC),Childrens Services,Safeguard & Early Help,Head Of Child Resource & Reg,Other Agencies,Child Care Payments,PJ104,24/08/2021,953121,290,REVENUE,REDACTED PERSONAL INFORMATION,REDACTED PERSONAL INFORMATION
North East Lincolnshire Council,http://statistics.data.gov.uk/id/local-authority/00FC),Childrens Services,Safeguard & Early Help,Head Of Child Resource & Reg,Other Agencies,Child Care Payments,PJ104,31/08/2021,955486,290,REVENUE,REDACTED PERSONAL INFORMATION,REDACTED PERSONAL INFORMATION
North East Lincolnshire Council,http://statistics.data.gov.uk/id/local-authority/00FC),Childrens Services,Safeguard & Early Help,Head Of Child Resource & Reg,Other Agencies,Child Care Payments,PJ104,31/08/2021,955411,304,REVENUE,REDACTED PERSONAL INFORMATION,REDACTED PERSONAL INFORMATION
North East Lincolnshire Council,http://statistics.data.gov.uk/id/local-authority/00FC),Childrens Services,Safeguard & Early Help,Head Of Child Resource & Reg,Other Agencies,Child Care Payments,PJ104,31/08/2021,955290,290,REVENUE,REDACTED PERSONAL INFORMATION,REDACTED PERSONAL INFORMATION
North East Lincolnshire Council,http://statistics.data.gov.uk/id/local-authority/00FC),Childrens Services,Safeguard & Early Help,Head Of Child Resource & Reg,Other Agencies,Child Care Payments,PJ104,31/08/2021,955301,346,REVENUE,REDACTED PERSONAL INFORMATION,REDACTED PERSONAL INFORMATION
North East Lincolnshire Council,http://statistics.data.gov.uk/id/local-authority/00FC),Childrens Services,Safeguard & Early Help,Head Of Child Resource & Reg,Other Agencies,Child Care Payments,PJ104,10/08/2021,949754,1172.57,REVENUE,REDACTED PERSONAL INFORMATION,REDACTED PERSONAL INFORMATION
North East Lincolnshire Council,http://statistics.data.gov.uk/id/local-authority/00FC),Childrens Services,Safeguard & Early Help,Head Of Child Resource & Reg,Other Agencies,Child Care Payments,PJ104,03/08/2021,946980,416,REVENUE,REDACTED PERSONAL INFORMATION,REDACTED PERSONAL INFORMATION
North East Lincolnshire Council,http://statistics.data.gov.uk/id/local-authority/00FC),Childrens Services,Safeguard & Early Help,Head Of Child Resource & Reg,Other Agencies,Child Care Payments,PJ104,03/08/2021,946980,315.43,REVENUE,REDACTED PERSONAL INFORMATION,REDACTED PERSONAL INFORMATION
North East Lincolnshire Council,http://statistics.data.gov.uk/id/local-authority/00FC),Childrens Services,Safeguard & Early Help,Head Of Child Resource & Reg,Other Agencies,Child Care Payments,PJ104,03/08/2021,947017,364,REVENUE,REDACTED PERSONAL INFORMATION,REDACTED PERSONAL INFORMATION
North East Lincolnshire Council,http://statistics.data.gov.uk/id/local-authority/00FC),Childrens Services,Safeguard & Early Help,Head Of Child Resource & Reg,Other Agencies,Child Care Payments,PJ104,10/08/2021,949433,364,REVENUE,REDACTED PERSONAL INFORMATION,REDACTED PERSONAL INFORMATION
North East Lincolnshire Council,http://statistics.data.gov.uk/id/local-authority/00FC),Childrens Services,Safeguard & Early Help,Head Of Child Resource & Reg,Other Agencies,Child Care Payments,PJ104,17/08/2021,950976,364,REVENUE,REDACTED PERSONAL INFORMATION,REDACTED PERSONAL INFORMATION
North East Lincolnshire Council,http://statistics.data.gov.uk/id/local-authority/00FC),Childrens Services,Safeguard & Early Help,Head Of Child Resource & Reg,Other Agencies,Child Care Payments,PJ104,24/08/2021,953366,364,REVENUE,REDACTED PERSONAL INFORMATION,REDACTED PERSONAL INFORMATION
North East Lincolnshire Council,http://statistics.data.gov.uk/id/local-authority/00FC),Childrens Services,Safeguard & Early Help,Head Of Child Resource & Reg,Other Agencies,Child Care Payments,PJ104,31/08/2021,955517,364,REVENUE,REDACTED PERSONAL INFORMATION,REDACTED PERSONAL INFORMATION
North East Lincolnshire Council,http://statistics.data.gov.uk/id/local-authority/00FC),Childrens Services,Safeguard & Early Help,Head Of Child Resource & Reg,Other Agencies,Child Care Payments,PJ104,03/08/2021,947017,346,REVENUE,REDACTED PERSONAL INFORMATION,REDACTED PERSONAL INFORMATION
North East Lincolnshire Council,http://statistics.data.gov.uk/id/local-authority/00FC),Childrens Services,Safeguard & Early Help,Head Of Child Resource & Reg,Other Agencies,Child Care Payments,PJ104,10/08/2021,949433,346,REVENUE,REDACTED PERSONAL INFORMATION,REDACTED PERSONAL INFORMATION
North East Lincolnshire Council,http://statistics.data.gov.uk/id/local-authority/00FC),Childrens Services,Safeguard & Early Help,Head Of Child Resource & Reg,Other Agencies,Child Care Payments,PJ104,17/08/2021,950976,346,REVENUE,REDACTED PERSONAL INFORMATION,REDACTED PERSONAL INFORMATION
North East Lincolnshire Council,http://statistics.data.gov.uk/id/local-authority/00FC),Childrens Services,Safeguard & Early Help,Head Of Child Resource & Reg,Other Agencies,Child Care Payments,PJ104,24/08/2021,953366,346,REVENUE,REDACTED PERSONAL INFORMATION,REDACTED PERSONAL INFORMATION
North East Lincolnshire Council,http://statistics.data.gov.uk/id/local-authority/00FC),Childrens Services,Safeguard & Early Help,Head Of Child Resource & Reg,Other Agencies,Child Care Payments,PJ104,31/08/2021,955517,346,REVENUE,REDACTED PERSONAL INFORMATION,REDACTED PERSONAL INFORMATION
North East Lincolnshire Council,http://statistics.data.gov.uk/id/local-authority/00FC),Childrens Services,Safeguard & Early Help,Head Of Child Resource & Reg,Other Agencies,Child Care Payments,PJ104,03/08/2021,946772,259.71,REVENUE,REDACTED PERSONAL INFORMATION,REDACTED PERSONAL INFORMATION
North East Lincolnshire Council,http://statistics.data.gov.uk/id/local-authority/00FC),Childrens Services,Safeguard & Early Help,Head Of Child Resource & Reg,Other Agencies,Child Care Payments,PJ104,03/08/2021,947274,596.57,REVENUE,REDACTED PERSONAL INFORMATION,REDACTED PERSONAL INFORMATION
North East Lincolnshire Council,http://statistics.data.gov.uk/id/local-authority/00FC),Childrens Services,Safeguard & Early Help,Head Of Child Resource & Reg,Other Agencies,Child Care Payments,PJ104,10/08/2021,949697,818.35,REVENUE,REDACTED PERSONAL INFORMATION,REDACTED PERSONAL INFORMATION
North East Lincolnshire Council,http://statistics.data.gov.uk/id/local-authority/00FC),Childrens Services,Safeguard & Early Help,Head Of Child Resource & Reg,Other Agencies,Child Care Payments,PJ104,17/08/2021,951296,315.43,REVENUE,REDACTED PERSONAL INFORMATION,REDACTED PERSONAL INFORMATION
North East Lincolnshire Council,http://statistics.data.gov.uk/id/local-authority/00FC),Childrens Services,Safeguard & Early Help,Head Of Child Resource & Reg,Other Agencies,Child Care Payments,PJ104,24/08/2021,953511,453.43,REVENUE,REDACTED PERSONAL INFORMATION,REDACTED PERSONAL INFORMATION
North East Lincolnshire Council,http://statistics.data.gov.uk/id/local-authority/00FC),Childrens Services,Safeguard & Early Help,Head Of Child Resource & Reg,Other Agencies,Child Care Payments,PJ104,24/08/2021,953337,283.78,REVENUE,REDACTED PERSONAL INFORMATION,REDACTED PERSONAL INFORMATION
North East Lincolnshire Council,http://statistics.data.gov.uk/id/local-authority/00FC),Childrens Services,Safeguard & Early Help,Head Of Child Resource & Reg,Other Agencies,Child Care Payments,PJ104,24/08/2021,953657,1518,REVENUE,REDACTED PERSONAL INFORMATION,REDACTED PERSONAL INFORMATION
North East Lincolnshire Council,http://statistics.data.gov.uk/id/local-authority/00FC),Childrens Services,Safeguard & Early Help,Head Of Child Resource & Reg,Other Agencies,Child Care Payments,PJ104,24/08/2021,953321,338,REVENUE,REDACTED PERSONAL INFORMATION,REDACTED PERSONAL INFORMATION
North East Lincolnshire Council,http://statistics.data.gov.uk/id/local-authority/00FC),Childrens Services,Safeguard & Early Help,Head Of Child Resource & Reg,Other Agencies,Child Care Payments,PJ104,24/08/2021,953321,321.29,REVENUE,REDACTED PERSONAL INFORMATION,REDACTED PERSONAL INFORMATION
North East Lincolnshire Council,http://statistics.data.gov.uk/id/local-authority/00FC),Childrens Services,Safeguard & Early Help,Head Of Child Resource & Reg,Other Agencies,Child Care Payments,PJ104,03/08/2021,947315,290,REVENUE,REDACTED PERSONAL INFORMATION,REDACTED PERSONAL INFORMATION
North East Lincolnshire Council,http://statistics.data.gov.uk/id/local-authority/00FC),Childrens Services,Safeguard & Early Help,Head Of Child Resource & Reg,Other Agencies,Child Care Payments,PJ104,10/08/2021,949739,290,REVENUE,REDACTED PERSONAL INFORMATION,REDACTED PERSONAL INFORMATION
North East Lincolnshire Council,http://statistics.data.gov.uk/id/local-authority/00FC),Childrens Services,Safeguard & Early Help,Head Of Child Resource & Reg,Other Agencies,Child Care Payments,PJ104,17/08/2021,951276,290,REVENUE,REDACTED PERSONAL INFORMATION,REDACTED PERSONAL INFORMATION
North East Lincolnshire Council,http://statistics.data.gov.uk/id/local-authority/00FC),Childrens Services,Safeguard & Early Help,Head Of Child Resource & Reg,Other Agencies,Child Care Payments,PJ104,24/08/2021,953663,290,REVENUE,REDACTED PERSONAL INFORMATION,REDACTED PERSONAL INFORMATION
North East Lincolnshire Council,http://statistics.data.gov.uk/id/local-authority/00FC),Childrens Services,Safeguard & Early Help,Head Of Child Resource & Reg,Other Agencies,Child Care Payments,PJ104,31/08/2021,955812,290,REVENUE,REDACTED PERSONAL INFORMATION,REDACTED PERSONAL INFORMATION
North East Lincolnshire Council,http://statistics.data.gov.uk/id/local-authority/00FC),Childrens Services,Safeguard & Early Help,Head Of Child Resource & Reg,Other Agencies,Child Care Payments,PJ104,03/08/2021,947084,304,REVENUE,REDACTED PERSONAL INFORMATION,REDACTED PERSONAL INFORMATION
North East Lincolnshire Council,http://statistics.data.gov.uk/id/local-authority/00FC),Childrens Services,Safeguard & Early Help,Head Of Child Resource & Reg,Other Agencies,Child Care Payments,PJ104,10/08/2021,949503,304,REVENUE,REDACTED PERSONAL INFORMATION,REDACTED PERSONAL INFORMATION
North East Lincolnshire Council,http://statistics.data.gov.uk/id/local-authority/00FC),Childrens Services,Safeguard & Early Help,Head Of Child Resource & Reg,Other Agencies,Child Care Payments,PJ104,17/08/2021,951043,304,REVENUE,REDACTED PERSONAL INFORMATION,REDACTED PERSONAL INFORMATION
North East Lincolnshire Council,http://statistics.data.gov.uk/id/local-authority/00FC),Childrens Services,Safeguard & Early Help,Head Of Child Resource & Reg,Other Agencies,Child Care Payments,PJ104,24/08/2021,953433,304,REVENUE,REDACTED PERSONAL INFORMATION,REDACTED PERSONAL INFORMATION
North East Lincolnshire Council,http://statistics.data.gov.uk/id/local-authority/00FC),Childrens Services,Safeguard & Early Help,Head Of Child Resource & Reg,Other Agencies,Child Care Payments,PJ104,31/08/2021,955583,304,REVENUE,REDACTED PERSONAL INFORMATION,REDACTED PERSONAL INFORMATION
North East Lincolnshire Council,http://statistics.data.gov.uk/id/local-authority/00FC),Childrens Services,Safeguard & Early Help,Head Of Child Resource & Reg,Other Agencies,Child Care Payments,PJ104,03/08/2021,947152,364,REVENUE,REDACTED PERSONAL INFORMATION,REDACTED PERSONAL INFORMATION
North East Lincolnshire Council,http://statistics.data.gov.uk/id/local-authority/00FC),Childrens Services,Safeguard & Early Help,Head Of Child Resource & Reg,Other Agencies,Child Care Payments,PJ104,10/08/2021,949572,364,REVENUE,REDACTED PERSONAL INFORMATION,REDACTED PERSONAL INFORMATION
North East Lincolnshire Council,http://statistics.data.gov.uk/id/local-authority/00FC),Childrens Services,Safeguard & Early Help,Head Of Child Resource & Reg,Other Agencies,Child Care Payments,PJ104,17/08/2021,951111,364,REVENUE,REDACTED PERSONAL INFORMATION,REDACTED PERSONAL INFORMATION
North East Lincolnshire Council,http://statistics.data.gov.uk/id/local-authority/00FC),Childrens Services,Safeguard & Early Help,Head Of Child Resource & Reg,Other Agencies,Child Care Payments,PJ104,24/08/2021,953501,364,REVENUE,REDACTED PERSONAL INFORMATION,REDACTED PERSONAL INFORMATION
North East Lincolnshire Council,http://statistics.data.gov.uk/id/local-authority/00FC),Childrens Services,Safeguard & Early Help,Head Of Child Resource & Reg,Other Agencies,Child Care Payments,PJ104,31/08/2021,955651,364,REVENUE,REDACTED PERSONAL INFORMATION,REDACTED PERSONAL INFORMATION
North East Lincolnshire Council,http://statistics.data.gov.uk/id/local-authority/00FC),Childrens Services,Safeguard & Early Help,Head Of Child Resource & Reg,Other Agencies,Child Care Payments,PJ104,03/08/2021,947152,290,REVENUE,REDACTED PERSONAL INFORMATION,REDACTED PERSONAL INFORMATION
North East Lincolnshire Council,http://statistics.data.gov.uk/id/local-authority/00FC),Childrens Services,Safeguard & Early Help,Head Of Child Resource & Reg,Other Agencies,Child Care Payments,PJ104,10/08/2021,949572,290,REVENUE,REDACTED PERSONAL INFORMATION,REDACTED PERSONAL INFORMATION
North East Lincolnshire Council,http://statistics.data.gov.uk/id/local-authority/00FC),Childrens Services,Safeguard & Early Help,Head Of Child Resource & Reg,Other Agencies,Child Care Payments,PJ104,17/08/2021,951111,290,REVENUE,REDACTED PERSONAL INFORMATION,REDACTED PERSONAL INFORMATION
North East Lincolnshire Council,http://statistics.data.gov.uk/id/local-authority/00FC),Childrens Services,Safeguard & Early Help,Head Of Child Resource & Reg,Other Agencies,Child Care Payments,PJ104,24/08/2021,953501,290,REVENUE,REDACTED PERSONAL INFORMATION,REDACTED PERSONAL INFORMATION
North East Lincolnshire Council,http://statistics.data.gov.uk/id/local-authority/00FC),Childrens Services,Safeguard & Early Help,Head Of Child Resource & Reg,Other Agencies,Child Care Payments,PJ104,31/08/2021,955651,290,REVENUE,REDACTED PERSONAL INFORMATION,REDACTED PERSONAL INFORMATION
North East Lincolnshire Council,http://statistics.data.gov.uk/id/local-authority/00FC),Childrens Services,Safeguard & Early Help,Head Of Child Resource & Reg,Other Agencies,Child Care Payments,PJ104,03/08/2021,947326,346,REVENUE,REDACTED PERSONAL INFORMATION,REDACTED PERSONAL INFORMATION
North East Lincolnshire Council,http://statistics.data.gov.uk/id/local-authority/00FC),Childrens Services,Safeguard & Early Help,Head Of Child Resource & Reg,Other Agencies,Child Care Payments,PJ104,10/08/2021,949752,346,REVENUE,REDACTED PERSONAL INFORMATION,REDACTED PERSONAL INFORMATION
North East Lincolnshire Council,http://statistics.data.gov.uk/id/local-authority/00FC),Childrens Services,Safeguard & Early Help,Head Of Child Resource & Reg,Other Agencies,Child Care Payments,PJ104,17/08/2021,951289,346,REVENUE,REDACTED PERSONAL INFORMATION,REDACTED PERSONAL INFORMATION
North East Lincolnshire Council,http://statistics.data.gov.uk/id/local-authority/00FC),Childrens Services,Safeguard & Early Help,Head Of Child Resource & Reg,Other Agencies,Child Care Payments,PJ104,24/08/2021,953677,346,REVENUE,REDACTED PERSONAL INFORMATION,REDACTED PERSONAL INFORMATION
North East Lincolnshire Council,http://statistics.data.gov.uk/id/local-authority/00FC),Childrens Services,Safeguard & Early Help,Head Of Child Resource & Reg,Other Agencies,Child Care Payments,PJ104,31/08/2021,955824,346,REVENUE,REDACTED PERSONAL INFORMATION,REDACTED PERSONAL INFORMATION
North East Lincolnshire Council,http://statistics.data.gov.uk/id/local-authority/00FC),Childrens Services,Safeguard & Early Help,Head Of Child Resource & Reg,Other Agencies,Child Care Payments,PJ104,10/08/2021,949696,-646,REVENUE,REDACTED PERSONAL INFORMATION,REDACTED PERSONAL INFORMATION
North East Lincolnshire Council,http://statistics.data.gov.uk/id/local-authority/00FC),Childrens Services,Safeguard & Early Help,Head Of Child Resource & Reg,Other Agencies,Child Care Payments,PJ104,03/08/2021,946800,411.43,REVENUE,REDACTED PERSONAL INFORMATION,REDACTED PERSONAL INFORMATION
North East Lincolnshire Council,http://statistics.data.gov.uk/id/local-authority/00FC),Childrens Services,Safeguard & Early Help,Head Of Child Resource & Reg,Other Agencies,Child Care Payments,PJ104,10/08/2021,949217,335.14,REVENUE,REDACTED PERSONAL INFORMATION,REDACTED PERSONAL INFORMATION
North East Lincolnshire Council,http://statistics.data.gov.uk/id/local-authority/00FC),Childrens Services,Safeguard & Early Help,Head Of Child Resource & Reg,Other Agencies,Child Care Payments,PJ104,10/08/2021,949217,335.14,REVENUE,REDACTED PERSONAL INFORMATION,REDACTED PERSONAL INFORMATION
North East Lincolnshire Council,http://statistics.data.gov.uk/id/local-authority/00FC),Childrens Services,Safeguard & Early Help,Head Of Child Resource & Reg,Other Agencies,Child Care Payments,PJ104,31/08/2021,955644,338,REVENUE,REDACTED PERSONAL INFORMATION,REDACTED PERSONAL INFORMATION
North East Lincolnshire Council,http://statistics.data.gov.uk/id/local-authority/00FC),Childrens Services,Safeguard & Early Help,Head Of Child Resource & Reg,Other Agencies,Child Care Payments,PJ104,31/08/2021,955644,282.29,REVENUE,REDACTED PERSONAL INFORMATION,REDACTED PERSONAL INFORMATION
North East Lincolnshire Council,http://statistics.data.gov.uk/id/local-authority/00FC),Childrens Services,Safeguard & Early Help,Head Of Child Resource & Reg,Other Agencies,Child Care Payments,PJ104,03/08/2021,947107,1779.43,REVENUE,REDACTED PERSONAL INFORMATION,REDACTED PERSONAL INFORMATION
North East Lincolnshire Council,http://statistics.data.gov.uk/id/local-authority/00FC),Childrens Services,Safeguard & Early Help,Head Of Child Resource & Reg,Other Agencies,Contract Plus,PJ135,03/08/2021,946811,315,REVENUE,REDACTED PERSONAL INFORMATION,REDACTED PERSONAL INFORMATION
North East Lincolnshire Council,http://statistics.data.gov.uk/id/local-authority/00FC),Childrens Services,Safeguard & Early Help,Head Of Child Resource & Reg,Other Agencies,Contract Plus,PJ135,03/08/2021,946812,315,REVENUE,REDACTED PERSONAL INFORMATION,REDACTED PERSONAL INFORMATION
North East Lincolnshire Council,http://statistics.data.gov.uk/id/local-authority/00FC),Childrens Services,Safeguard & Early Help,Head Of Child Resource & Reg,Other Agencies,Contract Plus,PJ135,03/08/2021,946825,315,REVENUE,REDACTED PERSONAL INFORMATION,REDACTED PERSONAL INFORMATION
North East Lincolnshire Council,http://statistics.data.gov.uk/id/local-authority/00FC),Childrens Services,Safeguard & Early Help,Head Of Child Resource & Reg,Other Agencies,Contract Plus,PJ135,03/08/2021,946834,315,REVENUE,REDACTED PERSONAL INFORMATION,REDACTED PERSONAL INFORMATION
North East Lincolnshire Council,http://statistics.data.gov.uk/id/local-authority/00FC),Childrens Services,Safeguard & Early Help,Head Of Child Resource & Reg,Other Agencies,Contract Plus,PJ135,03/08/2021,946854,315,REVENUE,REDACTED PERSONAL INFORMATION,REDACTED PERSONAL INFORMATION
North East Lincolnshire Council,http://statistics.data.gov.uk/id/local-authority/00FC),Childrens Services,Safeguard & Early Help,Head Of Child Resource & Reg,Other Agencies,Contract Plus,PJ135,03/08/2021,946858,315,REVENUE,REDACTED PERSONAL INFORMATION,REDACTED PERSONAL INFORMATION
North East Lincolnshire Council,http://statistics.data.gov.uk/id/local-authority/00FC),Childrens Services,Safeguard & Early Help,Head Of Child Resource & Reg,Other Agencies,Contract Plus,PJ135,03/08/2021,946911,315,REVENUE,REDACTED PERSONAL INFORMATION,REDACTED PERSONAL INFORMATION
North East Lincolnshire Council,http://statistics.data.gov.uk/id/local-authority/00FC),Childrens Services,Safeguard & Early Help,Head Of Child Resource & Reg,Other Agencies,Contract Plus,PJ135,03/08/2021,946928,315,REVENUE,REDACTED PERSONAL INFORMATION,REDACTED PERSONAL INFORMATION
North East Lincolnshire Council,http://statistics.data.gov.uk/id/local-authority/00FC),Childrens Services,Safeguard & Early Help,Head Of Child Resource & Reg,Other Agencies,Contract Plus,PJ135,03/08/2021,946945,315,REVENUE,REDACTED PERSONAL INFORMATION,REDACTED PERSONAL INFORMATION
North East Lincolnshire Council,http://statistics.data.gov.uk/id/local-authority/00FC),Childrens Services,Safeguard & Early Help,Head Of Child Resource & Reg,Other Agencies,Contract Plus,PJ135,03/08/2021,946955,315,REVENUE,REDACTED PERSONAL INFORMATION,REDACTED PERSONAL INFORMATION
North East Lincolnshire Council,http://statistics.data.gov.uk/id/local-authority/00FC),Childrens Services,Safeguard & Early Help,Head Of Child Resource & Reg,Other Agencies,Contract Plus,PJ135,03/08/2021,946981,315,REVENUE,REDACTED PERSONAL INFORMATION,REDACTED PERSONAL INFORMATION
North East Lincolnshire Council,http://statistics.data.gov.uk/id/local-authority/00FC),Childrens Services,Safeguard & Early Help,Head Of Child Resource & Reg,Other Agencies,Contract Plus,PJ135,03/08/2021,947079,315,REVENUE,REDACTED PERSONAL INFORMATION,REDACTED PERSONAL INFORMATION
North East Lincolnshire Council,http://statistics.data.gov.uk/id/local-authority/00FC),Childrens Services,Safeguard & Early Help,Head Of Child Resource & Reg,Other Agencies,Contract Plus,PJ135,03/08/2021,946769,315,REVENUE,REDACTED PERSONAL INFORMATION,REDACTED PERSONAL INFORMATION
North East Lincolnshire Council,http://statistics.data.gov.uk/id/local-authority/00FC),Childrens Services,Safeguard & Early Help,Head Of Child Resource & Reg,Other Agencies,Contract Plus,PJ135,03/08/2021,946783,315,REVENUE,REDACTED PERSONAL INFORMATION,REDACTED PERSONAL INFORMATION
North East Lincolnshire Council,http://statistics.data.gov.uk/id/local-authority/00FC),Childrens Services,Safeguard & Early Help,Head Of Child Resource & Reg,Other Agencies,Contract Plus,PJ135,03/08/2021,946786,315,REVENUE,REDACTED PERSONAL INFORMATION,REDACTED PERSONAL INFORMATION
North East Lincolnshire Council,http://statistics.data.gov.uk/id/local-authority/00FC),Childrens Services,Safeguard & Early Help,Head Of Child Resource & Reg,Other Agencies,Contract Plus,PJ135,03/08/2021,946798,315,REVENUE,REDACTED PERSONAL INFORMATION,REDACTED PERSONAL INFORMATION
North East Lincolnshire Council,http://statistics.data.gov.uk/id/local-authority/00FC),Childrens Services,Safeguard & Early Help,Head Of Child Resource & Reg,Other Agencies,Contract Plus,PJ135,10/08/2021,949498,315,REVENUE,REDACTED PERSONAL INFORMATION,REDACTED PERSONAL INFORMATION
North East Lincolnshire Council,http://statistics.data.gov.uk/id/local-authority/00FC),Childrens Services,Safeguard & Early Help,Head Of Child Resource & Reg,Other Agencies,Contract Plus,PJ135,10/08/2021,949186,315,REVENUE,REDACTED PERSONAL INFORMATION,REDACTED PERSONAL INFORMATION
North East Lincolnshire Council,http://statistics.data.gov.uk/id/local-authority/00FC),Childrens Services,Safeguard & Early Help,Head Of Child Resource & Reg,Other Agencies,Contract Plus,PJ135,10/08/2021,949200,315,REVENUE,REDACTED PERSONAL INFORMATION,REDACTED PERSONAL INFORMATION
North East Lincolnshire Council,http://statistics.data.gov.uk/id/local-authority/00FC),Childrens Services,Safeguard & Early Help,Head Of Child Resource & Reg,Other Agencies,Contract Plus,PJ135,10/08/2021,949203,315,REVENUE,REDACTED PERSONAL INFORMATION,REDACTED PERSONAL INFORMATION
North East Lincolnshire Council,http://statistics.data.gov.uk/id/local-authority/00FC),Childrens Services,Safeguard & Early Help,Head Of Child Resource & Reg,Other Agencies,Contract Plus,PJ135,10/08/2021,949215,315,REVENUE,REDACTED PERSONAL INFORMATION,REDACTED PERSONAL INFORMATION
North East Lincolnshire Council,http://statistics.data.gov.uk/id/local-authority/00FC),Childrens Services,Safeguard & Early Help,Head Of Child Resource & Reg,Other Agencies,Contract Plus,PJ135,10/08/2021,949228,315,REVENUE,REDACTED PERSONAL INFORMATION,REDACTED PERSONAL INFORMATION
North East Lincolnshire Council,http://statistics.data.gov.uk/id/local-authority/00FC),Childrens Services,Safeguard & Early Help,Head Of Child Resource & Reg,Other Agencies,Contract Plus,PJ135,10/08/2021,949229,315,REVENUE,REDACTED PERSONAL INFORMATION,REDACTED PERSONAL INFORMATION
North East Lincolnshire Council,http://statistics.data.gov.uk/id/local-authority/00FC),Childrens Services,Safeguard & Early Help,Head Of Child Resource & Reg,Other Agencies,Contract Plus,PJ135,10/08/2021,949242,315,REVENUE,REDACTED PERSONAL INFORMATION,REDACTED PERSONAL INFORMATION
North East Lincolnshire Council,http://statistics.data.gov.uk/id/local-authority/00FC),Childrens Services,Safeguard & Early Help,Head Of Child Resource & Reg,Other Agencies,Contract Plus,PJ135,10/08/2021,949251,315,REVENUE,REDACTED PERSONAL INFORMATION,REDACTED PERSONAL INFORMATION
North East Lincolnshire Council,http://statistics.data.gov.uk/id/local-authority/00FC),Childrens Services,Safeguard & Early Help,Head Of Child Resource & Reg,Other Agencies,Contract Plus,PJ135,10/08/2021,949270,315,REVENUE,REDACTED PERSONAL INFORMATION,REDACTED PERSONAL INFORMATION
North East Lincolnshire Council,http://statistics.data.gov.uk/id/local-authority/00FC),Childrens Services,Safeguard & Early Help,Head Of Child Resource & Reg,Other Agencies,Contract Plus,PJ135,10/08/2021,949273,315,REVENUE,REDACTED PERSONAL INFORMATION,REDACTED PERSONAL INFORMATION
North East Lincolnshire Council,http://statistics.data.gov.uk/id/local-authority/00FC),Childrens Services,Safeguard & Early Help,Head Of Child Resource & Reg,Other Agencies,Contract Plus,PJ135,10/08/2021,949327,315,REVENUE,REDACTED PERSONAL INFORMATION,REDACTED PERSONAL INFORMATION
North East Lincolnshire Council,http://statistics.data.gov.uk/id/local-authority/00FC),Childrens Services,Safeguard & Early Help,Head Of Child Resource & Reg,Other Agencies,Contract Plus,PJ135,10/08/2021,949344,315,REVENUE,REDACTED PERSONAL INFORMATION,REDACTED PERSONAL INFORMATION
North East Lincolnshire Council,http://statistics.data.gov.uk/id/local-authority/00FC),Childrens Services,Safeguard & Early Help,Head Of Child Resource & Reg,Other Agencies,Contract Plus,PJ135,10/08/2021,949361,315,REVENUE,REDACTED PERSONAL INFORMATION,REDACTED PERSONAL INFORMATION
North East Lincolnshire Council,http://statistics.data.gov.uk/id/local-authority/00FC),Childrens Services,Safeguard & Early Help,Head Of Child Resource & Reg,Other Agencies,Contract Plus,PJ135,10/08/2021,949371,315,REVENUE,REDACTED PERSONAL INFORMATION,REDACTED PERSONAL INFORMATION
North East Lincolnshire Council,http://statistics.data.gov.uk/id/local-authority/00FC),Childrens Services,Safeguard & Early Help,Head Of Child Resource & Reg,Other Agencies,Contract Plus,PJ135,10/08/2021,949397,315,REVENUE,REDACTED PERSONAL INFORMATION,REDACTED PERSONAL INFORMATION
North East Lincolnshire Council,http://statistics.data.gov.uk/id/local-authority/00FC),Childrens Services,Safeguard & Early Help,Head Of Child Resource & Reg,Other Agencies,Contract Plus,PJ135,17/08/2021,950730,315,REVENUE,REDACTED PERSONAL INFORMATION,REDACTED PERSONAL INFORMATION
North East Lincolnshire Council,http://statistics.data.gov.uk/id/local-authority/00FC),Childrens Services,Safeguard & Early Help,Head Of Child Resource & Reg,Other Agencies,Contract Plus,PJ135,17/08/2021,951038,315,REVENUE,REDACTED PERSONAL INFORMATION,REDACTED PERSONAL INFORMATION
North East Lincolnshire Council,http://statistics.data.gov.uk/id/local-authority/00FC),Childrens Services,Safeguard & Early Help,Head Of Child Resource & Reg,Other Agencies,Contract Plus,PJ135,17/08/2021,950744,315,REVENUE,REDACTED PERSONAL INFORMATION,REDACTED PERSONAL INFORMATION
North East Lincolnshire Council,http://statistics.data.gov.uk/id/local-authority/00FC),Childrens Services,Safeguard & Early Help,Head Of Child Resource & Reg,Other Agencies,Contract Plus,PJ135,17/08/2021,950747,315,REVENUE,REDACTED PERSONAL INFORMATION,REDACTED PERSONAL INFORMATION
North East Lincolnshire Council,http://statistics.data.gov.uk/id/local-authority/00FC),Childrens Services,Safeguard & Early Help,Head Of Child Resource & Reg,Other Agencies,Contract Plus,PJ135,17/08/2021,950759,315,REVENUE,REDACTED PERSONAL INFORMATION,REDACTED PERSONAL INFORMATION
North East Lincolnshire Council,http://statistics.data.gov.uk/id/local-authority/00FC),Childrens Services,Safeguard & Early Help,Head Of Child Resource & Reg,Other Agencies,Contract Plus,PJ135,17/08/2021,950771,315,REVENUE,REDACTED PERSONAL INFORMATION,REDACTED PERSONAL INFORMATION
North East Lincolnshire Council,http://statistics.data.gov.uk/id/local-authority/00FC),Childrens Services,Safeguard & Early Help,Head Of Child Resource & Reg,Other Agencies,Contract Plus,PJ135,17/08/2021,950772,315,REVENUE,REDACTED PERSONAL INFORMATION,REDACTED PERSONAL INFORMATION
North East Lincolnshire Council,http://statistics.data.gov.uk/id/local-authority/00FC),Childrens Services,Safeguard & Early Help,Head Of Child Resource & Reg,Other Agencies,Contract Plus,PJ135,17/08/2021,950785,315,REVENUE,REDACTED PERSONAL INFORMATION,REDACTED PERSONAL INFORMATION
North East Lincolnshire Council,http://statistics.data.gov.uk/id/local-authority/00FC),Childrens Services,Safeguard & Early Help,Head Of Child Resource & Reg,Other Agencies,Contract Plus,PJ135,17/08/2021,950794,315,REVENUE,REDACTED PERSONAL INFORMATION,REDACTED PERSONAL INFORMATION
North East Lincolnshire Council,http://statistics.data.gov.uk/id/local-authority/00FC),Childrens Services,Safeguard & Early Help,Head Of Child Resource & Reg,Other Agencies,Contract Plus,PJ135,17/08/2021,950813,315,REVENUE,REDACTED PERSONAL INFORMATION,REDACTED PERSONAL INFORMATION
North East Lincolnshire Council,http://statistics.data.gov.uk/id/local-authority/00FC),Childrens Services,Safeguard & Early Help,Head Of Child Resource & Reg,Other Agencies,Contract Plus,PJ135,17/08/2021,950817,315,REVENUE,REDACTED PERSONAL INFORMATION,REDACTED PERSONAL INFORMATION
North East Lincolnshire Council,http://statistics.data.gov.uk/id/local-authority/00FC),Childrens Services,Safeguard & Early Help,Head Of Child Resource & Reg,Other Agencies,Contract Plus,PJ135,17/08/2021,950871,315,REVENUE,REDACTED PERSONAL INFORMATION,REDACTED PERSONAL INFORMATION
North East Lincolnshire Council,http://statistics.data.gov.uk/id/local-authority/00FC),Childrens Services,Safeguard & Early Help,Head Of Child Resource & Reg,Other Agencies,Contract Plus,PJ135,17/08/2021,950888,315,REVENUE,REDACTED PERSONAL INFORMATION,REDACTED PERSONAL INFORMATION
North East Lincolnshire Council,http://statistics.data.gov.uk/id/local-authority/00FC),Childrens Services,Safeguard & Early Help,Head Of Child Resource & Reg,Other Agencies,Contract Plus,PJ135,17/08/2021,950905,315,REVENUE,REDACTED PERSONAL INFORMATION,REDACTED PERSONAL INFORMATION
North East Lincolnshire Council,http://statistics.data.gov.uk/id/local-authority/00FC),Childrens Services,Safeguard & Early Help,Head Of Child Resource & Reg,Other Agencies,Contract Plus,PJ135,17/08/2021,950915,315,REVENUE,REDACTED PERSONAL INFORMATION,REDACTED PERSONAL INFORMATION
North East Lincolnshire Council,http://statistics.data.gov.uk/id/local-authority/00FC),Childrens Services,Safeguard & Early Help,Head Of Child Resource & Reg,Other Agencies,Contract Plus,PJ135,17/08/2021,950941,315,REVENUE,REDACTED PERSONAL INFORMATION,REDACTED PERSONAL INFORMATION
North East Lincolnshire Council,http://statistics.data.gov.uk/id/local-authority/00FC),Childrens Services,Safeguard & Early Help,Head Of Child Resource & Reg,Other Agencies,Contract Plus,PJ135,24/08/2021,953279,315,REVENUE,REDACTED PERSONAL INFORMATION,REDACTED PERSONAL INFORMATION
North East Lincolnshire Council,http://statistics.data.gov.uk/id/local-authority/00FC),Childrens Services,Safeguard & Early Help,Head Of Child Resource & Reg,Other Agencies,Contract Plus,PJ135,24/08/2021,953295,315,REVENUE,REDACTED PERSONAL INFORMATION,REDACTED PERSONAL INFORMATION
North East Lincolnshire Council,http://statistics.data.gov.uk/id/local-authority/00FC),Childrens Services,Safeguard & Early Help,Head Of Child Resource & Reg,Other Agencies,Contract Plus,PJ135,24/08/2021,953305,315,REVENUE,REDACTED PERSONAL INFORMATION,REDACTED PERSONAL INFORMATION
North East Lincolnshire Council,http://statistics.data.gov.uk/id/local-authority/00FC),Childrens Services,Safeguard & Early Help,Head Of Child Resource & Reg,Other Agencies,Contract Plus,PJ135,24/08/2021,953331,315,REVENUE,REDACTED PERSONAL INFORMATION,REDACTED PERSONAL INFORMATION
North East Lincolnshire Council,http://statistics.data.gov.uk/id/local-authority/00FC),Childrens Services,Safeguard & Early Help,Head Of Child Resource & Reg,Other Agencies,Contract Plus,PJ135,24/08/2021,953133,315,REVENUE,REDACTED PERSONAL INFORMATION,REDACTED PERSONAL INFORMATION
North East Lincolnshire Council,http://statistics.data.gov.uk/id/local-authority/00FC),Childrens Services,Safeguard & Early Help,Head Of Child Resource & Reg,Other Agencies,Contract Plus,PJ135,24/08/2021,953136,315,REVENUE,REDACTED PERSONAL INFORMATION,REDACTED PERSONAL INFORMATION
North East Lincolnshire Council,http://statistics.data.gov.uk/id/local-authority/00FC),Childrens Services,Safeguard & Early Help,Head Of Child Resource & Reg,Other Agencies,Contract Plus,PJ135,24/08/2021,953148,315,REVENUE,REDACTED PERSONAL INFORMATION,REDACTED PERSONAL INFORMATION
North East Lincolnshire Council,http://statistics.data.gov.uk/id/local-authority/00FC),Childrens Services,Safeguard & Early Help,Head Of Child Resource & Reg,Other Agencies,Contract Plus,PJ135,24/08/2021,953160,315,REVENUE,REDACTED PERSONAL INFORMATION,REDACTED PERSONAL INFORMATION
North East Lincolnshire Council,http://statistics.data.gov.uk/id/local-authority/00FC),Childrens Services,Safeguard & Early Help,Head Of Child Resource & Reg,Other Agencies,Contract Plus,PJ135,24/08/2021,953161,315,REVENUE,REDACTED PERSONAL INFORMATION,REDACTED PERSONAL INFORMATION
North East Lincolnshire Council,http://statistics.data.gov.uk/id/local-authority/00FC),Childrens Services,Safeguard & Early Help,Head Of Child Resource & Reg,Other Agencies,Contract Plus,PJ135,24/08/2021,953175,315,REVENUE,REDACTED PERSONAL INFORMATION,REDACTED PERSONAL INFORMATION
North East Lincolnshire Council,http://statistics.data.gov.uk/id/local-authority/00FC),Childrens Services,Safeguard & Early Help,Head Of Child Resource & Reg,Other Agencies,Contract Plus,PJ135,24/08/2021,953428,315,REVENUE,REDACTED PERSONAL INFORMATION,REDACTED PERSONAL INFORMATION
North East Lincolnshire Council,http://statistics.data.gov.uk/id/local-authority/00FC),Childrens Services,Safeguard & Early Help,Head Of Child Resource & Reg,Other Agencies,Contract Plus,PJ135,24/08/2021,953184,315,REVENUE,REDACTED PERSONAL INFORMATION,REDACTED PERSONAL INFORMATION
North East Lincolnshire Council,http://statistics.data.gov.uk/id/local-authority/00FC),Childrens Services,Safeguard & Early Help,Head Of Child Resource & Reg,Other Agencies,Contract Plus,PJ135,24/08/2021,953204,315,REVENUE,REDACTED PERSONAL INFORMATION,REDACTED PERSONAL INFORMATION
North East Lincolnshire Council,http://statistics.data.gov.uk/id/local-authority/00FC),Childrens Services,Safeguard & Early Help,Head Of Child Resource & Reg,Other Agencies,Contract Plus,PJ135,24/08/2021,953207,315,REVENUE,REDACTED PERSONAL INFORMATION,REDACTED PERSONAL INFORMATION
North East Lincolnshire Council,http://statistics.data.gov.uk/id/local-authority/00FC),Childrens Services,Safeguard & Early Help,Head Of Child Resource & Reg,Other Agencies,Contract Plus,PJ135,24/08/2021,953262,315,REVENUE,REDACTED PERSONAL INFORMATION,REDACTED PERSONAL INFORMATION
North East Lincolnshire Council,http://statistics.data.gov.uk/id/local-authority/00FC),Childrens Services,Safeguard & Early Help,Head Of Child Resource & Reg,Other Agencies,Contract Plus,PJ135,24/08/2021,953119,315,REVENUE,REDACTED PERSONAL INFORMATION,REDACTED PERSONAL INFORMATION
North East Lincolnshire Council,http://statistics.data.gov.uk/id/local-authority/00FC),Childrens Services,Safeguard & Early Help,Head Of Child Resource & Reg,Other Agencies,Contract Plus,PJ135,31/08/2021,955274,315,REVENUE,REDACTED PERSONAL INFORMATION,REDACTED PERSONAL INFORMATION
North East Lincolnshire Council,http://statistics.data.gov.uk/id/local-authority/00FC),Childrens Services,Safeguard & Early Help,Head Of Child Resource & Reg,Other Agencies,Contract Plus,PJ135,31/08/2021,955413,315,REVENUE,REDACTED PERSONAL INFORMATION,REDACTED PERSONAL INFORMATION
North East Lincolnshire Council,http://statistics.data.gov.uk/id/local-authority/00FC),Childrens Services,Safeguard & Early Help,Head Of Child Resource & Reg,Other Agencies,Contract Plus,PJ135,31/08/2021,955287,315,REVENUE,REDACTED PERSONAL INFORMATION,REDACTED PERSONAL INFORMATION
North East Lincolnshire Council,http://statistics.data.gov.uk/id/local-authority/00FC),Childrens Services,Safeguard & Early Help,Head Of Child Resource & Reg,Other Agencies,Contract Plus,PJ135,31/08/2021,955290,315,REVENUE,REDACTED PERSONAL INFORMATION,REDACTED PERSONAL INFORMATION
North East Lincolnshire Council,http://statistics.data.gov.uk/id/local-authority/00FC),Childrens Services,Safeguard & Early Help,Head Of Child Resource & Reg,Other Agencies,Contract Plus,PJ135,31/08/2021,955430,315,REVENUE,REDACTED PERSONAL INFORMATION,REDACTED PERSONAL INFORMATION
North East Lincolnshire Council,http://statistics.data.gov.uk/id/local-authority/00FC),Childrens Services,Safeguard & Early Help,Head Of Child Resource & Reg,Other Agencies,Contract Plus,PJ135,31/08/2021,955302,315,REVENUE,REDACTED PERSONAL INFORMATION,REDACTED PERSONAL INFORMATION
North East Lincolnshire Council,http://statistics.data.gov.uk/id/local-authority/00FC),Childrens Services,Safeguard & Early Help,Head Of Child Resource & Reg,Other Agencies,Contract Plus,PJ135,31/08/2021,955314,315,REVENUE,REDACTED PERSONAL INFORMATION,REDACTED PERSONAL INFORMATION
North East Lincolnshire Council,http://statistics.data.gov.uk/id/local-authority/00FC),Childrens Services,Safeguard & Early Help,Head Of Child Resource & Reg,Other Agencies,Contract Plus,PJ135,31/08/2021,955315,315,REVENUE,REDACTED PERSONAL INFORMATION,REDACTED PERSONAL INFORMATION
North East Lincolnshire Council,http://statistics.data.gov.uk/id/local-authority/00FC),Childrens Services,Safeguard & Early Help,Head Of Child Resource & Reg,Other Agencies,Contract Plus,PJ135,31/08/2021,955446,315,REVENUE,REDACTED PERSONAL INFORMATION,REDACTED PERSONAL INFORMATION
North East Lincolnshire Council,http://statistics.data.gov.uk/id/local-authority/00FC),Childrens Services,Safeguard & Early Help,Head Of Child Resource & Reg,Other Agencies,Contract Plus,PJ135,31/08/2021,955456,315,REVENUE,REDACTED PERSONAL INFORMATION,REDACTED PERSONAL INFORMATION
North East Lincolnshire Council,http://statistics.data.gov.uk/id/local-authority/00FC),Childrens Services,Safeguard & Early Help,Head Of Child Resource & Reg,Other Agencies,Contract Plus,PJ135,31/08/2021,955328,315,REVENUE,REDACTED PERSONAL INFORMATION,REDACTED PERSONAL INFORMATION
North East Lincolnshire Council,http://statistics.data.gov.uk/id/local-authority/00FC),Childrens Services,Safeguard & Early Help,Head Of Child Resource & Reg,Other Agencies,Contract Plus,PJ135,31/08/2021,955337,315,REVENUE,REDACTED PERSONAL INFORMATION,REDACTED PERSONAL INFORMATION
North East Lincolnshire Council,http://statistics.data.gov.uk/id/local-authority/00FC),Childrens Services,Safeguard & Early Help,Head Of Child Resource & Reg,Other Agencies,Contract Plus,PJ135,31/08/2021,955482,315,REVENUE,REDACTED PERSONAL INFORMATION,REDACTED PERSONAL INFORMATION
North East Lincolnshire Council,http://statistics.data.gov.uk/id/local-authority/00FC),Childrens Services,Safeguard & Early Help,Head Of Child Resource & Reg,Other Agencies,Contract Plus,PJ135,31/08/2021,955578,315,REVENUE,REDACTED PERSONAL INFORMATION,REDACTED PERSONAL INFORMATION
North East Lincolnshire Council,http://statistics.data.gov.uk/id/local-authority/00FC),Childrens Services,Safeguard & Early Help,Head Of Child Resource & Reg,Other Agencies,Contract Plus,PJ135,31/08/2021,955356,315,REVENUE,REDACTED PERSONAL INFORMATION,REDACTED PERSONAL INFORMATION
North East Lincolnshire Council,http://statistics.data.gov.uk/id/local-authority/00FC),Childrens Services,Safeguard & Early Help,Head Of Child Resource & Reg,Other Agencies,Contract Plus,PJ135,31/08/2021,955360,315,REVENUE,REDACTED PERSONAL INFORMATION,REDACTED PERSONAL INFORMATION
North East Lincolnshire Council,http://statistics.data.gov.uk/id/local-authority/00FC),Childrens Services,Safeguard & Early Help,Head Of Child Resource & Reg,Other Agencies,Exceptional Task,PJ113,10/08/2021,949217,335.14,REVENUE,REDACTED PERSONAL INFORMATION,REDACTED PERSONAL INFORMATION
North East Lincolnshire Council,http://statistics.data.gov.uk/id/local-authority/00FC),Childrens Services,Safeguard & Early Help,Head Of Child Resource & Reg,Other Agencies,Holiday,PJ108,10/08/2021,949419,276,REVENUE,REDACTED PERSONAL INFORMATION,REDACTED PERSONAL INFORMATION
North East Lincolnshire Council,http://statistics.data.gov.uk/id/local-authority/00FC),Childrens Services,Safeguard & Early Help,Head Of Child Resource & Reg,Other Agencies,Holiday,PJ108,17/08/2021,950758,346,REVENUE,REDACTED PERSONAL INFORMATION,REDACTED PERSONAL INFORMATION
North East Lincolnshire Council,http://statistics.data.gov.uk/id/local-authority/00FC),Childrens Services,Safeguard & Early Help,Head Of Child Resource & Reg,Other Agencies,Holiday,PJ108,17/08/2021,950758,346,REVENUE,REDACTED PERSONAL INFORMATION,REDACTED PERSONAL INFORMATION
North East Lincolnshire Council,http://statistics.data.gov.uk/id/local-authority/00FC),Childrens Services,Safeguard & Early Help,Head Of Child Resource & Reg,Other Agencies,Holiday,PJ108,17/08/2021,950796,304,REVENUE,REDACTED PERSONAL INFORMATION,REDACTED PERSONAL INFORMATION
North East Lincolnshire Council,http://statistics.data.gov.uk/id/local-authority/00FC),Childrens Services,Safeguard & Early Help,Head Of Child Resource & Reg,Other Agencies,Holiday,PJ108,24/08/2021,953464,276,REVENUE,REDACTED PERSONAL INFORMATION,REDACTED PERSONAL INFORMATION
North East Lincolnshire Council,http://statistics.data.gov.uk/id/local-authority/00FC),Childrens Services,Safeguard & Early Help,Head Of Child Resource & Reg,Other Agencies,Holiday,PJ108,31/08/2021,955634,276,REVENUE,REDACTED PERSONAL INFORMATION,REDACTED PERSONAL INFORMATION
North East Lincolnshire Council,http://statistics.data.gov.uk/id/local-authority/00FC),Childrens Services,Safeguard & Early Help,Head Of Child Resource & Reg,Other Agencies,Holiday,PJ108,24/08/2021,953367,276,REVENUE,REDACTED PERSONAL INFORMATION,REDACTED PERSONAL INFORMATION
North East Lincolnshire Council,http://statistics.data.gov.uk/id/local-authority/00FC),Childrens Services,Safeguard & Early Help,Head Of Child Resource & Reg,Other Agencies,Holiday,PJ108,17/08/2021,951117,276,REVENUE,REDACTED PERSONAL INFORMATION,REDACTED PERSONAL INFORMATION
North East Lincolnshire Council,http://statistics.data.gov.uk/id/local-authority/00FC),Childrens Services,Safeguard & Early Help,Head Of Child Resource & Reg,Other Agencies,Holiday,PJ108,03/08/2021,946811,304,REVENUE,REDACTED PERSONAL INFORMATION,REDACTED PERSONAL INFORMATION
North East Lincolnshire Council,http://statistics.data.gov.uk/id/local-authority/00FC),Childrens Services,Safeguard & Early Help,Head Of Child Resource & Reg,Other Agencies,Holiday,PJ108,24/08/2021,953367,346,REVENUE,REDACTED PERSONAL INFORMATION,REDACTED PERSONAL INFORMATION
North East Lincolnshire Council,http://statistics.data.gov.uk/id/local-authority/00FC),Childrens Services,Safeguard & Early Help,Head Of Child Resource & Reg,Other Agencies,Holiday,PJ108,03/08/2021,946800,276,REVENUE,REDACTED PERSONAL INFORMATION,REDACTED PERSONAL INFORMATION
North East Lincolnshire Council,http://statistics.data.gov.uk/id/local-authority/00FC),Childrens Services,Safeguard & Early Help,Head Of Child Resource & Reg,Other Agencies,Holiday,PJ108,10/08/2021,949299,304,REVENUE,REDACTED PERSONAL INFORMATION,REDACTED PERSONAL INFORMATION
North East Lincolnshire Council,http://statistics.data.gov.uk/id/local-authority/00FC),Childrens Services,Safeguard & Early Help,Head Of Child Resource & Reg,Other Agencies,Holiday,PJ108,17/08/2021,950859,304,REVENUE,REDACTED PERSONAL INFORMATION,REDACTED PERSONAL INFORMATION
North East Lincolnshire Council,http://statistics.data.gov.uk/id/local-authority/00FC),Childrens Services,Safeguard & Early Help,Head Of Child Resource & Reg,Other Agencies,Holiday,PJ108,17/08/2021,950796,346,REVENUE,REDACTED PERSONAL INFORMATION,REDACTED PERSONAL INFORMATION
North East Lincolnshire Council,http://statistics.data.gov.uk/id/local-authority/00FC),Childrens Services,Safeguard & Early Help,Head Of Child Resource & Reg,Other Agencies,Holiday,PJ108,24/08/2021,953321,346,REVENUE,REDACTED PERSONAL INFORMATION,REDACTED PERSONAL INFORMATION
North East Lincolnshire Council,http://statistics.data.gov.uk/id/local-authority/00FC),Childrens Services,Safeguard & Early Help,Head Of Child Resource & Reg,Other Agencies,Holiday,PJ108,03/08/2021,946800,276,REVENUE,REDACTED PERSONAL INFORMATION,REDACTED PERSONAL INFORMATION
North East Lincolnshire Council,http://statistics.data.gov.uk/id/local-authority/00FC),Childrens Services,Safeguard & Early Help,Head Of Child Resource & Reg,Other Agencies,Holiday,PJ108,03/08/2021,946811,276,REVENUE,REDACTED PERSONAL INFORMATION,REDACTED PERSONAL INFORMATION
North East Lincolnshire Council,http://statistics.data.gov.uk/id/local-authority/00FC),Childrens Services,Safeguard & Early Help,Head Of Child Resource & Reg,Other Agencies,Holiday,PJ108,10/08/2021,949231,346,REVENUE,REDACTED PERSONAL INFORMATION,REDACTED PERSONAL INFORMATION
North East Lincolnshire Council,http://statistics.data.gov.uk/id/local-authority/00FC),Childrens Services,Safeguard & Early Help,Head Of Child Resource & Reg,Other Agencies,Holiday,PJ108,24/08/2021,953321,346,REVENUE,REDACTED PERSONAL INFORMATION,REDACTED PERSONAL INFORMATION
North East Lincolnshire Council,http://statistics.data.gov.uk/id/local-authority/00FC),Childrens Services,Safeguard & Early Help,Head Of Child Resource & Reg,Other Agencies,Holiday,PJ108,10/08/2021,949277,276,REVENUE,REDACTED PERSONAL INFORMATION,REDACTED PERSONAL INFORMATION
North East Lincolnshire Council,http://statistics.data.gov.uk/id/local-authority/00FC),Childrens Services,Safeguard & Early Help,Head Of Child Resource & Reg,Other Agencies,Holiday,PJ108,03/08/2021,946811,304,REVENUE,REDACTED PERSONAL INFORMATION,REDACTED PERSONAL INFORMATION
North East Lincolnshire Council,http://statistics.data.gov.uk/id/local-authority/00FC),Childrens Services,Safeguard & Early Help,Head Of Child Resource & Reg,Other Agencies,Holiday,PJ108,10/08/2021,949299,346,REVENUE,REDACTED PERSONAL INFORMATION,REDACTED PERSONAL INFORMATION
North East Lincolnshire Council,http://statistics.data.gov.uk/id/local-authority/00FC),Childrens Services,Safeguard & Early Help,Head Of Child Resource & Reg,Other Agencies,Holiday,PJ108,24/08/2021,953367,346,REVENUE,REDACTED PERSONAL INFORMATION,REDACTED PERSONAL INFORMATION
North East Lincolnshire Council,http://statistics.data.gov.uk/id/local-authority/00FC),Childrens Services,Safeguard & Early Help,Head Of Child Resource & Reg,Other Agencies,Holiday,PJ108,24/08/2021,953540,404,REVENUE,REDACTED PERSONAL INFORMATION,REDACTED PERSONAL INFORMATION
North East Lincolnshire Council,http://statistics.data.gov.uk/id/local-authority/00FC),Childrens Services,Safeguard & Early Help,Head Of Child Resource & Reg,Other Agencies,Holiday,PJ108,10/08/2021,949231,346,REVENUE,REDACTED PERSONAL INFORMATION,REDACTED PERSONAL INFORMATION
North East Lincolnshire Council,http://statistics.data.gov.uk/id/local-authority/00FC),Childrens Services,Safeguard & Early Help,Head Of Child Resource & Reg,Other Agencies,Holiday,PJ108,24/08/2021,953367,346,REVENUE,REDACTED PERSONAL INFORMATION,REDACTED PERSONAL INFORMATION
North East Lincolnshire Council,http://statistics.data.gov.uk/id/local-authority/00FC),Childrens Services,Safeguard & Early Help,Head Of Child Resource & Reg,Other Agencies,Holiday,PJ108,10/08/2021,949533,276,REVENUE,REDACTED PERSONAL INFORMATION,REDACTED PERSONAL INFORMATION
North East Lincolnshire Council,http://statistics.data.gov.uk/id/local-authority/00FC),Childrens Services,Safeguard & Early Help,Head Of Child Resource & Reg,Other Agencies,Holiday,PJ108,24/08/2021,953488,304,REVENUE,REDACTED PERSONAL INFORMATION,REDACTED PERSONAL INFORMATION
North East Lincolnshire Council,http://statistics.data.gov.uk/id/local-authority/00FC),Childrens Services,Safeguard & Early Help,Head Of Child Resource & Reg,Other Agencies,Holiday,PJ108,03/08/2021,946798,346,REVENUE,REDACTED PERSONAL INFORMATION,REDACTED PERSONAL INFORMATION
North East Lincolnshire Council,http://statistics.data.gov.uk/id/local-authority/00FC),Childrens Services,Safeguard & Early Help,Head Of Child Resource & Reg,Other Agencies,Holiday,PJ108,03/08/2021,946800,276,REVENUE,REDACTED PERSONAL INFORMATION,REDACTED PERSONAL INFORMATION
North East Lincolnshire Council,http://statistics.data.gov.uk/id/local-authority/00FC),Childrens Services,Safeguard & Early Help,Head Of Child Resource & Reg,Other Agencies,Holiday,PJ108,17/08/2021,950743,404,REVENUE,REDACTED PERSONAL INFORMATION,REDACTED PERSONAL INFORMATION
North East Lincolnshire Council,http://statistics.data.gov.uk/id/local-authority/00FC),Childrens Services,Safeguard & Early Help,Head Of Child Resource & Reg,Other Agencies,Special Carer Payments,PJ128,03/08/2021,946894,711.58,REVENUE,REDACTED PERSONAL INFORMATION,REDACTED PERSONAL INFORMATION
North East Lincolnshire Council,http://statistics.data.gov.uk/id/local-authority/00FC),Childrens Services,Safeguard & Early Help,Head Of Child Resource & Reg,Other Agencies,Special Carer Payments,PJ128,03/08/2021,946775,711.58,REVENUE,REDACTED PERSONAL INFORMATION,REDACTED PERSONAL INFORMATION
North East Lincolnshire Council,http://statistics.data.gov.uk/id/local-authority/00FC),Childrens Services,Safeguard & Early Help,Head Of Child Resource & Reg,Other Agencies,Special Carer Payments,PJ128,10/08/2021,949191,711.58,REVENUE,REDACTED PERSONAL INFORMATION,REDACTED PERSONAL INFORMATION
North East Lincolnshire Council,http://statistics.data.gov.uk/id/local-authority/00FC),Childrens Services,Safeguard & Early Help,Head Of Child Resource & Reg,Other Agencies,Special Carer Payments,PJ128,10/08/2021,949310,711.58,REVENUE,REDACTED PERSONAL INFORMATION,REDACTED PERSONAL INFORMATION
North East Lincolnshire Council,http://statistics.data.gov.uk/id/local-authority/00FC),Childrens Services,Safeguard & Early Help,Head Of Child Resource & Reg,Other Agencies,Special Carer Payments,PJ128,17/08/2021,950734,711.58,REVENUE,REDACTED PERSONAL INFORMATION,REDACTED PERSONAL INFORMATION
North East Lincolnshire Council,http://statistics.data.gov.uk/id/local-authority/00FC),Childrens Services,Safeguard & Early Help,Head Of Child Resource & Reg,Other Agencies,Special Carer Payments,PJ128,17/08/2021,950854,711.58,REVENUE,REDACTED PERSONAL INFORMATION,REDACTED PERSONAL INFORMATION
North East Lincolnshire Council,http://statistics.data.gov.uk/id/local-authority/00FC),Childrens Services,Safeguard & Early Help,Head Of Child Resource & Reg,Other Agencies,Special Carer Payments,PJ128,24/08/2021,953245,711.58,REVENUE,REDACTED PERSONAL INFORMATION,REDACTED PERSONAL INFORMATION
North East Lincolnshire Council,http://statistics.data.gov.uk/id/local-authority/00FC),Childrens Services,Safeguard & Early Help,Head Of Child Resource & Reg,Other Agencies,Special Carer Payments,PJ128,24/08/2021,953123,711.58,REVENUE,REDACTED PERSONAL INFORMATION,REDACTED PERSONAL INFORMATION
North East Lincolnshire Council,http://statistics.data.gov.uk/id/local-authority/00FC),Childrens Services,Safeguard & Early Help,Head Of Child Resource & Reg,Other Agencies,Special Carer Payments,PJ128,31/08/2021,955396,711.58,REVENUE,REDACTED PERSONAL INFORMATION,REDACTED PERSONAL INFORMATION
North East Lincolnshire Council,http://statistics.data.gov.uk/id/local-authority/00FC),Childrens Services,Safeguard & Early Help,Head Of Child Resource & Reg,Other Agencies,Special Carer Payments,PJ128,31/08/2021,955279,711.58,REVENUE,REDACTED PERSONAL INFORMATION,REDACTED PERSONAL INFORMATION
North East Lincolnshire Council,http://statistics.data.gov.uk/id/local-authority/00FC),Childrens Services,Safeguard & Early Help,Head Of Child Resource & Reg,Other Agencies,Custodianship/Residency,PJ117,03/08/2021,947191,276,REVENUE,REDACTED PERSONAL INFORMATION,REDACTED PERSONAL INFORMATION
North East Lincolnshire Council,http://statistics.data.gov.uk/id/local-authority/00FC),Childrens Services,Safeguard & Early Help,Head Of Child Resource & Reg,Other Agencies,Custodianship/Residency,PJ117,10/08/2021,949610,276,REVENUE,REDACTED PERSONAL INFORMATION,REDACTED PERSONAL INFORMATION
North East Lincolnshire Council,http://statistics.data.gov.uk/id/local-authority/00FC),Childrens Services,Safeguard & Early Help,Head Of Child Resource & Reg,Other Agencies,Custodianship/Residency,PJ117,17/08/2021,951150,276,REVENUE,REDACTED PERSONAL INFORMATION,REDACTED PERSONAL INFORMATION
North East Lincolnshire Council,http://statistics.data.gov.uk/id/local-authority/00FC),Childrens Services,Safeguard & Early Help,Head Of Child Resource & Reg,Other Agencies,Custodianship/Residency,PJ117,24/08/2021,953539,276,REVENUE,REDACTED PERSONAL INFORMATION,REDACTED PERSONAL INFORMATION
North East Lincolnshire Council,http://statistics.data.gov.uk/id/local-authority/00FC),Childrens Services,Safeguard & Early Help,Head Of Child Resource & Reg,Other Agencies,Custodianship/Residency,PJ117,31/08/2021,955690,276,REVENUE,REDACTED PERSONAL INFORMATION,REDACTED PERSONAL INFORMATION
North East Lincolnshire Council,http://statistics.data.gov.uk/id/local-authority/00FC),Childrens Services,Safeguard & Early Help,Head Of Child Resource & Reg,Other Agencies,Custodianship/Residency,PJ117,03/08/2021,946859,257.6,REVENUE,REDACTED PERSONAL INFORMATION,REDACTED PERSONAL INFORMATION
North East Lincolnshire Council,http://statistics.data.gov.uk/id/local-authority/00FC),Childrens Services,Safeguard & Early Help,Head Of Child Resource & Reg,Other Agencies,Custodianship/Residency,PJ117,03/08/2021,947015,320,REVENUE,REDACTED PERSONAL INFORMATION,REDACTED PERSONAL INFORMATION
North East Lincolnshire Council,http://statistics.data.gov.uk/id/local-authority/00FC),Childrens Services,Safeguard & Early Help,Head Of Child Resource & Reg,Other Agencies,Custodianship/Residency,PJ117,10/08/2021,949275,257.6,REVENUE,REDACTED PERSONAL INFORMATION,REDACTED PERSONAL INFORMATION
North East Lincolnshire Council,http://statistics.data.gov.uk/id/local-authority/00FC),Childrens Services,Safeguard & Early Help,Head Of Child Resource & Reg,Other Agencies,Custodianship/Residency,PJ117,10/08/2021,949431,320,REVENUE,REDACTED PERSONAL INFORMATION,REDACTED PERSONAL INFORMATION
North East Lincolnshire Council,http://statistics.data.gov.uk/id/local-authority/00FC),Childrens Services,Safeguard & Early Help,Head Of Child Resource & Reg,Other Agencies,Custodianship/Residency,PJ117,17/08/2021,950818,257.6,REVENUE,REDACTED PERSONAL INFORMATION,REDACTED PERSONAL INFORMATION
North East Lincolnshire Council,http://statistics.data.gov.uk/id/local-authority/00FC),Childrens Services,Safeguard & Early Help,Head Of Child Resource & Reg,Other Agencies,Custodianship/Residency,PJ117,17/08/2021,950974,320,REVENUE,REDACTED PERSONAL INFORMATION,REDACTED PERSONAL INFORMATION
North East Lincolnshire Council,http://statistics.data.gov.uk/id/local-authority/00FC),Childrens Services,Safeguard & Early Help,Head Of Child Resource & Reg,Other Agencies,Custodianship/Residency,PJ117,24/08/2021,953364,320,REVENUE,REDACTED PERSONAL INFORMATION,REDACTED PERSONAL INFORMATION
North East Lincolnshire Council,http://statistics.data.gov.uk/id/local-authority/00FC),Childrens Services,Safeguard & Early Help,Head Of Child Resource & Reg,Other Agencies,Custodianship/Residency,PJ117,24/08/2021,953209,257.6,REVENUE,REDACTED PERSONAL INFORMATION,REDACTED PERSONAL INFORMATION
North East Lincolnshire Council,http://statistics.data.gov.uk/id/local-authority/00FC),Childrens Services,Safeguard & Early Help,Head Of Child Resource & Reg,Other Agencies,Custodianship/Residency,PJ117,31/08/2021,955515,320,REVENUE,REDACTED PERSONAL INFORMATION,REDACTED PERSONAL INFORMATION
North East Lincolnshire Council,http://statistics.data.gov.uk/id/local-authority/00FC),Childrens Services,Safeguard & Early Help,Head Of Child Resource & Reg,Other Agencies,Custodianship/Residency,PJ117,31/08/2021,955361,257.6,REVENUE,REDACTED PERSONAL INFORMATION,REDACTED PERSONAL INFORMATION
North East Lincolnshire Council,http://statistics.data.gov.uk/id/local-authority/00FC),Childrens Services,Safeguard & Early Help,Head Of Child Resource & Reg,Other Agencies,Custodianship/Residency,PJ117,03/08/2021,946966,270.6,REVENUE,REDACTED PERSONAL INFORMATION,REDACTED PERSONAL INFORMATION
North East Lincolnshire Council,http://statistics.data.gov.uk/id/local-authority/00FC),Childrens Services,Safeguard & Early Help,Head Of Child Resource & Reg,Other Agencies,Custodianship/Residency,PJ117,03/08/2021,946974,289.85,REVENUE,REDACTED PERSONAL INFORMATION,REDACTED PERSONAL INFORMATION
North East Lincolnshire Council,http://statistics.data.gov.uk/id/local-authority/00FC),Childrens Services,Safeguard & Early Help,Head Of Child Resource & Reg,Other Agencies,Custodianship/Residency,PJ117,03/08/2021,946992,279.04,REVENUE,REDACTED PERSONAL INFORMATION,REDACTED PERSONAL INFORMATION
North East Lincolnshire Council,http://statistics.data.gov.uk/id/local-authority/00FC),Childrens Services,Safeguard & Early Help,Head Of Child Resource & Reg,Other Agencies,Custodianship/Residency,PJ117,03/08/2021,947178,254.85,REVENUE,REDACTED PERSONAL INFORMATION,REDACTED PERSONAL INFORMATION
North East Lincolnshire Council,http://statistics.data.gov.uk/id/local-authority/00FC),Childrens Services,Safeguard & Early Help,Head Of Child Resource & Reg,Other Agencies,Custodianship/Residency,PJ117,10/08/2021,949597,254.85,REVENUE,REDACTED PERSONAL INFORMATION,REDACTED PERSONAL INFORMATION
North East Lincolnshire Council,http://statistics.data.gov.uk/id/local-authority/00FC),Childrens Services,Safeguard & Early Help,Head Of Child Resource & Reg,Other Agencies,Custodianship/Residency,PJ117,10/08/2021,949382,270.6,REVENUE,REDACTED PERSONAL INFORMATION,REDACTED PERSONAL INFORMATION
North East Lincolnshire Council,http://statistics.data.gov.uk/id/local-authority/00FC),Childrens Services,Safeguard & Early Help,Head Of Child Resource & Reg,Other Agencies,Custodianship/Residency,PJ117,10/08/2021,949390,289.85,REVENUE,REDACTED PERSONAL INFORMATION,REDACTED PERSONAL INFORMATION
North East Lincolnshire Council,http://statistics.data.gov.uk/id/local-authority/00FC),Childrens Services,Safeguard & Early Help,Head Of Child Resource & Reg,Other Agencies,Custodianship/Residency,PJ117,10/08/2021,949408,279.04,REVENUE,REDACTED PERSONAL INFORMATION,REDACTED PERSONAL INFORMATION
North East Lincolnshire Council,http://statistics.data.gov.uk/id/local-authority/00FC),Childrens Services,Safeguard & Early Help,Head Of Child Resource & Reg,Other Agencies,Custodianship/Residency,PJ117,17/08/2021,951059,254.85,REVENUE,REDACTED PERSONAL INFORMATION,REDACTED PERSONAL INFORMATION
North East Lincolnshire Council,http://statistics.data.gov.uk/id/local-authority/00FC),Childrens Services,Safeguard & Early Help,Head Of Child Resource & Reg,Other Agencies,Custodianship/Residency,PJ117,17/08/2021,951137,254.85,REVENUE,REDACTED PERSONAL INFORMATION,REDACTED PERSONAL INFORMATION
North East Lincolnshire Council,http://statistics.data.gov.uk/id/local-authority/00FC),Childrens Services,Safeguard & Early Help,Head Of Child Resource & Reg,Other Agencies,Custodianship/Residency,PJ117,17/08/2021,950926,270.6,REVENUE,REDACTED PERSONAL INFORMATION,REDACTED PERSONAL INFORMATION
North East Lincolnshire Council,http://statistics.data.gov.uk/id/local-authority/00FC),Childrens Services,Safeguard & Early Help,Head Of Child Resource & Reg,Other Agencies,Custodianship/Residency,PJ117,17/08/2021,950934,289.85,REVENUE,REDACTED PERSONAL INFORMATION,REDACTED PERSONAL INFORMATION
North East Lincolnshire Council,http://statistics.data.gov.uk/id/local-authority/00FC),Childrens Services,Safeguard & Early Help,Head Of Child Resource & Reg,Other Agencies,Custodianship/Residency,PJ117,17/08/2021,950951,279.04,REVENUE,REDACTED PERSONAL INFORMATION,REDACTED PERSONAL INFORMATION
North East Lincolnshire Council,http://statistics.data.gov.uk/id/local-authority/00FC),Childrens Services,Safeguard & Early Help,Head Of Child Resource & Reg,Other Agencies,Custodianship/Residency,PJ117,24/08/2021,953526,254.85,REVENUE,REDACTED PERSONAL INFORMATION,REDACTED PERSONAL INFORMATION
North East Lincolnshire Council,http://statistics.data.gov.uk/id/local-authority/00FC),Childrens Services,Safeguard & Early Help,Head Of Child Resource & Reg,Other Agencies,Custodianship/Residency,PJ117,24/08/2021,953316,270.6,REVENUE,REDACTED PERSONAL INFORMATION,REDACTED PERSONAL INFORMATION
North East Lincolnshire Council,http://statistics.data.gov.uk/id/local-authority/00FC),Childrens Services,Safeguard & Early Help,Head Of Child Resource & Reg,Other Agencies,Custodianship/Residency,PJ117,24/08/2021,953324,289.85,REVENUE,REDACTED PERSONAL INFORMATION,REDACTED PERSONAL INFORMATION
North East Lincolnshire Council,http://statistics.data.gov.uk/id/local-authority/00FC),Childrens Services,Safeguard & Early Help,Head Of Child Resource & Reg,Other Agencies,Custodianship/Residency,PJ117,24/08/2021,953341,279.04,REVENUE,REDACTED PERSONAL INFORMATION,REDACTED PERSONAL INFORMATION
North East Lincolnshire Council,http://statistics.data.gov.uk/id/local-authority/00FC),Childrens Services,Safeguard & Early Help,Head Of Child Resource & Reg,Other Agencies,Custodianship/Residency,PJ117,24/08/2021,953449,254.85,REVENUE,REDACTED PERSONAL INFORMATION,REDACTED PERSONAL INFORMATION
North East Lincolnshire Council,http://statistics.data.gov.uk/id/local-authority/00FC),Childrens Services,Safeguard & Early Help,Head Of Child Resource & Reg,Other Agencies,Custodianship/Residency,PJ117,31/08/2021,955492,279.04,REVENUE,REDACTED PERSONAL INFORMATION,REDACTED PERSONAL INFORMATION
North East Lincolnshire Council,http://statistics.data.gov.uk/id/local-authority/00FC),Childrens Services,Safeguard & Early Help,Head Of Child Resource & Reg,Other Agencies,Custodianship/Residency,PJ117,31/08/2021,955677,254.85,REVENUE,REDACTED PERSONAL INFORMATION,REDACTED PERSONAL INFORMATION
North East Lincolnshire Council,http://statistics.data.gov.uk/id/local-authority/00FC),Childrens Services,Safeguard & Early Help,Head Of Child Resource & Reg,Other Agencies,Custodianship/Residency,PJ117,31/08/2021,955467,270.6,REVENUE,REDACTED PERSONAL INFORMATION,REDACTED PERSONAL INFORMATION
North East Lincolnshire Council,http://statistics.data.gov.uk/id/local-authority/00FC),Childrens Services,Safeguard & Early Help,Head Of Child Resource & Reg,Other Agencies,Custodianship/Residency,PJ117,31/08/2021,955475,289.85,REVENUE,REDACTED PERSONAL INFORMATION,REDACTED PERSONAL INFORMATION
North East Lincolnshire Council,http://statistics.data.gov.uk/id/local-authority/00FC),Childrens Services,Safeguard & Early Help,Head Of Child Resource & Reg,Other Agencies,Custodianship/Residency,PJ117,31/08/2021,955598,254.85,REVENUE,REDACTED PERSONAL INFORMATION,REDACTED PERSONAL INFORMATION
North East Lincolnshire Council,http://statistics.data.gov.uk/id/local-authority/00FC),Childrens Services,Safeguard & Early Help,Head Of Child Resource & Reg,Other Agencies,Custodianship/Residency,PJ117,03/08/2021,946795,328,REVENUE,REDACTED PERSONAL INFORMATION,REDACTED PERSONAL INFORMATION
North East Lincolnshire Council,http://statistics.data.gov.uk/id/local-authority/00FC),Childrens Services,Safeguard & Early Help,Head Of Child Resource & Reg,Other Agencies,Custodianship/Residency,PJ117,10/08/2021,949210,328,REVENUE,REDACTED PERSONAL INFORMATION,REDACTED PERSONAL INFORMATION
North East Lincolnshire Council,http://statistics.data.gov.uk/id/local-authority/00FC),Childrens Services,Safeguard & Early Help,Head Of Child Resource & Reg,Other Agencies,Custodianship/Residency,PJ117,17/08/2021,950754,328,REVENUE,REDACTED PERSONAL INFORMATION,REDACTED PERSONAL INFORMATION
North East Lincolnshire Council,http://statistics.data.gov.uk/id/local-authority/00FC),Childrens Services,Safeguard & Early Help,Head Of Child Resource & Reg,Other Agencies,Custodianship/Residency,PJ117,24/08/2021,953143,328,REVENUE,REDACTED PERSONAL INFORMATION,REDACTED PERSONAL INFORMATION
North East Lincolnshire Council,http://statistics.data.gov.uk/id/local-authority/00FC),Childrens Services,Safeguard & Early Help,Head Of Child Resource & Reg,Other Agencies,Custodianship/Residency,PJ117,31/08/2021,955299,328,REVENUE,REDACTED PERSONAL INFORMATION,REDACTED PERSONAL INFORMATION
North East Lincolnshire Council,http://statistics.data.gov.uk/id/local-authority/00FC),Childrens Services,Safeguard & Early Help,Head Of Child Resource & Reg,Other Agencies,Custodianship/Residency,PJ117,03/08/2021,947220,397.5,REVENUE,REDACTED PERSONAL INFORMATION,REDACTED PERSONAL INFORMATION
North East Lincolnshire Council,http://statistics.data.gov.uk/id/local-authority/00FC),Childrens Services,Safeguard & Early Help,Head Of Child Resource & Reg,Other Agencies,Custodianship/Residency,PJ117,10/08/2021,949640,397.5,REVENUE,REDACTED PERSONAL INFORMATION,REDACTED PERSONAL INFORMATION
North East Lincolnshire Council,http://statistics.data.gov.uk/id/local-authority/00FC),Childrens Services,Safeguard & Early Help,Head Of Child Resource & Reg,Other Agencies,Custodianship/Residency,PJ117,17/08/2021,951179,397.5,REVENUE,REDACTED PERSONAL INFORMATION,REDACTED PERSONAL INFORMATION
North East Lincolnshire Council,http://statistics.data.gov.uk/id/local-authority/00FC),Childrens Services,Safeguard & Early Help,Head Of Child Resource & Reg,Other Agencies,Custodianship/Residency,PJ117,24/08/2021,953567,397.5,REVENUE,REDACTED PERSONAL INFORMATION,REDACTED PERSONAL INFORMATION
North East Lincolnshire Council,http://statistics.data.gov.uk/id/local-authority/00FC),Childrens Services,Safeguard & Early Help,Head Of Child Resource & Reg,Other Agencies,Custodianship/Residency,PJ117,31/08/2021,955717,397.5,REVENUE,REDACTED PERSONAL INFORMATION,REDACTED PERSONAL INFORMATION
North East Lincolnshire Council,http://statistics.data.gov.uk/id/local-authority/00FC),Childrens Services,Safeguard & Early Help,Head Of Child Resource & Reg,Other Agencies,Custodianship/Residency,PJ117,03/08/2021,946773,254.93,REVENUE,REDACTED PERSONAL INFORMATION,REDACTED PERSONAL INFORMATION
North East Lincolnshire Council,http://statistics.data.gov.uk/id/local-authority/00FC),Childrens Services,Safeguard & Early Help,Head Of Child Resource & Reg,Other Agencies,Custodianship/Residency,PJ117,10/08/2021,949190,254.93,REVENUE,REDACTED PERSONAL INFORMATION,REDACTED PERSONAL INFORMATION
North East Lincolnshire Council,http://statistics.data.gov.uk/id/local-authority/00FC),Childrens Services,Safeguard & Early Help,Head Of Child Resource & Reg,Other Agencies,Custodianship/Residency,PJ117,17/08/2021,950733,254.93,REVENUE,REDACTED PERSONAL INFORMATION,REDACTED PERSONAL INFORMATION
North East Lincolnshire Council,http://statistics.data.gov.uk/id/local-authority/00FC),Childrens Services,Safeguard & Early Help,Head Of Child Resource & Reg,Other Agencies,Custodianship/Residency,PJ117,24/08/2021,953122,254.93,REVENUE,REDACTED PERSONAL INFORMATION,REDACTED PERSONAL INFORMATION
North East Lincolnshire Council,http://statistics.data.gov.uk/id/local-authority/00FC),Childrens Services,Safeguard & Early Help,Head Of Child Resource & Reg,Other Agencies,Custodianship/Residency,PJ117,31/08/2021,955277,254.93,REVENUE,REDACTED PERSONAL INFORMATION,REDACTED PERSONAL INFORMATION
North East Lincolnshire Council,http://statistics.data.gov.uk/id/local-authority/00FC),Childrens Services,Safeguard & Early Help,Head Of Child Resource & Reg,Other Agencies,Custodianship/Residency,PJ117,03/08/2021,947186,348.29,REVENUE,REDACTED PERSONAL INFORMATION,REDACTED PERSONAL INFORMATION
North East Lincolnshire Council,http://statistics.data.gov.uk/id/local-authority/00FC),Childrens Services,Safeguard & Early Help,Head Of Child Resource & Reg,Other Agencies,Custodianship/Residency,PJ117,03/08/2021,946868,263.71,REVENUE,REDACTED PERSONAL INFORMATION,REDACTED PERSONAL INFORMATION
North East Lincolnshire Council,http://statistics.data.gov.uk/id/local-authority/00FC),Childrens Services,Safeguard & Early Help,Head Of Child Resource & Reg,Other Agencies,Custodianship/Residency,PJ117,24/08/2021,953533,-1821.86,REVENUE,REDACTED PERSONAL INFORMATION,REDACTED PERSONAL INFORMATION
North East Lincolnshire Council,http://statistics.data.gov.uk/id/local-authority/00FC),Childrens Services,Safeguard & Early Help,Head Of Child Resource & Reg,Other Agencies,Custodianship/Residency,PJ117,24/08/2021,953533,2015.14,REVENUE,REDACTED PERSONAL INFORMATION,REDACTED PERSONAL INFORMATION
